Workbook

Sheet Contrôle taux
D2: Echéancier avec plusieurs mises à disposition de fonds successives - Plusieurs échéances brisées - Contrôle Taux débiteur - Taux annuel Effectif Global (TAEG) - Taux Annuel Effectif de l'Assurance (TAEA)
B4: =DAY(N5) -> 25 | D4: Dates déblocages | E4: Durée | F4: Durée maxi Différé externe anticipation | G4: Montant | H4: Taux prêt | I4: Frais divers obligatoires | J4: Taux assurance 1 | K4: Obligatoire | L4: Taux assurance 2 | M4: Facultative | N4: Date 1ère échéance | O4: Obligatoire | U4: Lire les résultats dans le tableau de synthèse ci-dessous
A5: =$D$5 -> 2019-08-05 | B5: =DAY(D5) -> 5 | C5: 1 | D5: 2019-08-05 | E5: 240 | F5: 36 | G5: 200000 | H5: 0.02 | I5: 8000 | J5: 0.003 | K5: 1 | L5: 0.003 | M5: 1 | N5: 2019-08-25 | O5: Facultative
A6: =IF(D6=0,"31/12/3000",D6) -> 2020-01-11 | B6: =DAY(D6) -> 11 | C6: 2 | D6: 2020-01-11 | E6: =IF(B15=0,"Saisir au moins une date de mise à disposition de fonds",IF(ISERR($AA$424),"Cliquer sur bouton ''Initialiser'' et saisir montants débloqués",IF(AND(AA424>0,$W$424>0),"ERREUR(S) DE SAISIES",IF($W$424<0,"Impossible - Capital emprunté dépassé",IF($U$424<>$G$5,"Les fonds du prêt doivent être entièrement mis à disposition",IF(F14>F13,"Impossible - Durée maxi 36 mois dépassée",IF($F$5>36,"Impossible - Durée maximale anticipation 36 mois",IF(A5>=N5,"Impossible - Dates incohérentes",IF($E$5>360,"Impossible - Durée maximale 360 mois","PROCEDURES"))))))))) -> PROCEDURES | O6: Critères de comparaisons réglementaires (Charges et frais obligatoires uniquement) | AN6: Critères de comparaisons financiers (Tous frais même facultatifs)
A7: =IF(D7=0,"31/12/3000",$D$7) -> 2020-03-07 | B7: 7 | C7: 3 | D7: 2020-03-07
A8: =IF(D8=0,"31/12/3000",$D$8) -> 2020-04-05 | B8: 5 | C8: 4 | D8: 2020-04-05 | E8: 1) - Renseigner toutes les cellules matérialsées en vert et sélectionner les options qui conviennent. | O8: Résultatss à comparer | U8: Total des intérêts payés | X8: Taux intérêt débiteur | AA8: Calcul TAEG légal suivant méthode: | AE8: Calcul TAEA (légal et financier) suivant méthode: | AI8: Coût total du crédit légal | AN8: Calcul TAEG financier suivant méthode: | AR8: Coût total du crédit financier
A9: =IF(D9=0,"31/12/3000",$D$9) -> 2020-06-15 | B9: 15 | C9: 5 | D9: 2020-06-15 | E9: 2) - Cliquer sur le bouton "Initialiser". | AA9: Code conso | AC9: Tri.Pts Excel 365 jours | AE9: Code conso (année civile) | AG9: Tri.Pts Excel 365 jours | AI9: Intérêts | AK9: Assurances | AL9: Frais divers | AM9: Total | AN9: Code conso (année civile) | AP9: Tri.Pts Excel 365 jours | AR9: Intérêts | AT9: Assurances | AU9: Frais divers | AV9: Total
A10: =IF(D10=0,"31/12/3000",$D$10) -> 31/12/3000 | B10: 0 | C10: 6 | E10: 3) - Renseigner les montants du prêt mis à disposition dans les cellules matérialisées en gris colonne "U". | O10: Tableau amortissement intérêts réels | V10: =IF(ISERR($P$424),0,$P$424) -> 43877.88971 | X10: Taux débiteur réel | Y10: =AW17 -> 0.020007327 | AA10: =$AG$16 -> 0.03017511533 | AC10: =IF(ISERR($AH$16),0,$AH$16) -> 0.03018945456 | AD10: Contrôle de cohérence | AE10: =BL16-BJ16 -> 0.01096919325 | AG10: =IF(ISERR($BT$16-$BR$16),0,$BT$16-$BR$16) -> 0.01105611469 | AH10: Contrôle de cohérence | AI10: =$V$10 -> 43877.88971 | AK10: =(IF(ISERR($AK$13),0,$AK$13)) -> 12500 | AL10: =$I$5 -> 8000 | AM10: =$AI$10+$AK$10+$AL$10 -> 64377.88971 | AN10: =$BL$16 -> 0.03560316014 | AP10: =IF(ISERR($BT$16),0,$BT$16) -> 0.03567239384 | AQ10: Contrôle de cohérence | AR10: =$V$10 -> 43877.88971 | AT10: =IF(OR(ISERR($L$424),ISERR($M$424)),0,$L$424+$M$424) -> 25000 | AU10: =$I$5 -> 8000 | AV10: =AR10+AT10+AU10 -> 76877.88971
A11: =IF(D11=0,"31/12/3000",$D$11) -> 31/12/3000 | B11: 0 | C11: 7 | E11: 4) - Si besoin, ajuster montants intérêts (échéances) colonne "O"(en bleu) puis cliquer sur bouton "Calculs". | O11: TA intérêts calculés sur année civile | V11: =IF(ISERR($AZ$424),0,$AZ$424) -> 43863.54719 | X11: Taux débiteur contractuel | Y11: =$H$5 -> 0.02 | AA11: =$BF$16 -> 0.03016690424 | AC11: =IF(ISERR($BH$16),0,$BH$16) -> 0.03018115588 | AE11: =$BP$16-$BN$16 -> 0.01096877476 | AG11: =IF(ISERR($BX$16-$BV$16),0,$BX$16-$BV$16) -> 0.0110557125 | AI11: =$V$11 -> 43863.54719 | AK11: =IF(ISERR($AK$13),0,$AK$13) -> 12500 | AL11: =$I$5 -> 8000 | AM11: =$AI$11+$AK$11+$AL$11 -> 64363.54719 | AN11: =$BP$16 -> 0.0355947386 | AP11: =IF(ISERR($BX$16),0,$BX$16) -> 0.03566399519 | AR11: =$V$11 -> 43863.54719 | AT11: =IF(OR(ISERR($L$424),ISERR($M$424)),0,$L$424+$M$424) -> 25000 | AU11: =$I$5 -> 8000 | AV11: =AR11+AT11+AU11 -> 76863.54719
A12: =IF(D12=0,"31/12/3000",$D$12) -> 31/12/3000 | B12: 0 | C12: 8 | E12: 5) - Lire les résultats dans le tableau de synthèse ci-contre => => => => => => => | O12: Différence due au calcul "Exact/360" | V12: =V10-V11 -> 14.34251566 | Y12: =Y10-Y11 -> 7.327e-06 | AA12: =AA10-AA11 -> 8.211086662e-06 | AC12: =AC10-AC11 -> 8.298672278e-06 | AE12: =AE10-AE11 -> 4.18481058e-07 | AG12: =AG10-AG11 -> 4.021862429e-07 | AI12: =AI10-AI11 -> 14.34251566 | AK12: =AK10-AK11 -> 0 | AL12: =AL10-AL11 -> 0 | AM12: =$AM$10-$AM$11 -> 14.34251566 | AN12: =AN10-AN11 -> 8.421532835e-06 | AP12: =AP10-AP11 -> 8.398649433e-06 | AR12: =AR10-AR11 -> 14.34251566 | AT12: =AT10-AT11 -> 0 | AU12: =AU10-AU11 -> 0 | AV12: =$AM$10-$AM$11 -> 14.34251566
A13: =IF(D13=0,"31/12/3000",$D$13) -> 31/12/3000 | B13: 0 | C13: 9 | E13: Max différé | F13: =EDATE(A5,36) -> 2022-08-05 | I13: Consolidation | K13: Terme final | L13: =IF($K$4="Obligatoire",1,0) -> 1 | M13: =IF($M$4="Obligatoire",1,0) -> 0 | N13: Total ADI | O13: 1 | AK13: =IF(AND($L$13=1,$M$13=1),L424+M424,IF(AND($L$13=0,$M$13=0),0,IF(AND($L$13=1,$M$13=0),L424,M424))) -> 12500
A14: =IF(D14=0,"31/12/3000",$D$14) -> 31/12/3000 | B14: 0 | C14: 10 | E14: =E5+F5 -> 276 | F14: =MAX(A5:A14) -> 2020-06-15 | G14: =DAY(F14) -> 15 | H14: =DAY($N$5) -> 25 | I14: =IF($C$16=1,$N$5,IF(G14<H14,F14+(H14-G14),EDATE(F14,1)+(H14-G14))) -> 2020-06-25 | K14: =EDATE($I$14,$E$5-1) -> 2040-05-25 | L14: =TRUNC($G$5*$J$5/12*$K$5,2) -> 50 | M14: =TRUNC($G$5*$L$5/12*$M$5,2) -> 50 | N14: =IF(AND($L$13=1,$M$13=1),$L$14+$M$14,IF(AND($L$13=0,$M$13=0),0,IF(AND($L$13=1,$M$13=0),$L$14,$M$14))) -> 50
B15: =SUM(B5:B14) -> 43 | D15: Tableau d'amortissement avec intérêts compris dans les échéances brisées calculés en "Exact/360" par défaut | AF15: TAEG réel code conso | AH15: TAEG TRI.Paiements Excel réel | AK15: Tableau d'amortissement avec intérêts compris dans les échéances brisées calculés en "Exact/année civile" | AY15: Copie "Valeurs" colonne "V" pour supprimer réeférence circulaire | AZ15: Intérêts calculés sur l'année civile | BB15: Amt | BC15: ADI | BD15: Ech | BE15: TAEG code conso année civile | BG15: TAEG Excel année civile | BI15: TAEG code conso sans ADI réel | BK15: TAEG code conso avec 2 ADI réel | BM15: TAEG code conso sans ADI année civile | BO15: TAEG code conso avec 2 ADI année civile | BQ15: TAEG Excel sans ADI réel | BS15: TAEG Excel avec 2 ADI réel | BU15: TAEG Excel sans ADI année civile | BW15: TAEG Excel avec 2 ADI année civile
A16: Mois | B16: Jours | C16: =COUNT(A5:A14) -> 5 | E16: Rang prêt | F16: Dates | G16: Année précédente | H16: Année civile | I16: Nb jours calcul intérêts Ech brisées | J16: Rang partie amortissable | K16: Échéance avec ADI | L16: ADI 1 | M16: ADI 2 | N16: Échéance sans ADI | O16: Si besoin ajuster échéances = différence sur intérêts | P16: Intérêts payés | Q16: Intérêts calculés | T16: Capital amorti (Amts figés) | U16: Capital débloqué | V16: Capital dû fin de période | W16: Solde capitai à débloquer | X16: Informations Commentaires | Y16: Taux débiteur rapporté à l'année civile | Z16: Détail des intérêts suivant chronologie des opérations | AD16: Capital débloqué | AE16: Échéance avec assurance(s) obligatoire(s) | AF16: Avec nombre ADI réel | AG16: 0.03017511533 | AH16: =XIRR(AH18:AH423,AI18:AI423,2.2/100) -> 0.03018945456 | AI16: Avec nombre ADI réel Contrôle de cohérence | AK16: Rang ensemble prêt | AL16: Dates | AM16: Année civile | AN16: Nb jours calcul intérêts Ech brisées | AO16: Rang partie amortissable | AP16: Échéance avec ADI | AQ16: ADI 1 | AR16: ADI 2 | AS16: Échéance sans ADI | AT16: Intérêts payés | AU16: Capital amorti | AV16: Capital dû fin de période | AW16: Taux débiteur réellement appliqué | BE16: Avec nombre ADI réel | BF16: 0.03016690424 | BG16: Avec nombre ADI réel | BH16: =XIRR(BH18:BH423,$AI$18:$AI$423,$BF$16) -> 0.03018115588 | BI16: Pour calcul TAEA code conso réel | BJ16: 0.02463396689 | BK16: Pour calcul TAEA code conso réel | BL16: 0.03560316014 | BM16: Pour calcul du TAEA code conso année civile | BN16: 0.02462596384 | BO16: Pour calcul du TAEA code conso année civile | BP16: 0.0355947386 | BQ16: Pour calcul TAEA Excel année civile | BR16: =XIRR(BQ18:BQ423,$AI$18:$AI$423,$BN$16) -> 0.02461627915 | BS16: Pour calcul TAEA Excel année civile | BT16: =XIRR(BS18:BS423,$AI$18:$AI$423,$BP$16) -> 0.03567239384 | BU16: Pour calcul TAEA Excel année civile | BV16: =XIRR(BU18:BU423,$AI18:$AI423,$BH16) -> 0.02460828269 | BW16: Pour calcul TAEA Excel année civile | BX16: =XIRR(BW18:BW423,$AI18:$AI423,$BT16) -> 0.03566399519
A17: Pour exposants d'actualisation | S17: 1 | AW17: 0.020007327
F18: =IF($A$5<>"",$A$5,"") -> 2019-08-05 | Q18: =IF(E18="",P18,0) -> 0 | R18: =IF($S$17=1,0,IF(AND(Q18=0,Q17>0),AC18,0)) -> 0 | S18: 0 | U18: 10000 | V18: =IF(AND(J18<>"",J18>$E$5),0,V17-T18+U18) -> 10000 | W18: =$G$5-V18 -> 190000 | X18: =IF(AND(J18>$E$5,O18>0),"Imposible - Durée dépassée",IF(AND(E18<>"",U18>0),"Pas de déblocage à cette date",IF(AND(E18="",O18<>""),"Pas d'échéance à cette date",IF(W18<0,"Saisies incohérentes",IF(AND(E18="",U18>0),"",IF(AND(E18="",U18=0),"Saisie manquante","")))))) ->  | AA18: =IF(X18<>"",1,0) -> 0 | AB18: =IF(OR(AND(E18="",E17=""),AND(E18<>"",E17="")),P18+AB17,P18) -> 0 | AC18: =IF(E18="",0,AB18) -> 0 | AD18: =U18 -> 10000 | AE18: =IF(AND(J18>$E$5,J18<>""),0,IF(E18="",0,N18+$N$14)) -> 0 | AF18: =AD18-$I$5 -> 2000 | AG18: =AG19+AF18 -> -5.925312507e-08 | AH18: =AD18-AE18-I5 -> 2000 | AI18: =IF(J18=1,$I$14,F18) -> 2019-08-05 | AJ18: =IF(ISERR(AG18),1,0) -> 0 | AK18: =IF(E18="","",E18) ->  | AL18: =F18 -> 2019-08-05 | AV18: =V18 -> 10000 | AW18: =IF(ISERR(AT424),0,P424-AT424) -> 3.471368836e-05 | AY18: 10000 | BE18: =AF18 -> 2000 | BF18: =BF19+BE18 -> -5.347669685e-08 | BH18: =AD18-AE18-$I$5 -> 2000 | BI18: =AF18 -> 2000 | BJ18: =BJ19+BI18 -> -1.336138666e-08 | BK18: =BI18 -> 2000 | BL18: =BL19+BK18 -> -2.029808002e-07 | BM18: =BE18 -> 2000 | BN18: =BN19+BM18 -> -1.165813046e-08 | BO18: =BM18 -> 2000 | BP18: =BP19+BO18 -> -1.872720077e-07 | BQ18: =BK18 -> 2000 | BS18: =BQ18 -> 2000 | BU18: =BQ18 -> 2000 | BW18: =BU18 -> 2000
A19: =IF(G19=0,0,DATEDIF($F$18,F19,"m")) -> 0 | B19: =IF(G19=0,0,DATE(YEAR(F19),MONTH(F19)-A19,DAY(F19))-$F$18) -> 20 | E19: =$C$28 -> 1 | F19: =$D$28 -> 2019-08-25 | G19: =IF(F19="",0,EDATE(F19,-12)) -> 2018-08-25 | H19: =IF(F19="",0,F19-G19) -> 365 | I19: =IF(F19="",0,F19-F18) -> 20 | J19: =IF(F19<$I$14,0,IF(ISERROR(AY19),J18+1,IF(OR(F19>$K$14,F19=""),J18+1,IF(AY19=$G$5,0,IF(F19<$I$14,"",IF(AND(J18=0,F19=$I$14),J18+1,IF(F19=EDATE(F18,1),J18+1,J18+1))))))) -> 0 | K19: =IF(J19>$E$5,0,N19+M19+L19) -> 111.1111111 | L19: =IF(OR(J19>$E$5,E19=""),0,$L$14) -> 50 | M19: =IF(OR(J19>$E$5,E19=""),0,$M$14) -> 50 | N19: =IF(J19>$E$5,0,IF(AND(O19>0,F19>=$I$14),O19,IF(J19=1,T19+P19,IF(J19>$E$5,0,IF(F19>=$I$14,-PMT($H$5/12,$E$5,$G$5,0,0),P19))))) -> 11.11111111 | P19: =IF(AND(E19<>"",F19>=$I$14,O19>0),N19-T19,IF(AND(E19<>"",F19<$I$14,O19>0),O19,IF(AND(E19="",$S$17=1),0,IF(AND(J19>$E$5,J19<>""),0,IF(AND(J19>$E$5,ISERROR(T19)),0,IF(AND(OR(F19>$I$14,F19=EDATE(F18,1)),E19<>1),IF(AND(Q19=0,S19>0),S19,V18*$H$5/12),IF(AND(Q19=0,S19>0),S19,V18*$H$5/360*I19))))))) -> 11.11111111 | Q19: 0 | R19: 0 | S19: 0 | T19: =IF(F19>=$I$14,IF(J19=1,-PPMT($H$5/12,J19,$E$5,$G$5,0),N19-P19),0) -> 0 | V19: =IF(AND(J19<>"",J19>$E$5),0,V18-T19+U19) -> 10000 | W19: =$G$5-V19 -> 190000 | X19: =IF(J19>$E$5,"",IF(AND(F19=$F$14,$U$424<$G$5),"Total déblocages insuffisant",IF(AND(J19>$E$5,O19>0),"Imposible - Durée dépassée",IF(AND(E19<>"",U19>0),"Pas de déblocage à cette date",IF(AND(E19="",O19<>""),"Pas d'échéance à cette date",IF(W19<0,"Saisies incohérentes",IF(AND(E19="",U19>0),"",IF(AND(E19="",U19=""),"Saisie manquante",IF(AND(F19=$F$14,$U$424<$G$5),"Fonds mis à disposition insuffisants",""))))))))) ->  | Y19: =IF(Z19=0,0,IF(AND(J19>$E$5,J19<>""),"",IF(AND(OR(F19>$I$14,F19=EDATE(F18,1)),E19<>1),Z19*12/V18,Z19*H19/I19/V18))) -> 0.02027777778 | Z19: 11.11111111 | AA19: 0 | AB19: =IF(OR(AND(E19="",E18=""),AND(E19<>"",E18="")),P19+AB18,P19) -> 11.11111111 | AC19: =IF(E19="",0,AB19) -> 11.11111111 | AD19: =U19 -> 0 | AE19: =IF(AND(J19>$E$5,J19<>""),0,IF(E19="",0,N19+$N$14)) -> 61.11111111 | AF19: =IF($A19=0,0,IF($AD19=0,-$AE19*(1+$AG$16)^(-(($A19/12)+($B19/$H$19))),$AD19*(1+$AG$16)^(-(($A19/12)+($B19/$H19))))) -> 0 | AG19: -2000 | AH19: =AD19-AE19 -> -61.11111111 | AI19: =IF(AND(J19<>"",J19>1),EDATE(AI18,1),IF(J19=1,$I$14,F19)) -> 2019-08-25 | AK19: 1 | AL19: 2019-08-25 | AM19: =H19 -> 365 | AN19: =I19 -> 20 | AO19: =J19 -> 0 | AP19: =AS19+AR19+AQ19 -> 111.1111111 | AQ19: =L19 -> 50 | AR19: =M19 -> 50 | AS19: =IF(AND(AO19>$E$5,AO19<>""),0,N19) -> 11.11111111 | AT19: =IF(AND(AO19>$E$5,AO19<>""),0,IF(OR(AL19>$I$14,AL19=EDATE(AL18,1)),AV18*$AW$17/12,AV18*$AW$17/AM19*AN19)) -> 10.9629189 | AU19: =AS19-AT19 -> 0.148192207 | AV19: =AV18+U19-AU19 -> 9999.851808 | AW19: =IF(AT19=0,0,IF(AND(AO19>$E$5,AO19<>""),"",IF(OR(AL19>$I$14,AL19=EDATE(AL18,1)),AT19*12/AV18,AT19/AN19*AM19/AV18))) -> 0.020007327 | AY19: 10000 | AZ19: =IF(J19>$E$5,0,IF(F19<>EDATE(F18,1),P19/H19*360,P19)) -> 10.95890411 | BA19: =IF(J19>$E$5,0,IF(OR(F19=EDATE(F18,1),J19>1),P19,V18*$H$5/H19*I19)) -> 10.95890411 | BB19: =T19 -> 0 | BC19: =IF(J19>$E$5,0,$N$14) -> 50 | BD19: =AZ19+BB19+BC19 -> 60.95890411 | BE19: =IF($A19=0,0,IF($AD19=0,-$BG19*(1+$BF$16)^(-(($A19/12)+($B19/$H$19))),$AD19*(1+$BF$16)^(-(($A19/12)+($B19/$H19))))) -> 0 | BF19: =BF20+BE19 -> -2000 | BG19: 60.95890411 | BH19: =AD19-BG19 -> -60.95890411 | BI19: =IF($A19=0,0,IF($AD19=0,-$N19*(1+$BJ$16)^(-(($A19/12)+($B19/$H$19))),$AD19*(1+$BJ$16)^(-(($A19/12)+($B19/$H19))))) -> 0 | BJ19: -2000 | BK19: =IF($A19=0,0,IF($AD19=0,-($N19+$L$14+$M$14)*(1+$BL$16)^(-(($A19/12)+($B19/$H$19))),$AD19*(1+$BL$16)^(-(($A19/12)+($B19/$H19))))) -> 0 | BL19: -2000 | BM19: =IF($A19=0,0,IF($AD19=0,-($BG19-BC19)*(1+$BN$16)^(-(($A19/12)+($B19/$H$19))),$AD19*(1+$BN$16)^(-(($A19/12)+($B19/$H19))))) -> 0 | BN19: -2000 | BO19: =IF($A19=0,0,IF($AD19=0,-(BG19-BC19+$L$14+$M$14)*(1+$BP$16)^(-(($A19/12)+($B19/$H$19))),$AD19*(1+$BP$16)^(-(($A19/12)+($B19/$H19))))) -> 0 | BP19: -2000 | BQ19: =IF($A19=0,0,IF($AD19=0,-$N19,$AD19)) -> 0 | BS19: =IF($A19=0,0,IF($AD19=0,-($N19+$L$14+$M$14),$AD19)) -> 0 | BU19: =IF($A19=0,0,IF($AD19=0,-($BD19-$BC19),$AD19)) -> 0 | BW19: =IF($A19=0,0,IF($AD19=0,-($BD19-$BC19+$L$14+$M$14),$AD19)) -> 0
A20: 1 | B20: =IF(G20=0,0,DATE(YEAR(F20),MONTH(F20)-A20,DAY(F20))-$F$18) -> 20 | E20: =$C$29 -> 2 | F20: =$D$29 -> 2019-09-25 | G20: 2018-09-25 | H20: 365 | I20: 31 | J20: =IF(F20<$I$14,0,IF(ISERROR(AY20),J19+1,IF(OR(F20>$K$14,F20=""),J19+1,IF(AY20=$G$5,0,IF(F20<$I$14,"",IF(AND(J19=0,F20=$I$14),J19+1,IF(F20=EDATE(F19,1),J19+1,J19+1))))))) -> 0 | K20: =IF(J20>$E$5,0,N20+M20+L20) -> 116.6666667 | L20: =IF(OR(J20>$E$5,E20=""),0,$L$14) -> 50 | M20: =IF(OR(J20>$E$5,E20=""),0,$M$14) -> 50 | N20: =IF(J20>$E$5,0,IF(AND(O20>0,F20>=$I$14),O20,IF(J20=1,T20+P20,IF(J20>$E$5,0,IF(F20>=$I$14,-PMT($H$5/12,$E$5,$G$5,0,0),P20))))) -> 16.66666667 | P20: =IF(AND(E20<>"",F20>=$I$14,O20>0),N20-T20,IF(AND(E20<>"",F20<$I$14,O20>0),O20,IF(AND(E20="",$S$17=1),0,IF(AND(J20>$E$5,J20<>""),0,IF(AND(J20>$E$5,ISERROR(T20)),0,IF(AND(OR(F20>$I$14,F20=EDATE(F19,1)),E20<>1),IF(AND(Q20=0,S20>0),S20,V19*$H$5/12),IF(AND(Q20=0,S20>0),S20,V19*$H$5/360*I20))))))) -> 16.66666667 | Q20: 0 | R20: 0 | S20: 0 | T20: 0 | V20: 10000 | W20: 190000 | Y20: =IF(Z20=0,0,IF(AND(J20>$E$5,J20<>""),"",IF(AND(OR(F20>$I$14,F20=EDATE(F19,1)),E20<>1),Z20*12/V19,Z20*H20/I20/V19))) -> 0.02 | Z20: 16.66666667 | AA20: 0 | AB20: 16.66666667 | AC20: 16.66666667 | AD20: 0 | AE20: 66.66666667 | AF20: =IF($A20=0,0,IF($AD20=0,-$AE20*(1+$AG$16)^(-(($A20/12)+($B20/$H$19))),$AD20*(1+$AG$16)^(-(($A20/12)+($B20/$H20))))) -> -66.39346959 | AG20: -2000 | AH20: =AD20-AE20 -> -66.66666667 | AI20: 2019-09-25 | AK20: 2 | AL20: 2019-09-25 | AM20: =H20 -> 365 | AN20: =I20 -> 31 | AO20: =IF(J20="","",J20) -> 0 | AP20: 116.6666667 | AQ20: 50 | AR20: 50 | AS20: 16.66666667 | AT20: 16.67252542 | AU20: =AS20-AT20 -> -0.005858755838 | AV20: 9999.857667 | AW20: =IF(AT20=0,0,IF(AND(AO20>$E$5,AO20<>""),"",IF(OR(AL20>$I$14,AL20=EDATE(AL19,1)),AT20*12/AV19,AT20/AN20*AM20/AV19))) -> 0.020007327 | AY20: 10000 | AZ20: =IF(J20>$E$5,0,IF(F20<>EDATE(F19,1),P20/H20*360,P20)) -> 16.66666667 | BA20: 16.66666667 | BB20: =T20 -> 0 | BC20: =IF(E20="",0,IF(J20>$E$5,0,$N$14)) -> 50 | BD20: =AZ20+BB20+BC20 -> 66.66666667 | BE20: =IF($A20=0,0,IF($AD20=0,-$BG20*(1+$BF$16)^(-(($A20/12)+($B20/$H$19))),$AD20*(1+$BF$16)^(-(($A20/12)+($B20/$H20))))) -> -66.39354269 | BF20: -2000 | BG20: 66.66666667 | BH20: =AD20-BG20 -> -66.66666667 | BI20: -16.61073734 | BJ20: -2000 | BK20: =IF($A20=0,0,IF($AD20=0,-($N20+$L$14+$M$14)*(1+$BL$16)^(-(($A20/12)+($B20/$H$19))),$AD20*(1+$BL$16)^(-(($A20/12)+($B20/$H20))))) -> -116.104262 | BL20: -2000 | BM20: =IF($A20=0,0,IF($AD20=0,-($BG20-BC20)*(1+$BN$16)^(-(($A20/12)+($B20/$H$19))),$AD20*(1+$BN$16)^(-(($A20/12)+($B20/$H20))))) -> -16.61075526 | BN20: -2000 | BO20: =IF($A20=0,0,IF($AD20=0,-(BG20-BC20+$L$14+$M$14)*(1+$BP$16)^(-(($A20/12)+($B20/$H$19))),$AD20*(1+$BP$16)^(-(($A20/12)+($B20/$H20))))) -> -116.1043925 | BP20: -2000 | BQ20: =IF($A20=0,0,IF($AD20=0,-$N20,$AD20)) -> -16.66666667 | BS20: =IF($A20=0,0,IF($AD20=0,-($N20+$L$14+$M$14),$AD20)) -> -116.6666667 | BU20: =IF($A20=0,0,IF($AD20=0,-($BD20-$BC20),$AD20)) -> -16.66666667 | BW20: =IF($A20=0,0,IF($AD20=0,-($BD20-$BC20+$L$14+$M$14),$AD20)) -> -116.6666667
A21: 2 | B21: 20 | E21: =$C$30 -> 3 | F21: =$D$30 -> 2019-10-25 | G21: 2018-10-25 | H21: 365 | I21: 30 | J21: 0 | K21: 116.6666667 | L21: =IF(OR(J21>$E$5,E21=""),0,$L$14) -> 50 | M21: =IF(OR(J21>$E$5,E21=""),0,$M$14) -> 50 | N21: 16.66666667 | P21: 16.66666667 | Q21: 0 | R21: 0 | S21: 0 | T21: 0 | V21: 10000 | W21: 190000 | Y21: 0.02 | Z21: 16.66666667 | AA21: 0 | AB21: 16.66666667 | AC21: 16.66666667 | AD21: 0 | AE21: 66.66666667 | AF21: -66.22918998 | AG21: -1933.60653 | AH21: -66.66666667 | AI21: 2019-10-25 | AK21: 3 | AL21: 2019-10-25 | AM21: 365 | AN21: 30 | AO21: 0 | AP21: 116.6666667 | AQ21: 50 | AR21: 50 | AS21: 16.66666667 | AT21: 16.67253519 | AU21: -0.005868524008 | AV21: 9999.863535 | AW21: 0.020007327 | AY21: 10000 | AZ21: 16.66666667 | BA21: 16.66666667 | BB21: 0 | BC21: =IF(E21="",0,IF(J21>$E$5,0,$N$14)) -> 50 | BD21: 66.66666667 | BE21: -66.22930688 | BF21: -1933.606457 | BG21: 66.66666667 | BH21: -66.66666667 | BI21: -16.57708567 | BJ21: -1983.389263 | BK21: -115.7662721 | BL21: -1883.895738 | BM21: -16.57711435 | BN21: -1983.389245 | BO21: -115.7664806 | BP21: -1883.895608 | BQ21: -16.66666667 | BS21: -116.6666667 | BU21: -16.66666667 | BW21: -116.6666667
A22: 3 | B22: 20 | E22: =$C$31 -> 4 | F22: =$D$31 -> 2019-11-25 | G22: 2018-11-25 | H22: 365 | I22: 31 | J22: 0 | K22: 116.6666667 | L22: 50 | M22: 50 | N22: 16.66666667 | P22: 16.66666667 | Q22: 0 | R22: 0 | S22: 0 | T22: 0 | V22: 10000 | W22: 190000 | Y22: 0.02 | Z22: 16.66666667 | AA22: 0 | AB22: 16.66666667 | AC22: 16.66666667 | AD22: 0 | AE22: 66.66666667 | AF22: -66.06531684 | AG22: -1867.37734 | AH22: -66.66666667 | AI22: 2019-11-25 | AK22: 4 | AL22: 2019-11-25 | AM22: 365 | AN22: 31 | AO22: 0 | AP22: 116.6666667 | AQ22: 50 | AR22: 50 | AS22: 16.66666667 | AT22: 16.67254498 | AU22: -0.005878308465 | AV22: 9999.869413 | AW22: 0.020007327 | AY22: 10000 | AZ22: 16.66666667 | BA22: 16.66666667 | BB22: 0 | BC22: 50 | BD22: 66.66666667 | BE22: -66.06547734 | BF22: -1867.37715 | BG22: 66.66666667 | BH22: -66.66666667 | BI22: -16.54350218 | BJ22: -1966.812177 | BK22: -115.4292662 | BL22: -1768.129466 | BM22: -16.54354156 | BN22: -1966.81213 | BO22: -115.4295523 | BP22: -1768.129127 | BQ22: -16.66666667 | BS22: -116.6666667 | BU22: -16.66666667 | BW22: -116.6666667
A23: 4 | B23: 20 | E23: =$C$32 -> 5 | F23: =$D$32 -> 2019-12-25 | G23: 2018-12-25 | H23: 365 | I23: 30 | J23: 0 | K23: 116.6666667 | L23: 50 | M23: 50 | N23: 16.66666667 | P23: 16.66666667 | Q23: 0 | R23: 0 | S23: 0 | T23: 0 | V23: 10000 | W23: 190000 | Y23: 0.02 | Z23: 16.66666667 | AA23: 0 | AB23: 16.66666667 | AC23: 16.66666667 | AD23: 0 | AE23: 66.66666667 | AF23: -65.90184918 | AG23: -1801.312024 | AH23: -66.66666667 | AI23: 2019-12-25 | AK23: 5 | AL23: 2019-12-25 | AM23: 365 | AN23: 30 | AO23: 0 | AP23: 116.6666667 | AQ23: 50 | AR23: 50 | AS23: 16.66666667 | AT23: 16.67255478 | AU23: -0.005888109235 | AV23: 9999.875301 | AW23: 0.020007327 | AY23: 10000 | AZ23: 16.66666667 | BA23: 16.66666667 | BB23: 0 | BC23: 50 | BD23: 66.66666667 | BE23: -65.90205305 | BF23: -1801.311673 | BG23: 66.66666667 | BH23: -66.66666667 | BI23: -16.50998672 | BJ23: -1950.268675 | BK23: -115.0932412 | BL23: -1652.7002 | BM23: -16.51003677 | BN23: -1950.268589 | BO23: -115.0936045 | BP23: -1652.699575 | BQ23: -16.66666667 | BS23: -116.6666667 | BU23: -16.66666667 | BW23: -116.6666667
A24: 5 | B24: 6 | F24: =IF($A$6<>"",$A$6,"") -> 2020-01-11 | G24: 2019-01-11 | H24: 365 | I24: 17 | J24: 0 | K24: 0 | L24: 0 | M24: 0 | N24: 0 | P24: =IF(AND(E24<>"",F24>=$I$14,O24>0),N24-T24,IF(AND(E24<>"",F24<$I$14,O24>0),O24,IF(AND(E24="",$S$17=1),0,IF(AND(J24>$E$5,J24<>""),0,IF(AND(J24>$E$5,ISERROR(T24)),0,IF(AND(OR(F24>$I$14,F24=EDATE(F23,1)),E24<>1),IF(AND(Q24=0,S24>0),S24,V23*$H$5/12),IF(AND(Q24=0,S24>0),S24,V23*$H$5/360*I24))))))) -> 0 | Q24: 0 | R24: 0 | S24: 0 | T24: 0 | U24: 60000 | V24: 70000 | W24: 130000 | Y24: 0.02027777778 | Z24: 9.444444444 | AA24: 0 | AB24: 0 | AC24: 0 | AD24: 60000 | AE24: 0 | AF24: 59232.4106 | AG24: -1735.410174 | AH24: 60000 | AI24: 2020-01-11 | AL24: 2020-01-11 | AM24: 365 | AN24: 17 | AO24: 0 | AP24: 0 | AQ24: 0 | AR24: 0 | AS24: 0 | AT24: 9.318364868 | AU24: -9.318364868 | AV24: 70009.19367 | AW24: 0.020007327 | AY24: 70000 | AZ24: 0 | BA24: 9.315068493 | BB24: 0 | BC24: 0 | BD24: 0 | BE24: 59232.61508 | BF24: -1735.40962 | BG24: 0 | BH24: 60000 | BI24: 59370.93278 | BJ24: -1933.758688 | BK24: 59097.74732 | BL24: -1537.606959 | BM24: 59371.13362 | BN24: -1933.758552 | BO24: 59097.95546 | BP24: -1537.60597 | BQ24: 60000 | BS24: 60000 | BU24: 60000 | BW24: 60000
A25: 5 | B25: 20 | E25: =$C$33 -> 6 | F25: =$D$33 -> 2020-01-25 | G25: 2019-01-25 | H25: 365 | I25: 14 | J25: 0 | K25: 163.8888889 | L25: 50 | M25: 50 | N25: 63.88888889 | P25: 63.88888889 | Q25: 0 | R25: 0 | S25: 63.88888889 | T25: 0 | V25: 70000 | W25: 130000 | Y25: 0.02027777778 | Z25: 54.44444444 | AA25: 0 | AB25: 63.88888889 | AC25: 63.88888889 | AD25: 0 | AE25: 113.8888889 | AF25: -112.3037594 | AG25: -60967.82078 | AH25: -113.8888889 | AI25: 2020-01-25 | AK25: 6 | AL25: 2020-01-25 | AM25: 365 | AN25: 14 | AO25: 0 | AP25: 163.8888889 | AQ25: 50 | AR25: 50 | AS25: 63.88888889 | AT25: 53.72535789 | AU25: 10.163531 | AV25: 69999.03014 | AW25: 0.020007327 | AY25: 70000 | AZ25: 63.01369863 | BA25: 53.69863014 | BB25: 0 | BC25: 50 | BD25: 113.0136986 | BE25: -111.441169 | BF25: -60968.0247 | BG25: 113.0136986 | BH25: -113.0136986 | BI25: -63.16006676 | BJ25: -61304.69147 | BK25: -161.2079399 | BL25: -60635.35428 | BM25: -62.29508977 | BN25: -61304.89218 | BO25: -160.347681 | BP25: -60635.56143 | BQ25: -63.88888889 | BS25: -163.8888889 | BU25: -63.01369863 | BW25: -163.0136986
A26: 6 | B26: 20 | E26: =$C$34 -> 7 | F26: =$D$34 -> 2020-02-25 | G26: 2019-02-25 | H26: 365 | I26: 31 | J26: 0 | K26: 216.6666667 | L26: 50 | M26: 50 | N26: 116.6666667 | P26: =(IF(AND(E26<>"",F26>=$I$14,O26>0),N26-T26,IF(AND(E26<>"",F26<$I$14,O26>0),O26,IF(AND(E26="",$S$17=1),0,IF(AND(J26>$E$5,J26<>""),0,IF(AND(J26>$E$5,ISERROR(T26)),0,IF(AND(OR(F26>$I$14,F26=EDATE(F25,1)),E26<>1),IF(AND(Q26=0,S26>0),S26,V25*$H$5/12),IF(AND(Q26=0,S26>0),S26,V25*$H$5/360*I26)))))))) -> 116.6666667 | Q26: 0 | R26: 0 | S26: 0 | T26: 0 | V26: 70000 | W26: 130000 | Y26: 0.02 | Z26: 116.6666667 | AA26: 0 | AB26: 116.6666667 | AC26: 116.6666667 | AD26: 0 | AE26: 166.6666667 | AF26: -163.9403157 | AG26: -60855.51702 | AH26: -166.6666667 | AI26: 2020-02-25 | AK26: 7 | AL26: 2020-02-25 | AM26: 365 | AN26: 31 | AO26: 0 | AP26: 216.6666667 | AQ26: 50 | AR26: 50 | AS26: 116.6666667 | AT26: 116.7077905 | AU26: -0.04112380008 | AV26: 69999.07126 | AW26: 0.020007327 | AY26: 70000 | AZ26: 116.6666667 | BA26: 116.6666667 | BB26: 0 | BC26: 50 | BD26: 166.6666667 | BE26: -163.9410407 | BF26: -60856.58353 | BG26: 166.6666667 | BH26: -166.6666667 | BI26: -115.1021155 | BJ26: -61241.5314 | BK26: -212.5019429 | BL26: -60474.14634 | BM26: -115.1026143 | BN26: -61242.59709 | BO26: -212.5029016 | BP26: -60475.21375 | BQ26: -116.6666667 | BS26: -216.6666667 | BU26: -116.6666667 | BW26: -216.6666667
A27: 7 | B27: 2 | F27: =IF($A$7<>"",$A$7,"") -> 2020-03-07 | G27: 2019-03-07 | H27: 366 | I27: 11 | J27: 0 | K27: 0 | L27: 0 | M27: 0 | N27: 0 | P27: 0 | Q27: 0 | R27: 0 | S27: 0 | T27: 0 | U27: 70000 | V27: 140000 | W27: 60000 | Y27: 0.02033333333 | Z27: 42.77777778 | AA27: 0 | AB27: 0 | AC27: 0 | AD27: 70000 | AE27: 0 | AF27: 68785.36388 | AG27: -60691.5767 | AH27: 70000 | AI27: 2020-03-07 | AL27: 2020-03-07 | AM27: 366 | AN27: 11 | AO27: 0 | AP27: 0 | AQ27: 0 | AR27: 0 | AS27: 0 | AT27: 42.09135899 | AU27: -42.09135899 | AV27: 140041.1626 | AW27: 0.020007327 | AY27: 140000 | AZ27: 0 | BA27: 42.07650273 | BB27: 0 | BC27: 0 | BD27: 0 | BE27: 68785.6867 | BF27: -60692.64249 | BG27: 0 | BH27: 70000 | BI27: 69004.14576 | BJ27: -61126.42929 | BK27: 68572.85298 | BL27: -60261.6444 | BM27: 69004.4631 | BN27: -61127.49447 | BO27: 68573.18132 | BP27: -60262.71085 | BQ27: 70000 | BS27: 70000 | BU27: 70000 | BW27: 70000
A28: 7 | B28: 20 | C28: 1 | D28: =$N$5 -> 2019-08-25 | E28: =$C$35 -> 8 | F28: =$D$35 -> 2020-03-25 | G28: 2019-03-25 | H28: 366 | I28: 18 | J28: 0 | K28: 282.7777778 | L28: 50 | M28: 50 | N28: 182.7777778 | P28: 182.7777778 | Q28: 0 | R28: =IF($S$17=1,0,IF(AND(Q28=0,Q27>0),AC28,0)) -> 0 | S28: 182.7777778 | T28: 0 | V28: 140000 | W28: 60000 | Y28: 0.02033333333 | Z28: 140 | AA28: 0 | AB28: 182.7777778 | AC28: 182.7777778 | AD28: 0 | AE28: 232.7777778 | AF28: -228.4034261 | AG28: -129476.9406 | AH28: -232.7777778 | AI28: 2020-03-25 | AK28: 8 | AL28: 2020-03-25 | AM28: 366 | AN28: 18 | AO28: 0 | AP28: 282.7777778 | AQ28: 50 | AR28: 50 | AS28: 182.7777778 | AT28: 137.7958689 | AU28: 44.98190889 | AV28: 139996.1807 | AW28: 0.020007327 | AY28: 140000 | AZ28: 179.7814208 | BA28: 137.704918 | BB28: 0 | BC28: 50 | BD28: 229.7814208 | BE28: -225.4645233 | BF28: -129478.3292 | BG28: 229.7814208 | BH28: -229.7814208 | BI28: -179.9613241 | BJ28: -130130.575 | BK28: -276.5349111 | BL28: -128834.4974 | BM28: -177.0120207 | BN28: -130131.9576 | BO28: -273.6061243 | BP28: -128835.8922 | BQ28: -182.7777778 | BS28: -282.7777778 | BU28: -179.7814208 | BW28: -279.7814208
A29: 8 | B29: 0 | C29: 2 | D29: =IF((EDATE($N$5,C28))>$K$14,"",EDATE($N$5,C28)) -> 2019-09-25 | F29: =IF($A$8<>"",$A$8,"") -> 2020-04-05 | G29: 2019-04-05 | H29: 366 | I29: 11 | J29: 0 | K29: 0 | L29: 0 | M29: 0 | N29: 0 | P29: 0 | Q29: 0 | R29: =IF($S$17=1,0,IF(AND(Q29=0,Q28>0),AC29,0)) -> 0 | S29: 0 | T29: 0 | U29: 50000 | V29: 190000 | W29: 10000 | Y29: 0.02033333333 | Z29: 85.55555556 | AA29: 0 | AB29: 0 | AC29: 0 | AD29: 50000 | AE29: 0 | AF29: 49018.79538 | AG29: -129248.5372 | AH29: 50000 | AI29: 2020-04-05 | AL29: 2020-04-05 | AM29: 366 | AN29: 11 | AO29: 0 | AP29: 0 | AQ29: 0 | AR29: 0 | AS29: 0 | AT29: 84.18153833 | AU29: -84.18153833 | AV29: 190080.3622 | AW29: 0.020007327 | AY29: 190000 | AZ29: 0 | BA29: 84.15300546 | BB29: 0 | BC29: 0 | BD29: 0 | BE29: 49019.05585 | BF29: -129252.8647 | BG29: 0 | BH29: 50000 | BI29: 49195.36327 | BJ29: -129950.6137 | BK29: 48847.35957 | BL29: -128557.9625 | BM29: 49195.61943 | BN29: -129954.9456 | BO29: 48847.62439 | BP29: -128562.286 | BQ29: 50000 | BS29: 50000 | BU29: 50000 | BW29: 50000
A30: 8 | B30: 20 | C30: 3 | D30: 2019-10-25 | E30: =$C$36 -> 9 | F30: =$D$36 -> 2020-04-25 | G30: 2019-04-25 | H30: 366 | I30: 20 | J30: 0 | K30: 396.6666667 | L30: 50 | M30: 50 | N30: 296.6666667 | P30: 296.6666667 | Q30: 0 | R30: 0 | S30: 296.6666667 | T30: 0 | V30: 190000 | W30: 10000 | Y30: 0.02033333333 | Z30: 211.1111111 | AA30: 0 | AB30: 296.6666667 | AC30: 296.6666667 | AD30: 0 | AE30: 346.6666667 | AF30: -339.3104691 | AG30: -178267.3325 | AH30: -346.6666667 | AI30: 2020-04-25 | AK30: 9 | AL30: 2020-04-25 | AM30: 366 | AN30: 20 | AO30: 0 | AP30: 396.6666667 | AQ30: 50 | AR30: 50 | AS30: 296.6666667 | AT30: 207.8142057 | AU30: 88.852461 | AV30: 189991.5098 | AW30: 0.020007327 | AY30: 190000 | AZ30: 291.8032787 | BA30: 207.6502732 | BB30: 0 | BC30: 50 | BD30: 341.8032787 | BE30: -334.552205 | BF30: -178271.9205 | BG30: 341.8032787 | BH30: -341.8032787 | BI30: -291.5035244 | BJ30: -179145.977 | BK30: -386.7802431 | BL30: -177405.322 | BM30: -286.7263938 | BN30: -179150.565 | BO30: -382.0403105 | BP30: -177409.9104 | BQ30: -296.6666667 | BS30: -396.6666667 | BU30: -291.8032787 | BW30: -391.8032787
A31: 9 | B31: 20 | C31: 4 | D31: 2019-11-25 | E31: =$C$37 -> 10 | F31: =$D$37 -> 2020-05-25 | G31: 2019-05-25 | H31: 366 | I31: 30 | J31: 0 | K31: 416.6666667 | L31: 50 | M31: 50 | N31: 316.6666667 | P31: 316.6666667 | Q31: 0 | R31: 0 | S31: 0 | T31: 0 | V31: 190000 | W31: 10000 | X31: =IF(J31>$E$5,"",IF(AND(F31=$F$14,$U$424<$G$5),"Total déblocages insuffisant",IF(AND(J31>$E$5,O31>0),"Imposible - Durée dépassée",IF(AND(E31<>"",U31>0),"Pas de déblocage à cette date",IF(AND(E31="",O31<>""),"Pas d'échéance à cette date",IF(W31<0,"Saisies incohérentes",IF(AND(E31="",U31>0),"",IF(AND(E31="",U31=""),"Saisie manquante",IF(AND(F31=$F$14,$U$424<$G$5),"Fonds mis à disposition insuffisants",""))))))))) ->  | Y31: 0.02 | Z31: 316.6666667 | AA31: 0 | AB31: 316.6666667 | AC31: 316.6666667 | AD31: 0 | AE31: 366.6666667 | AF31: -357.998069 | AG31: -177928.0221 | AH31: -366.6666667 | AI31: 2020-05-25 | AK31: 10 | AL31: 2020-05-25 | AM31: 366 | AN31: 30 | AO31: 0 | AP31: 416.6666667 | AQ31: 50 | AR31: 50 | AS31: 316.6666667 | AT31: 316.768522 | AU31: -0.1018552937 | AV31: 189991.6116 | AW31: 0.020007327 | AY31: 190000 | AZ31: 316.6666667 | BA31: 316.6666667 | BB31: 0 | BC31: 50 | BD31: 366.6666667 | BE31: -358.0003655 | BF31: -177937.3683 | BG31: 366.6666667 | BH31: -366.6666667 | BI31: -310.525078 | BJ31: -178854.4735 | BK31: -405.0990454 | BL31: -177018.5418 | BM31: -310.5270299 | BN31: -178863.8386 | BO31: -405.1016966 | BP31: -177027.8701 | BQ31: -316.6666667 | BS31: -416.6666667 | BU31: -316.6666667 | BW31: -416.6666667
A32: 10 | B32: 10 | C32: 5 | D32: 2019-12-25 | F32: =IF($A$9<>"",$A$9,"") -> 2020-06-15 | G32: 2019-06-15 | H32: 366 | I32: 21 | J32: 0 | K32: 0 | L32: 0 | M32: 0 | N32: 0 | P32: 0 | Q32: 0 | R32: 0 | S32: 0 | T32: 0 | U32: 10000 | V32: 200000 | W32: 0 | X32: =IF(J32>$E$5,"",IF(AND(F32=$F$14,$U$424<$G$5),"Total déblocages insuffisant",IF(AND(J32>$E$5,O32>0),"Imposible - Durée dépassée",IF(AND(E32<>"",U32>0),"Pas de déblocage à cette date",IF(AND(E32="",O32<>""),"Pas d'échéance à cette date",IF(W32<0,"Saisies incohérentes",IF(AND(E32="",U32>0),"",IF(AND(E32="",U32=""),"Saisie manquante",IF(AND(F32=$F$14,$U$424<$G$5),"Fonds mis à disposition insuffisants",""))))))))) ->  | Y32: 0.02033333333 | Z32: 221.6666667 | AA32: 0 | AB32: 0 | AC32: 0 | AD32: 10000 | AE32: 0 | AF32: 9747.382899 | AG32: -177570.024 | AH32: 10000 | AI32: 2020-06-15 | AL32: 2020-06-15 | AM32: 366 | AN32: 21 | AO32: 0 | AP32: 0 | AQ32: 0 | AR32: 0 | AS32: 0 | AT32: 218.1030337 | AU32: -218.1030337 | AV32: 200209.7147 | AW32: 0.020007327 | AY32: 200000 | AZ32: 0 | BA32: 218.0327869 | BB32: 0 | BC32: 0 | BD32: 0 | BE32: 9747.449766 | BF32: -177579.3679 | BG32: 0 | BH32: 10000 | BI32: 9792.733725 | BJ32: -178543.9484 | BK32: 9703.395687 | BL32: -176613.4427 | BM32: 9792.799555 | BN32: -178553.3116 | BO32: 9703.463601 | BP32: -176622.7684 | BQ32: 10000 | BS32: 10000 | BU32: 10000 | BW32: 10000
A33: 10 | B33: 20 | C33: 6 | D33: 2020-01-25 | E33: =$C$38 -> 11 | F33: =$D$38 -> 2020-06-25 | G33: 2019-06-25 | H33: 366 | I33: 10 | J33: 1 | K33: 1111.211115 | L33: 50 | M33: 50 | N33: 1011.211115 | P33: 332.7777778 | Q33: 0 | R33: 0 | S33: 332.7777778 | T33: 678.4333368 | V33: 199321.5667 | W33: 678.4333368 | Y33: 0.02033333333 | Z33: 111.1111111 | AA33: 0 | AB33: 332.7777778 | AC33: 332.7777778 | AD33: 0 | AE33: 1061.211115 | AF33: -1033.558641 | AG33: -187317.4069 | AH33: -1061.211115 | AI33: 2020-06-25 | AK33: 11 | AL33: 2020-06-25 | AM33: 366 | AN33: 10 | AO33: 1 | AP33: 1111.211115 | AQ33: 50 | AR33: 50 | AS33: 1011.211115 | AT33: 109.4442959 | AU33: 901.7668186 | AV33: 199307.9479 | AW33: 0.020007327 | AY33: 199321.5667 | AZ33: 327.3224044 | BA33: 109.2896175 | BB33: 678.4333368 | BC33: 50 | BD33: 1055.755741 | BE33: -1028.2527 | BF33: -187326.8177 | BG33: 1055.755741 | BH33: -1055.755741 | BI33: -989.5903105 | BJ33: -188336.6821 | BK33: -1077.216319 | BL33: -186316.8384 | BM33: -984.2584066 | BN33: -188346.1111 | BO33: -1071.935582 | BP33: -186326.232 | BQ33: -1011.211115 | BS33: -1111.211115 | BU33: -1005.755741 | BW33: -1105.755741
A34: 11 | B34: 20 | C34: 7 | D34: 2020-02-25 | E34: =$C$39 -> 12 | F34: =$D$39 -> 2020-07-25 | G34: 2019-07-25 | H34: 366 | I34: 30 | J34: 2 | K34: 1111.76667 | L34: 50 | M34: 50 | N34: 1011.76667 | P34: 332.2026111 | Q34: 0 | R34: 0 | S34: 0 | T34: 679.564059 | V34: 198642.0026 | W34: 1357.997396 | Y34: 0.02 | Z34: 332.2026111 | AA34: 0 | AB34: 332.2026111 | AC34: 332.2026111 | AD34: 0 | AE34: 1061.76667 | AF34: -1031.541012 | AG34: -186283.8483 | AH34: -1061.76667 | AI34: 2020-07-25 | AK34: 12 | AL34: 2020-07-25 | AM34: 366 | AN34: 30 | AO34: 2 | AP34: 1111.76667 | AQ34: 50 | AR34: 50 | AS34: 1011.76667 | AT34: 332.3016072 | AU34: 679.4650629 | AV34: 198628.4828 | AW34: 0.020007327 | AY34: 198642.0026 | AZ34: 332.2026111 | BA34: 332.2026111 | BB34: 679.564059 | BC34: 50 | BD34: 1061.76667 | BE34: -1031.549 | BF34: -186298.565 | BG34: 1061.76667 | BH34: -1061.76667 | BI34: -988.1280765 | BJ34: -187347.0918 | BK34: -1074.617438 | BL34: -185239.6221 | BM34: -988.1355742 | BN34: -187361.8527 | BO34: -1074.625928 | BP34: -185254.2964 | BQ34: -1011.76667 | BS34: -1111.76667 | BU34: -1011.76667 | BW34: -1111.76667
A35: 12 | B35: 20 | C35: 8 | D35: 2020-03-25 | E35: =$C$40 -> 13 | F35: =$D$40 -> 2020-08-25 | G35: 2019-08-25 | H35: 366 | I35: 31 | J35: 3 | K35: 1111.76667 | L35: 50 | M35: 50 | N35: 1011.76667 | P35: 331.0700043 | Q35: 0 | R35: 0 | S35: 0 | T35: 680.6966657 | V35: 197961.3059 | W35: 2038.694061 | Y35: 0.02 | Z35: 331.0700043 | AA35: 0 | AB35: 331.0700043 | AC35: 331.0700043 | AD35: 0 | AE35: 1061.76667 | AF35: -1028.988635 | AG35: -185252.3072 | AH35: -1061.76667 | AI35: 2020-08-25 | AK35: 13 | AL35: 2020-08-25 | AM35: 366 | AN35: 31 | AO35: 3 | AP35: 1111.76667 | AQ35: 50 | AR35: 50 | AS35: 1011.76667 | AT35: 331.1687506 | AU35: 680.5979195 | AV35: 197947.8849 | AW35: 0.020007327 | AY35: 197961.3059 | AZ35: 331.0700043 | BA35: 331.0700043 | BB35: 680.6966657 | BC35: 50 | BD35: 1061.76667 | BE35: -1028.997287 | BF35: -185267.016 | BG35: 1061.76667 | BH35: -1061.76667 | BI35: -986.1262291 | BJ35: -186358.9637 | BK35: -1071.489131 | BL35: -184165.0047 | BM35: -986.1343535 | BN35: -186373.7171 | BO35: -1071.498321 | BP35: -184179.6705 | BQ35: -1011.76667 | BS35: -1111.76667 | BU35: -1011.76667 | BW35: -1111.76667
A36: 13 | B36: 20 | C36: 9 | D36: 2020-04-25 | E36: =$C$41 -> 14 | F36: =$D$41 -> 2020-09-25 | G36: 2019-09-25 | H36: 366 | I36: 31 | J36: 4 | K36: 1111.76667 | L36: 50 | M36: 50 | N36: 1011.76667 | P36: 329.9355099 | Q36: 0 | R36: 0 | S36: 0 | T36: 681.8311602 | V36: 197279.4748 | W36: 2720.525222 | Y36: 0.02 | Z36: 329.9355099 | AA36: 0 | AB36: 329.9355099 | AC36: 329.9355099 | AD36: 0 | AE36: 1061.76667 | AF36: -1026.442574 | AG36: -184223.3186 | AH36: -1061.76667 | AI36: 2020-09-25 | AK36: 14 | AL36: 2020-09-25 | AM36: 366 | AN36: 31 | AO36: 4 | AP36: 1111.76667 | AQ36: 50 | AR36: 50 | AS36: 1011.76667 | AT36: 330.0340051 | AU36: 681.732665 | AV36: 197266.1522 | AW36: 0.020007327 | AY36: 197279.4748 | AZ36: 329.9355099 | BA36: 329.9355099 | BB36: 681.8311602 | BC36: 50 | BD36: 1061.76667 | BE36: -1026.451885 | BF36: -184238.0187 | BG36: 1061.76667 | BH36: -1061.76667 | BI36: -984.1284373 | BJ36: -185372.8375 | BK36: -1068.36993 | BL36: -183093.5155 | BM36: -984.1371858 | BN36: -185387.5828 | BO36: -1068.379818 | BP36: -183108.1722 | BQ36: -1011.76667 | BS36: -1111.76667 | BU36: -1011.76667 | BW36: -1111.76667
A37: 14 | B37: 20 | C37: 10 | D37: 2020-05-25 | E37: =$C$42 -> 15 | F37: =$D$42 -> 2020-10-25 | G37: 2019-10-25 | H37: 366 | I37: 30 | J37: 5 | K37: 1111.76667 | L37: 50 | M37: 50 | N37: 1011.76667 | P37: 328.7991246 | Q37: 0 | R37: 0 | S37: 0 | T37: 682.9675455 | V37: 196596.5072 | W37: 3403.492767 | Y37: 0.02 | Z37: 328.7991246 | AA37: 0 | AB37: 328.7991246 | AC37: 328.7991246 | AD37: 0 | AE37: 1061.76667 | AF37: -1023.902812 | AG37: -183196.876 | AH37: -1061.76667 | AI37: 2020-10-25 | AK37: 15 | AL37: 2020-10-25 | AM37: 366 | AN37: 30 | AO37: 5 | AP37: 1111.76667 | AQ37: 50 | AR37: 50 | AS37: 1011.76667 | AT37: 328.8973678 | AU37: 682.8693023 | AV37: 196583.2829 | AW37: 0.020007327 | AY37: 196596.5072 | AZ37: 328.7991246 | BA37: 328.7991246 | BB37: 682.9675455 | BC37: 50 | BD37: 1061.76667 | BE37: -1023.912781 | BF37: -183211.5668 | BG37: 1061.76667 | BH37: -1061.76667 | BI37: -982.1346927 | BJ37: -184388.7091 | BK37: -1065.259809 | BL37: -182025.1456 | BM37: -982.1440628 | BN37: -184403.4456 | BO37: -1065.27039 | BP37: -182039.7924 | BQ37: -1011.76667 | BS37: -1111.76667 | BU37: -1011.76667 | BW37: -1111.76667
A38: 15 | B38: 20 | C38: 11 | D38: 2020-06-25 | E38: =$C$43 -> 16 | F38: =$D$43 -> 2020-11-25 | G38: 2019-11-25 | H38: 366 | I38: 31 | J38: 6 | K38: 1111.76667 | L38: 50 | M38: 50 | N38: 1011.76667 | P38: 327.6608454 | Q38: 0 | R38: 0 | S38: 0 | T38: 684.1058247 | V38: 195912.4014 | W38: 4087.598592 | Y38: 0.02 | Z38: 327.6608454 | AA38: 0 | AB38: 327.6608454 | AC38: 327.6608454 | AD38: 0 | AE38: 1061.76667 | AF38: -1021.369335 | AG38: -182172.9732 | AH38: -1061.76667 | AI38: 2020-11-25 | AK38: 16 | AL38: 2020-11-25 | AM38: 366 | AN38: 31 | AO38: 6 | AP38: 1111.76667 | AQ38: 50 | AR38: 50 | AS38: 1011.76667 | AT38: 327.7588353 | AU38: 684.0078348 | AV38: 195899.2751 | AW38: 0.020007327 | AY38: 195912.4014 | AZ38: 327.6608454 | BA38: 327.6608454 | BB38: 684.1058247 | BC38: 50 | BD38: 1061.76667 | BE38: -1021.379957 | BF38: -182187.6541 | BG38: 1061.76667 | BH38: -1061.76667 | BI38: -980.1449873 | BJ38: -183406.5744 | BK38: -1062.158742 | BL38: -180959.8858 | BM38: -980.1549764 | BN38: -183421.3015 | BO38: -1062.170013 | BP38: -180974.522 | BQ38: -1011.76667 | BS38: -1111.76667 | BU38: -1011.76667 | BW38: -1111.76667
A39: 16 | B39: 20 | C39: 12 | D39: 2020-07-25 | E39: =$C$44 -> 17 | F39: =$D$44 -> 2020-12-25 | G39: 2019-12-25 | H39: 366 | I39: 30 | J39: 7 | K39: 1111.76667 | L39: 50 | M39: 50 | N39: 1011.76667 | P39: 326.520669 | Q39: 0 | R39: 0 | S39: 0 | T39: 685.2460011 | V39: 195227.1554 | W39: 4772.844593 | Y39: 0.02 | Z39: 326.520669 | AA39: 0 | AB39: 326.520669 | AC39: 326.520669 | AD39: 0 | AE39: 1061.76667 | AF39: -1018.842126 | AG39: -181151.6039 | AH39: -1061.76667 | AI39: 2020-12-25 | AK39: 17 | AL39: 2020-12-25 | AM39: 366 | AN39: 30 | AO39: 7 | AP39: 1111.76667 | AQ39: 50 | AR39: 50 | AS39: 1011.76667 | AT39: 326.6184046 | AU39: 685.1482655 | AV39: 195214.1268 | AW39: 0.020007327 | AY39: 195227.1554 | AZ39: 326.520669 | BA39: 326.520669 | BB39: 685.2460011 | BC39: 50 | BD39: 1061.76667 | BE39: -1018.853398 | BF39: -181166.2741 | BG39: 1061.76667 | BH39: -1061.76667 | BI39: -978.1593129 | BJ39: -182426.4294 | BK39: -1059.066703 | BL39: -179897.7271 | BM39: -978.1699184 | BN39: -182441.1466 | BO39: -1059.078658 | BP39: -179912.352 | BQ39: -1011.76667 | BS39: -1111.76667 | BU39: -1011.76667 | BW39: -1111.76667
A40: 17 | B40: 20 | C40: 13 | D40: 2020-08-25 | E40: =$C$45 -> 18 | F40: =$D$45 -> 2021-01-25 | G40: 2020-01-25 | H40: 366 | I40: 31 | J40: 8 | K40: 1111.76667 | L40: 50 | M40: 50 | N40: 1011.76667 | P40: 325.3785923 | Q40: 0 | R40: 0 | S40: 0 | T40: 686.3880777 | V40: 194540.7673 | W40: 5459.232671 | Y40: 0.02 | Z40: 325.3785923 | AA40: 0 | AB40: 325.3785923 | AC40: 325.3785923 | AD40: 0 | AE40: 1061.76667 | AF40: -1016.32117 | AG40: -180132.7618 | AH40: -1061.76667 | AI40: 2021-01-25 | AK40: 18 | AL40: 2021-01-25 | AM40: 366 | AN40: 31 | AO40: 8 | AP40: 1111.76667 | AQ40: 50 | AR40: 50 | AS40: 1011.76667 | AT40: 325.4760725 | AU40: 686.2905976 | AV40: 194527.8362 | AW40: 0.020007327 | AY40: 194540.7673 | AZ40: 325.3785923 | BA40: 325.3785923 | BB40: 686.3880777 | BC40: 50 | BD40: 1061.76667 | BE40: -1016.33309 | BF40: -180147.4207 | BG40: 1061.76667 | BH40: -1061.76667 | BI40: -976.1776612 | BJ40: -181448.2701 | BK40: -1055.983665 | BL40: -178838.6604 | BM40: -976.1888806 | BN40: -181462.9766 | BO40: -1055.996301 | BP40: -178853.2733 | BQ40: -1011.76667 | BS40: -1111.76667 | BU40: -1011.76667 | BW40: -1111.76667
A41: 18 | B41: 20 | C41: 14 | D41: 2020-09-25 | E41: =$C$46 -> 19 | F41: =$D$46 -> 2021-02-25 | G41: 2020-02-25 | H41: 366 | I41: 31 | J41: 9 | K41: 1111.76667 | L41: 50 | M41: 50 | N41: 1011.76667 | P41: 324.2346122 | Q41: 0 | R41: 0 | S41: 0 | T41: 687.5320579 | V41: 193853.2353 | W41: 6146.764729 | Y41: 0.02 | Z41: 324.2346122 | AA41: 0 | AB41: 324.2346122 | AC41: 324.2346122 | AD41: 0 | AE41: 1061.76667 | AF41: -1013.806452 | AG41: -179116.4406 | AH41: -1061.76667 | AI41: 2021-02-25 | AK41: 19 | AL41: 2021-02-25 | AM41: 366 | AN41: 31 | AO41: 9 | AP41: 1111.76667 | AQ41: 50 | AR41: 50 | AS41: 1011.76667 | AT41: 324.3318358 | AU41: 687.4348343 | AV41: 193840.4014 | AW41: 0.020007327 | AY41: 193853.2353 | AZ41: 324.2346122 | BA41: 324.2346122 | BB41: 687.5320579 | BC41: 50 | BD41: 1061.76667 | BE41: -1013.819016 | BF41: -179131.0876 | BG41: 1061.76667 | BH41: -1061.76667 | BI41: -974.2000241 | BJ41: -180472.0924 | BK41: -1052.909602 | BL41: -177782.6767 | BM41: -974.2118549 | BN41: -180486.7878 | BO41: -1052.922915 | BP41: -177797.277 | BQ41: -1011.76667 | BS41: -1111.76667 | BU41: -1011.76667 | BW41: -1111.76667
A42: 19 | B42: 20 | C42: 15 | D42: 2020-10-25 | E42: =$C$47 -> 20 | F42: =$D$47 -> 2021-03-25 | G42: 2020-03-25 | H42: 365 | I42: 28 | J42: 10 | K42: 1111.76667 | L42: 50 | M42: 50 | N42: 1011.76667 | P42: 323.0887255 | Q42: 0 | R42: 0 | S42: 0 | T42: 688.6779446 | V42: 193164.5573 | W42: 6835.442673 | Y42: 0.02 | Z42: 323.0887255 | AA42: 0 | AB42: 323.0887255 | AC42: 323.0887255 | AD42: 0 | AE42: 1061.76667 | AF42: -1011.297956 | AG42: -178102.6341 | AH42: -1061.76667 | AI42: 2021-03-25 | AK42: 20 | AL42: 2021-03-25 | AM42: 365 | AN42: 28 | AO42: 10 | AP42: 1111.76667 | AQ42: 50 | AR42: 50 | AS42: 1011.76667 | AT42: 323.1856913 | AU42: 688.5809787 | AV42: 193151.8204 | AW42: 0.020007327 | AY42: 193164.5573 | AZ42: 323.0887255 | BA42: 323.0887255 | BB42: 688.6779446 | BC42: 50 | BD42: 1061.76667 | BE42: -1011.311161 | BF42: -178117.2686 | BG42: 1061.76667 | BH42: -1061.76667 | BI42: -972.2263936 | BJ42: -179497.8924 | BK42: -1049.844488 | BL42: -176729.7671 | BM42: -972.2388332 | BN42: -179512.5759 | BO42: -1049.858473 | BP42: -176744.3541 | BQ42: -1011.76667 | BS42: -1111.76667 | BU42: -1011.76667 | BW42: -1111.76667
A43: 20 | B43: 20 | C43: 16 | D43: 2020-11-25 | E43: =$C$48 -> 21 | F43: =$D$48 -> 2021-04-25 | G43: 2020-04-25 | H43: 365 | I43: 31 | J43: 11 | K43: 1111.76667 | L43: 50 | M43: 50 | N43: 1011.76667 | P43: 321.9409289 | Q43: 0 | R43: 0 | S43: 0 | T43: 689.8257412 | V43: 192474.7316 | W43: 7525.268414 | Y43: 0.02 | Z43: 321.9409289 | AA43: 0 | AB43: 321.9409289 | AC43: 321.9409289 | AD43: 0 | AE43: 1061.76667 | AF43: -1008.795667 | AG43: -177091.3362 | AH43: -1061.76667 | AI43: 2021-04-25 | AK43: 21 | AL43: 2021-04-25 | AM43: 365 | AN43: 31 | AO43: 11 | AP43: 1111.76667 | AQ43: 50 | AR43: 50 | AS43: 1011.76667 | AT43: 322.0376359 | AU43: 689.7290341 | AV43: 192462.0914 | AW43: 0.020007327 | AY43: 192474.7316 | AZ43: 321.9409289 | BA43: 321.9409289 | BB43: 689.8257412 | BC43: 50 | BD43: 1061.76667 | BE43: -1008.809509 | BF43: -177105.9574 | BG43: 1061.76667 | BH43: -1061.76667 | BI43: -970.2567614 | BJ43: -178525.666 | BK43: -1046.788297 | BL43: -175679.9226 | BM43: -970.2698073 | BN43: -178540.3371 | BO43: -1046.802951 | BP43: -175694.4956 | BQ43: -1011.76667 | BS43: -1111.76667 | BU43: -1011.76667 | BW43: -1111.76667
A44: 21 | B44: 20 | C44: 17 | D44: 2020-12-25 | E44: =$C$49 -> 22 | F44: =$D$49 -> 2021-05-25 | G44: 2020-05-25 | H44: 365 | I44: 30 | J44: 12 | K44: 1111.76667 | L44: 50 | M44: 50 | N44: 1011.76667 | P44: 320.7912193 | Q44: 0 | R44: 0 | S44: 0 | T44: 690.9754508 | V44: 191783.7561 | W44: 8216.243865 | Y44: 0.02 | Z44: 320.7912193 | AA44: 0 | AB44: 320.7912193 | AC44: 320.7912193 | AD44: 0 | AE44: 1061.76667 | AF44: -1006.29957 | AG44: -176082.5405 | AH44: -1061.76667 | AI44: 2021-05-25 | AK44: 22 | AL44: 2021-05-25 | AM44: 365 | AN44: 30 | AO44: 12 | AP44: 1111.76667 | AQ44: 50 | AR44: 50 | AS44: 1011.76667 | AT44: 320.8876664 | AU44: 690.8790037 | AV44: 191771.2124 | AW44: 0.020007327 | AY44: 191783.7561 | AZ44: 320.7912193 | BA44: 320.7912193 | BB44: 690.9754508 | BC44: 50 | BD44: 1061.76667 | BE44: -1006.314046 | BF44: -176097.1479 | BG44: 1061.76667 | BH44: -1061.76667 | BI44: -968.2911195 | BJ44: -177555.4092 | BK44: -1043.741002 | BL44: -174633.1343 | BM44: -968.3047692 | BN44: -177570.0673 | BO44: -1043.756321 | BP44: -174647.6927 | BQ44: -1011.76667 | BS44: -1111.76667 | BU44: -1011.76667 | BW44: -1111.76667
A45: 22 | B45: 20 | C45: 18 | D45: 2021-01-25 | E45: =$C$50 -> 23 | F45: =$D$50 -> 2021-06-25 | G45: 2020-06-25 | H45: 365 | I45: 31 | J45: 13 | K45: 1111.76667 | L45: 50 | M45: 50 | N45: 1011.76667 | P45: 319.6395936 | Q45: 0 | R45: 0 | S45: 0 | T45: 692.1270765 | V45: 191091.6291 | W45: 8908.370942 | Y45: 0.02 | Z45: 319.6395936 | AA45: 0 | AB45: 319.6395936 | AC45: 319.6395936 | AD45: 0 | AE45: 1061.76667 | AF45: -1003.809649 | AG45: -175076.2409 | AH45: -1061.76667 | AI45: 2021-06-25 | AK45: 23 | AL45: 2021-06-25 | AM45: 365 | AN45: 31 | AO45: 13 | AP45: 1111.76667 | AQ45: 50 | AR45: 50 | AS45: 1011.76667 | AT45: 319.7357796 | AU45: 692.0308905 | AV45: 191079.1815 | AW45: 0.020007327 | AY45: 191091.6291 | AZ45: 319.6395936 | BA45: 319.6395936 | BB45: 692.1270765 | BC45: 50 | BD45: 1061.76667 | BE45: -1003.824756 | BF45: -175090.8339 | BG45: 1061.76667 | BH45: -1061.76667 | BI45: -966.3294597 | BJ45: -176587.1181 | BK45: -1040.702579 | BL45: -173589.3933 | BM45: -966.3437108 | BN45: -176601.7625 | BO45: -1040.718558 | BP45: -173603.9364 | BQ45: -1011.76667 | BS45: -1111.76667 | BU45: -1011.76667 | BW45: -1111.76667
A46: 23 | B46: 20 | C46: 19 | D46: 2021-02-25 | E46: =$C$51 -> 24 | F46: =$D$51 -> 2021-07-25 | G46: 2020-07-25 | H46: 365 | I46: 30 | J46: 14 | K46: 1111.76667 | L46: 50 | M46: 50 | N46: 1011.76667 | P46: 318.4860484 | Q46: 0 | R46: 0 | S46: 0 | T46: 693.2806217 | V46: 190398.3484 | W46: 9601.651563 | Y46: 0.02 | Z46: 318.4860484 | AA46: 0 | AB46: 318.4860484 | AC46: 318.4860484 | AD46: 0 | AE46: 1061.76667 | AF46: -1001.325888 | AG46: -174072.4313 | AH46: -1061.76667 | AI46: 2021-07-25 | AK46: 24 | AL46: 2021-07-25 | AM46: 365 | AN46: 30 | AO46: 14 | AP46: 1111.76667 | AQ46: 50 | AR46: 50 | AS46: 1011.76667 | AT46: 318.5819722 | AU46: 693.1846979 | AV46: 190385.9968 | AW46: 0.020007327 | AY46: 190398.3484 | AZ46: 318.4860484 | BA46: 318.4860484 | BB46: 693.2806217 | BC46: 50 | BD46: 1061.76667 | BE46: -1001.341623 | BF46: -174087.0091 | BG46: 1061.76667 | BH46: -1061.76667 | BI46: -964.3717741 | BJ46: -175620.7886 | BK46: -1037.673 | BL46: -172548.6907 | BM46: -964.3866241 | BN46: -175635.4188 | BO46: -1037.689636 | BP46: -172563.2178 | BQ46: -1011.76667 | BS46: -1111.76667 | BU46: -1011.76667 | BW46: -1111.76667
A47: 24 | B47: 20 | C47: 20 | D47: 2021-03-25 | E47: =$C$52 -> 25 | F47: =$D$52 -> 2021-08-25 | G47: 2020-08-25 | H47: 365 | I47: 31 | J47: 15 | K47: 1111.76667 | L47: 50 | M47: 50 | N47: 1011.76667 | P47: 317.3305807 | Q47: 0 | R47: 0 | S47: 0 | T47: 694.4360894 | V47: 189703.9123 | W47: 10296.08765 | Y47: 0.02 | Z47: 317.3305807 | AA47: 0 | AB47: 317.3305807 | AC47: 317.3305807 | AD47: 0 | AE47: 1061.76667 | AF47: -998.8482736 | AG47: -173071.1054 | AH47: -1061.76667 | AI47: 2021-08-25 | AK47: 25 | AL47: 2021-08-25 | AM47: 365 | AN47: 31 | AO47: 15 | AP47: 1111.76667 | AQ47: 50 | AR47: 50 | AS47: 1011.76667 | AT47: 317.4262411 | AU47: 694.340429 | AV47: 189691.6563 | AW47: 0.020007327 | AY47: 189703.9123 | AZ47: 317.3305807 | BA47: 317.3305807 | BB47: 694.4360894 | BC47: 50 | BD47: 1061.76667 | BE47: -998.8646328 | BF47: -173085.6675 | BG47: 1061.76667 | BH47: -1061.76667 | BI47: -962.4180546 | BJ47: -174656.4169 | BK47: -1034.652241 | BL47: -171511.0177 | BM47: -962.4335009 | BN47: -174671.0322 | BO47: -1034.66953 | BP47: -171525.5282 | BQ47: -1011.76667 | BS47: -1111.76667 | BU47: -1011.76667 | BW47: -1111.76667
A48: 25 | B48: 20 | C48: 21 | D48: 2021-04-25 | E48: =$C$53 -> 26 | F48: =$D$53 -> 2021-09-25 | G48: 2020-09-25 | H48: 365 | I48: 31 | J48: 16 | K48: 1111.76667 | L48: 50 | M48: 50 | N48: 1011.76667 | P48: 316.1731872 | Q48: 0 | R48: 0 | S48: 0 | T48: 695.5934828 | V48: 189008.3189 | W48: 10991.68114 | Y48: 0.02 | Z48: 316.1731872 | AA48: 0 | AB48: 316.1731872 | AC48: 316.1731872 | AD48: 0 | AE48: 1061.76667 | AF48: -996.3767893 | AG48: -172072.2571 | AH48: -1061.76667 | AI48: 2021-09-25 | AK48: 26 | AL48: 2021-09-25 | AM48: 365 | AN48: 31 | AO48: 16 | AP48: 1111.76667 | AQ48: 50 | AR48: 50 | AS48: 1011.76667 | AT48: 316.2685831 | AU48: 695.498087 | AV48: 188996.1583 | AW48: 0.020007327 | AY48: 189008.3189 | AZ48: 316.1731872 | BA48: 316.1731872 | BB48: 695.5934828 | BC48: 50 | BD48: 1061.76667 | BE48: -996.3937699 | BF48: -172086.8029 | BG48: 1061.76667 | BH48: -1061.76667 | BI48: -960.4682931 | BJ48: -173693.9988 | BK48: -1031.640276 | BL48: -170476.3655 | BM48: -960.4843333 | BN48: -173708.5987 | BO48: -1031.658213 | BP48: -170490.8586 | BQ48: -1011.76667 | BS48: -1111.76667 | BU48: -1011.76667 | BW48: -1111.76667
A49: 26 | B49: 20 | C49: 22 | D49: 2021-05-25 | E49: =$C$54 -> 27 | F49: =$D$54 -> 2021-10-25 | G49: 2020-10-25 | H49: 365 | I49: 30 | J49: 17 | K49: 1111.76667 | L49: 50 | M49: 50 | N49: 1011.76667 | P49: 315.0138648 | Q49: 0 | R49: 0 | S49: 0 | T49: 696.7528053 | V49: 188311.5661 | W49: 11688.43394 | Y49: 0.02 | Z49: 315.0138648 | AA49: 0 | AB49: 315.0138648 | AC49: 315.0138648 | AD49: 0 | AE49: 1061.76667 | AF49: -993.9114204 | AG49: -171075.8803 | AH49: -1061.76667 | AI49: 2021-10-25 | AK49: 27 | AL49: 2021-10-25 | AM49: 365 | AN49: 30 | AO49: 17 | AP49: 1111.76667 | AQ49: 50 | AR49: 50 | AS49: 1011.76667 | AT49: 315.108995 | AU49: 696.6576751 | AV49: 188299.5006 | AW49: 0.020007327 | AY49: 188311.5661 | AZ49: 315.0138648 | BA49: 315.0138648 | BB49: 696.7528053 | BC49: 50 | BD49: 1061.76667 | BE49: -993.9290191 | BF49: -171090.4091 | BG49: 1061.76667 | BH49: -1061.76667 | BI49: -958.5224817 | BJ49: -172733.5305 | BK49: -1028.637079 | BL49: -169444.7252 | BM49: -958.5391132 | BN49: -172748.1143 | BO49: -1028.655661 | BP49: -169459.2004 | BQ49: -1011.76667 | BS49: -1111.76667 | BU49: -1011.76667 | BW49: -1111.76667
A50: 27 | B50: 20 | C50: 23 | D50: 2021-06-25 | E50: =$C$55 -> 28 | F50: =$D$55 -> 2021-11-25 | G50: 2020-11-25 | H50: 365 | I50: 31 | J50: 18 | K50: 1111.76667 | L50: 50 | M50: 50 | N50: 1011.76667 | P50: 313.8526101 | Q50: 0 | R50: 0 | S50: 0 | T50: 697.91406 | V50: 187613.652 | W50: 12386.348 | Y50: 0.02 | Z50: 313.8526101 | AA50: 0 | AB50: 313.8526101 | AC50: 313.8526101 | AD50: 0 | AE50: 1061.76667 | AF50: -991.4521516 | AG50: -170081.9689 | AH50: -1061.76667 | AI50: 2021-11-25 | AK50: 28 | AL50: 2021-11-25 | AM50: 365 | AN50: 31 | AO50: 18 | AP50: 1111.76667 | AQ50: 50 | AR50: 50 | AS50: 1011.76667 | AT50: 313.9474735 | AU50: 697.8191966 | AV50: 187601.6814 | AW50: 0.020007327 | AY50: 187613.652 | AZ50: 313.8526101 | BA50: 313.8526101 | BB50: 697.91406 | BC50: 50 | BD50: 1061.76667 | BE50: -991.4703653 | BF50: -170096.4801 | BG50: 1061.76667 | BH50: -1061.76667 | BI50: -956.5806122 | BJ50: -171775.008 | BK50: -1025.642624 | BL50: -168416.0881 | BM50: -956.5978327 | BN50: -171789.5752 | BO50: -1025.661847 | BP50: -168430.5448 | BQ50: -1011.76667 | BS50: -1111.76667 | BU50: -1011.76667 | BW50: -1111.76667
A51: 28 | B51: 20 | C51: 24 | D51: 2021-07-25 | E51: =$C$56 -> 29 | F51: =$D$56 -> 2021-12-25 | G51: 2020-12-25 | H51: 365 | I51: 30 | J51: 19 | K51: 1111.76667 | L51: 50 | M51: 50 | N51: 1011.76667 | P51: 312.68942 | Q51: 0 | R51: 0 | S51: 0 | T51: 699.0772501 | V51: 186914.5747 | W51: 13085.42525 | Y51: 0.02 | Z51: 312.68942 | AA51: 0 | AB51: 312.68942 | AC51: 312.68942 | AD51: 0 | AE51: 1061.76667 | AF51: -988.9989678 | AG51: -169090.5168 | AH51: -1061.76667 | AI51: 2021-12-25 | AK51: 29 | AL51: 2021-12-25 | AM51: 365 | AN51: 30 | AO51: 19 | AP51: 1111.76667 | AQ51: 50 | AR51: 50 | AS51: 1011.76667 | AT51: 312.7840154 | AU51: 698.9826547 | AV51: 186902.6987 | AW51: 0.020007327 | AY51: 186914.5747 | AZ51: 312.68942 | BA51: 312.68942 | BB51: 699.0772501 | BC51: 50 | BD51: 1061.76667 | BE51: -989.0177934 | BF51: -169105.0097 | BG51: 1061.76667 | BH51: -1061.76667 | BI51: -954.6426768 | BJ51: -170818.4274 | BK51: -1022.656886 | BL51: -167390.4455 | BM51: -954.6604838 | BN51: -170832.9774 | BO51: -1022.676747 | BP51: -167404.8829 | BQ51: -1011.76667 | BS51: -1111.76667 | BU51: -1011.76667 | BW51: -1111.76667
A52: 29 | B52: 20 | C52: 25 | D52: 2021-08-25 | E52: =$C$57 -> 30 | F52: =$D$57 -> 2022-01-25 | G52: 2021-01-25 | H52: 365 | I52: 31 | J52: 20 | K52: 1111.76667 | L52: 50 | M52: 50 | N52: 1011.76667 | P52: 311.5242912 | Q52: 0 | R52: 0 | S52: 0 | T52: 700.2423788 | V52: 186214.3324 | W52: 13785.66763 | Y52: 0.02 | Z52: 311.5242912 | AA52: 0 | AB52: 311.5242912 | AC52: 311.5242912 | AD52: 0 | AE52: 1061.76667 | AF52: -986.551854 | AG52: -168101.5178 | AH52: -1061.76667 | AI52: 2022-01-25 | AK52: 30 | AL52: 2022-01-25 | AM52: 365 | AN52: 31 | AO52: 20 | AP52: 1111.76667 | AQ52: 50 | AR52: 50 | AS52: 1011.76667 | AT52: 311.6186176 | AU52: 700.1480525 | AV52: 186202.5507 | AW52: 0.020007327 | AY52: 186214.3324 | AZ52: 311.5242912 | BA52: 311.5242912 | BB52: 700.2423788 | BC52: 50 | BD52: 1061.76667 | BE52: -986.5712883 | BF52: -168115.9919 | BG52: 1061.76667 | BH52: -1061.76667 | BI52: -952.7086674 | BJ52: -169863.7848 | BK52: -1019.679841 | BL52: -166367.7886 | BM52: -952.7270585 | BN52: -169878.3169 | BO52: -1019.700334 | BP52: -166382.2062 | BQ52: -1011.76667 | BS52: -1111.76667 | BU52: -1011.76667 | BW52: -1111.76667
A53: 30 | B53: 20 | C53: 26 | D53: 2021-09-25 | E53: =$C$58 -> 31 | F53: =$D$58 -> 2022-02-25 | G53: 2021-02-25 | H53: 365 | I53: 31 | J53: 21 | K53: 1111.76667 | L53: 50 | M53: 50 | N53: 1011.76667 | P53: 310.3572206 | Q53: 0 | R53: 0 | S53: 0 | T53: 701.4094495 | V53: 185512.9229 | W53: 14487.07708 | Y53: 0.02 | Z53: 310.3572206 | AA53: 0 | AB53: 310.3572206 | AC53: 310.3572206 | AD53: 0 | AE53: 1061.76667 | AF53: -984.1107952 | AG53: -167114.9659 | AH53: -1061.76667 | AI53: 2022-02-25 | AK53: 31 | AL53: 2022-02-25 | AM53: 365 | AN53: 31 | AO53: 21 | AP53: 1111.76667 | AQ53: 50 | AR53: 50 | AS53: 1011.76667 | AT53: 310.4512766 | AU53: 701.3153935 | AV53: 185501.2353 | AW53: 0.020007327 | AY53: 185512.9229 | AZ53: 310.3572206 | BA53: 310.3572206 | BB53: 701.4094495 | BC53: 50 | BD53: 1061.76667 | BE53: -984.1308351 | BF53: -167129.4206 | BG53: 1061.76667 | BH53: -1061.76667 | BI53: -950.7785762 | BJ53: -168911.0761 | BK53: -1016.711461 | BL53: -165348.1088 | BM53: -950.7975488 | BN53: -168925.5898 | BO53: -1016.732584 | BP53: -165362.5058 | BQ53: -1011.76667 | BS53: -1111.76667 | BU53: -1011.76667 | BW53: -1111.76667
A54: 31 | B54: 20 | C54: 27 | D54: 2021-10-25 | E54: =$C$59 -> 32 | F54: =$D$59 -> 2022-03-25 | G54: 2021-03-25 | H54: 365 | I54: 28 | J54: 22 | K54: 1111.76667 | L54: 50 | M54: 50 | N54: 1011.76667 | P54: 309.1882049 | Q54: 0 | R54: 0 | S54: 0 | T54: 702.5784652 | V54: 184810.3445 | W54: 15189.65554 | Y54: 0.02 | Z54: 309.1882049 | AA54: 0 | AB54: 309.1882049 | AC54: 309.1882049 | AD54: 0 | AE54: 1061.76667 | AF54: -981.6757764 | AG54: -166130.8552 | AH54: -1061.76667 | AI54: 2022-03-25 | AK54: 32 | AL54: 2022-03-25 | AM54: 365 | AN54: 28 | AO54: 22 | AP54: 1111.76667 | AQ54: 50 | AR54: 50 | AS54: 1011.76667 | AT54: 309.2819894 | AU54: 702.4846807 | AV54: 184798.7506 | AW54: 0.020007327 | AY54: 184810.3445 | AZ54: 309.1882049 | BA54: 309.1882049 | BB54: 702.5784652 | BC54: 50 | BD54: 1061.76667 | BE54: -981.6964188 | BF54: -166145.2898 | BG54: 1061.76667 | BH54: -1061.76667 | BI54: -948.8523951 | BJ54: -167960.2975 | BK54: -1013.751723 | BL54: -164331.3973 | BM54: -948.8719469 | BN54: -167974.7923 | BO54: -1013.773472 | BP54: -164345.7732 | BQ54: -1011.76667 | BS54: -1111.76667 | BU54: -1011.76667 | BW54: -1111.76667
A55: 32 | B55: 20 | C55: 28 | D55: 2021-11-25 | E55: =$C$60 -> 33 | F55: =$D$60 -> 2022-04-25 | G55: 2021-04-25 | H55: 365 | I55: 31 | J55: 23 | K55: 1111.76667 | L55: 50 | M55: 50 | N55: 1011.76667 | P55: 308.0172408 | Q55: 0 | R55: 0 | S55: 0 | T55: 703.7494293 | V55: 184106.595 | W55: 15893.40497 | Y55: 0.02 | Z55: 308.0172408 | AA55: 0 | AB55: 308.0172408 | AC55: 308.0172408 | AD55: 0 | AE55: 1061.76667 | AF55: -979.2467827 | AG55: -165149.1794 | AH55: -1061.76667 | AI55: 2022-04-25 | AK55: 33 | AL55: 2022-04-25 | AM55: 365 | AN55: 31 | AO55: 23 | AP55: 1111.76667 | AQ55: 50 | AR55: 50 | AS55: 1011.76667 | AT55: 308.1107527 | AU55: 703.6559174 | AV55: 184095.0947 | AW55: 0.020007327 | AY55: 184106.595 | AZ55: 308.0172408 | BA55: 308.0172408 | BB55: 703.7494293 | BC55: 50 | BD55: 1061.76667 | BE55: -979.2680244 | BF55: -165163.5934 | BG55: 1061.76667 | BH55: -1061.76667 | BI55: -946.9301163 | BJ55: -167011.4451 | BK55: -1010.800601 | BL55: -163317.6456 | BM55: -946.9502448 | BN55: -167025.9203 | BO55: -1010.822971 | BP55: -163331.9998 | BQ55: -1011.76667 | BS55: -1111.76667 | BU55: -1011.76667 | BW55: -1111.76667
A56: 33 | B56: 20 | C56: 29 | D56: 2021-12-25 | E56: =$C$61 -> 34 | F56: =$D$61 -> 2022-05-25 | G56: 2021-05-25 | H56: 365 | I56: 30 | J56: 24 | K56: 1111.76667 | L56: 50 | M56: 50 | N56: 1011.76667 | P56: 306.844325 | Q56: 0 | R56: 0 | S56: 0 | T56: 704.922345 | V56: 183401.6727 | W56: 16598.32732 | Y56: 0.02 | Z56: 306.844325 | AA56: 0 | AB56: 306.844325 | AC56: 306.844325 | AD56: 0 | AE56: 1061.76667 | AF56: -976.8237991 | AG56: -164169.9326 | AH56: -1061.76667 | AI56: 2022-05-25 | AK56: 34 | AL56: 2022-05-25 | AM56: 365 | AN56: 30 | AO56: 24 | AP56: 1111.76667 | AQ56: 50 | AR56: 50 | AS56: 1011.76667 | AT56: 306.9375632 | AU56: 704.8291069 | AV56: 183390.2656 | AW56: 0.020007327 | AY56: 183401.6727 | AZ56: 306.844325 | BA56: 306.844325 | BB56: 704.922345 | BC56: 50 | BD56: 1061.76667 | BE56: -976.8456371 | BF56: -164184.3254 | BG56: 1061.76667 | BH56: -1061.76667 | BI56: -945.0117318 | BJ56: -166064.515 | BK56: -1007.85807 | BL56: -162306.845 | BM56: -945.0324347 | BN56: -166078.9701 | BO56: -1007.881058 | BP56: -162321.1768 | BQ56: -1011.76667 | BS56: -1111.76667 | BU56: -1011.76667 | BW56: -1111.76667
A57: 34 | B57: 20 | C57: 30 | D57: 2022-01-25 | E57: =$C$62 -> 35 | F57: =$D$62 -> 2022-06-25 | G57: 2021-06-25 | H57: 365 | I57: 31 | J57: 25 | K57: 1111.76667 | L57: 50 | M57: 50 | N57: 1011.76667 | P57: 305.6694545 | Q57: 0 | R57: 0 | S57: 0 | T57: 706.0972156 | V57: 182695.5755 | W57: 17304.42453 | Y57: 0.02 | Z57: 305.6694545 | AA57: 0 | AB57: 305.6694545 | AC57: 305.6694545 | AD57: 0 | AE57: 1061.76667 | AF57: -974.4068107 | AG57: -163193.1088 | AH57: -1061.76667 | AI57: 2022-06-25 | AK57: 35 | AL57: 2022-06-25 | AM57: 365 | AN57: 31 | AO57: 25 | AP57: 1111.76667 | AQ57: 50 | AR57: 50 | AS57: 1011.76667 | AT57: 305.7624177 | AU57: 706.0042524 | AV57: 182684.2613 | AW57: 0.020007327 | AY57: 182695.5755 | AZ57: 305.6694545 | BA57: 305.6694545 | BB57: 706.0972156 | BC57: 50 | BD57: 1061.76667 | BE57: -974.429242 | BF57: -163207.4797 | BG57: 1061.76667 | BH57: -1061.76667 | BI57: -943.0972337 | BJ57: -165119.5033 | BK57: -1004.924105 | BL57: -161298.9869 | BM57: -943.1185086 | BN57: -165133.9377 | BO57: -1004.947707 | BP57: -161313.2957 | BQ57: -1011.76667 | BS57: -1111.76667 | BU57: -1011.76667 | BW57: -1111.76667
A58: 35 | B58: 20 | C58: 31 | D58: 2022-02-25 | E58: =$C$63 -> 36 | F58: =$D$63 -> 2022-07-25 | G58: 2021-07-25 | H58: 365 | I58: 30 | J58: 26 | K58: 1111.76667 | L58: 50 | M58: 50 | N58: 1011.76667 | P58: 304.4926258 | Q58: 0 | R58: 0 | S58: 0 | T58: 707.2740443 | V58: 181988.3014 | W58: 18011.69858 | Y58: 0.02 | Z58: 304.4926258 | AA58: 0 | AB58: 304.4926258 | AC58: 304.4926258 | AD58: 0 | AE58: 1061.76667 | AF58: -971.9958028 | AG58: -162218.702 | AH58: -1061.76667 | AI58: 2022-07-25 | AK58: 36 | AL58: 2022-07-25 | AM58: 365 | AN58: 30 | AO58: 26 | AP58: 1111.76667 | AQ58: 50 | AR58: 50 | AS58: 1011.76667 | AT58: 304.5853128 | AU58: 707.1813573 | AV58: 181977.08 | AW58: 0.020007327 | AY58: 181988.3014 | AZ58: 304.4926258 | BA58: 304.4926258 | BB58: 707.2740443 | BC58: 50 | BD58: 1061.76667 | BE58: -972.0188242 | BF58: -162233.0505 | BG58: 1061.76667 | BH58: -1061.76667 | BI58: -941.1866143 | BJ58: -164176.406 | BK58: -1001.998681 | BL58: -160294.0628 | BM58: -941.2084586 | BN58: -164190.8192 | BO58: -1002.022893 | BP58: -160308.348 | BQ58: -1011.76667 | BS58: -1111.76667 | BU58: -1011.76667 | BW58: -1111.76667
A59: 36 | B59: 20 | C59: 32 | D59: 2022-03-25 | E59: =$C$64 -> 37 | F59: =$D$64 -> 2022-08-25 | G59: 2021-08-25 | H59: 365 | I59: 31 | J59: 27 | K59: 1111.76667 | L59: 50 | M59: 50 | N59: 1011.76667 | P59: 303.3138357 | Q59: 0 | R59: 0 | S59: 0 | T59: 708.4528344 | V59: 181279.8486 | W59: 18720.15141 | Y59: 0.02 | Z59: 303.3138357 | AA59: 0 | AB59: 303.3138357 | AC59: 303.3138357 | AD59: 0 | AE59: 1061.76667 | AF59: -969.5907606 | AG59: -161246.7062 | AH59: -1061.76667 | AI59: 2022-08-25 | AK59: 37 | AL59: 2022-08-25 | AM59: 365 | AN59: 31 | AO59: 27 | AP59: 1111.76667 | AQ59: 50 | AR59: 50 | AS59: 1011.76667 | AT59: 303.4062455 | AU59: 708.3604246 | AV59: 181268.7195 | AW59: 0.020007327 | AY59: 181279.8486 | AZ59: 303.3138357 | BA59: 303.3138357 | BB59: 708.4528344 | BC59: 50 | BD59: 1061.76667 | BE59: -969.614369 | BF59: -161261.0316 | BG59: 1061.76667 | BH59: -1061.76667 | BI59: -939.2798655 | BJ59: -163235.2194 | BK59: -999.0817728 | BL59: -159292.0641 | BM59: -939.302277 | BN59: -163249.6107 | BO59: -999.106592 | BP59: -159306.3251 | BQ59: -1011.76667 | BS59: -1111.76667 | BU59: -1011.76667 | BW59: -1111.76667
A60: 37 | B60: 20 | C60: 33 | D60: 2022-04-25 | E60: =$C$65 -> 38 | F60: =$D$65 -> 2022-09-25 | G60: 2021-09-25 | H60: 365 | I60: 31 | J60: 28 | K60: 1111.76667 | L60: 50 | M60: 50 | N60: 1011.76667 | P60: 302.133081 | Q60: 0 | R60: 0 | S60: 0 | T60: 709.6335891 | V60: 180570.215 | W60: 19429.785 | Y60: 0.02 | Z60: 302.133081 | AA60: 0 | AB60: 302.133081 | AC60: 302.133081 | AD60: 0 | AE60: 1061.76667 | AF60: -967.1916692 | AG60: -160277.1154 | AH60: -1061.76667 | AI60: 2022-09-25 | AK60: 38 | AL60: 2022-09-25 | AM60: 365 | AN60: 31 | AO60: 28 | AP60: 1111.76667 | AQ60: 50 | AR60: 50 | AS60: 1011.76667 | AT60: 302.2252122 | AU60: 709.5414579 | AV60: 180559.1781 | AW60: 0.020007327 | AY60: 180570.215 | AZ60: 302.133081 | BA60: 302.133081 | BB60: 709.6335891 | BC60: 50 | BD60: 1061.76667 | BE60: -967.2158616 | BF60: -160291.4173 | BG60: 1061.76667 | BH60: -1061.76667 | BI60: -937.3769797 | BJ60: -162295.9396 | BK60: -996.1733563 | BL60: -158292.9824 | BM60: -937.3999559 | BN60: -162310.3084 | BO60: -996.1987783 | BP60: -158307.2186 | BQ60: -1011.76667 | BS60: -1111.76667 | BU60: -1011.76667 | BW60: -1111.76667
A61: 38 | B61: 20 | C61: 34 | D61: 2022-05-25 | E61: =$C$66 -> 39 | F61: =$D$66 -> 2022-10-25 | G61: 2021-10-25 | H61: 365 | I61: 30 | J61: 29 | K61: 1111.76667 | L61: 50 | M61: 50 | N61: 1011.76667 | P61: 300.9503583 | Q61: 0 | R61: 0 | S61: 0 | T61: 710.8163118 | V61: 179859.3987 | W61: 20140.60131 | Y61: 0.02 | Z61: 300.9503583 | AA61: 0 | AB61: 300.9503583 | AC61: 300.9503583 | AD61: 0 | AE61: 1061.76667 | AF61: -964.7985139 | AG61: -159309.9238 | AH61: -1061.76667 | AI61: 2022-10-25 | AK61: 39 | AL61: 2022-10-25 | AM61: 365 | AN61: 30 | AO61: 29 | AP61: 1111.76667 | AQ61: 50 | AR61: 50 | AS61: 1011.76667 | AT61: 301.0422099 | AU61: 710.7244602 | AV61: 179848.4536 | AW61: 0.020007327 | AY61: 179859.3987 | AZ61: 300.9503583 | BA61: 300.9503583 | BB61: 710.8163118 | BC61: 50 | BD61: 1061.76667 | BE61: -964.8232874 | BF61: -159324.2014 | BG61: 1061.76667 | BH61: -1061.76667 | BI61: -935.4779488 | BJ61: -161358.5626 | BK61: -993.2734064 | BL61: -157296.809 | BM61: -935.5014874 | BN61: -161372.9085 | BO61: -993.2994276 | BP61: -157311.0198 | BQ61: -1011.76667 | BS61: -1111.76667 | BU61: -1011.76667 | BW61: -1111.76667
A62: 39 | B62: 20 | C62: 35 | D62: 2022-06-25 | E62: =$C$67 -> 40 | F62: =$D$67 -> 2022-11-25 | G62: 2021-11-25 | H62: 365 | I62: 31 | J62: 30 | K62: 1111.76667 | L62: 50 | M62: 50 | N62: 1011.76667 | P62: 299.7656645 | Q62: 0 | R62: 0 | S62: 0 | T62: 712.0010056 | V62: 179147.3977 | W62: 20852.60232 | Y62: 0.02 | Z62: 299.7656645 | AA62: 0 | AB62: 299.7656645 | AC62: 299.7656645 | AD62: 0 | AE62: 1061.76667 | AF62: -962.4112802 | AG62: -158345.1252 | AH62: -1061.76667 | AI62: 2022-11-25 | AK62: 40 | AL62: 2022-11-25 | AM62: 365 | AN62: 31 | AO62: 30 | AP62: 1111.76667 | AQ62: 50 | AR62: 50 | AS62: 1011.76667 | AT62: 299.8572352 | AU62: 711.9094349 | AV62: 179136.5442 | AW62: 0.020007327 | AY62: 179147.3977 | AZ62: 299.7656645 | BA62: 299.7656645 | BB62: 712.0010056 | BC62: 50 | BD62: 1061.76667 | BE62: -962.4366316 | BF62: -158359.3781 | BG62: 1061.76667 | BH62: -1061.76667 | BI62: -933.5827653 | BJ62: -160423.0846 | BK62: -990.3818985 | BL62: -156303.5356 | BM62: -933.6068639 | BN62: -160437.407 | BO62: -990.4085151 | BP62: -156317.7203 | BQ62: -1011.76667 | BS62: -1111.76667 | BU62: -1011.76667 | BW62: -1111.76667
A63: 40 | B63: 20 | C63: 36 | D63: 2022-07-25 | E63: =$C$68 -> 41 | F63: =$D$68 -> 2022-12-25 | G63: 2021-12-25 | H63: 365 | I63: 30 | J63: 31 | K63: 1111.76667 | L63: 50 | M63: 50 | N63: 1011.76667 | P63: 298.5789961 | Q63: 0 | R63: 0 | S63: 0 | T63: 713.187674 | V63: 178434.21 | W63: 21565.78999 | Y63: 0.02 | Z63: 298.5789961 | AA63: 0 | AB63: 298.5789961 | AC63: 298.5789961 | AD63: 0 | AE63: 1061.76667 | AF63: -960.0299532 | AG63: -157382.714 | AH63: -1061.76667 | AI63: 2022-12-25 | AK63: 41 | AL63: 2022-12-25 | AM63: 365 | AN63: 30 | AO63: 31 | AP63: 1111.76667 | AQ63: 50 | AR63: 50 | AS63: 1011.76667 | AT63: 298.6702848 | AU63: 713.0963853 | AV63: 178423.4478 | AW63: 0.020007327 | AY63: 178434.21 | AZ63: 298.5789961 | BA63: 298.5789961 | BB63: 713.187674 | BC63: 50 | BD63: 1061.76667 | BE63: -960.0558796 | BF63: -157396.9415 | BG63: 1061.76667 | BH63: -1061.76667 | BI63: -931.6914212 | BJ63: -159489.5019 | BK63: -987.4988081 | BL63: -155313.1537 | BM63: -931.7160774 | BN63: -159503.8001 | BO63: -987.5260164 | BP63: -155327.3118 | BQ63: -1011.76667 | BS63: -1111.76667 | BU63: -1011.76667 | BW63: -1111.76667
A64: 41 | B64: 20 | C64: 37 | D64: 2022-08-25 | E64: =$C$69 -> 42 | F64: =$D$69 -> 2023-01-25 | G64: 2022-01-25 | H64: 365 | I64: 31 | J64: 32 | K64: 1111.76667 | L64: 50 | M64: 50 | N64: 1011.76667 | P64: 297.39035 | Q64: 0 | R64: 0 | S64: 0 | T64: 714.3763201 | V64: 177719.8337 | W64: 22280.16631 | Y64: 0.02 | Z64: 297.39035 | AA64: 0 | AB64: 297.39035 | AC64: 297.39035 | AD64: 0 | AE64: 1061.76667 | AF64: -957.6545185 | AG64: -156422.684 | AH64: -1061.76667 | AI64: 2023-01-25 | AK64: 42 | AL64: 2023-01-25 | AM64: 365 | AN64: 31 | AO64: 32 | AP64: 1111.76667 | AQ64: 50 | AR64: 50 | AS64: 1011.76667 | AT64: 297.4813554 | AU64: 714.2853147 | AV64: 177709.1625 | AW64: 0.020007327 | AY64: 177719.8337 | AZ64: 297.39035 | BA64: 297.39035 | BB64: 714.3763201 | BC64: 50 | BD64: 1061.76667 | BE64: -957.6810168 | BF64: -156436.8856 | BG64: 1061.76667 | BH64: -1061.76667 | BI64: -929.8039087 | BJ64: -158557.8104 | BK64: -984.6241106 | BL64: -154325.6549 | BM64: -929.8291202 | BN64: -158572.084 | BO64: -984.651907 | BP64: -154339.7858 | BQ64: -1011.76667 | BS64: -1111.76667 | BU64: -1011.76667 | BW64: -1111.76667
A65: 42 | B65: 20 | C65: 38 | D65: 2022-09-25 | E65: =$C$70 -> 43 | F65: =$D$70 -> 2023-02-25 | G65: 2022-02-25 | H65: 365 | I65: 31 | J65: 33 | K65: 1111.76667 | L65: 50 | M65: 50 | N65: 1011.76667 | P65: 296.1997228 | Q65: 0 | R65: 0 | S65: 0 | T65: 715.5669473 | V65: 177004.2667 | W65: 22995.73326 | Y65: 0.02 | Z65: 296.1997228 | AA65: 0 | AB65: 296.1997228 | AC65: 296.1997228 | AD65: 0 | AE65: 1061.76667 | AF65: -955.2849613 | AG65: -155465.0295 | AH65: -1061.76667 | AI65: 2023-02-25 | AK65: 43 | AL65: 2023-02-25 | AM65: 365 | AN65: 31 | AO65: 33 | AP65: 1111.76667 | AQ65: 50 | AR65: 50 | AS65: 1011.76667 | AT65: 296.2904437 | AU65: 715.4762264 | AV65: 176993.6863 | AW65: 0.020007327 | AY65: 177004.2667 | AZ65: 296.1997228 | BA65: 296.1997228 | BB65: 715.5669473 | BC65: 50 | BD65: 1061.76667 | BE65: -955.3120286 | BF65: -155479.2046 | BG65: 1061.76667 | BH65: -1061.76667 | BI65: -927.9202202 | BJ65: -157628.0065 | BK65: -981.7577817 | BL65: -153341.0308 | BM65: -927.9459846 | BN65: -157642.2549 | BO65: -981.7861625 | BP65: -153355.1339 | BQ65: -1011.76667 | BS65: -1111.76667 | BU65: -1011.76667 | BW65: -1111.76667
A66: 43 | B66: 20 | C66: 39 | D66: 2022-10-25 | E66: =$C$71 -> 44 | F66: =$D$71 -> 2023-03-25 | G66: 2022-03-25 | H66: 365 | I66: 28 | J66: 34 | K66: 1111.76667 | L66: 50 | M66: 50 | N66: 1011.76667 | P66: 295.0071112 | Q66: 0 | R66: 0 | S66: 0 | T66: 716.7595589 | V66: 176287.5072 | W66: 23712.49282 | Y66: 0.02 | Z66: 295.0071112 | AA66: 0 | AB66: 295.0071112 | AC66: 295.0071112 | AD66: 0 | AE66: 1061.76667 | AF66: -952.9212673 | AG66: -154509.7445 | AH66: -1061.76667 | AI66: 2023-03-25 | AK66: 44 | AL66: 2023-03-25 | AM66: 365 | AN66: 28 | AO66: 34 | AP66: 1111.76667 | AQ66: 50 | AR66: 50 | AS66: 1011.76667 | AT66: 295.0975465 | AU66: 716.6691236 | AV66: 176277.0171 | AW66: 0.020007327 | AY66: 176287.5072 | AZ66: 295.0071112 | BA66: 295.0071112 | BB66: 716.7595589 | BC66: 50 | BD66: 1061.76667 | BE66: -952.9489006 | BF66: -154523.8926 | BG66: 1061.76667 | BH66: -1061.76667 | BI66: -926.0403478 | BJ66: -156700.0863 | BK66: -978.8997968 | BL66: -152359.273 | BM66: -926.0666628 | BN66: -156714.3089 | BO66: -978.9287584 | BP66: -152373.3477 | BQ66: -1011.76667 | BS66: -1111.76667 | BU66: -1011.76667 | BW66: -1111.76667
A67: 44 | B67: 20 | C67: 40 | D67: 2022-11-25 | E67: =$C$72 -> 45 | F67: =$D$72 -> 2023-04-25 | G67: 2022-04-25 | H67: 365 | I67: 31 | J67: 35 | K67: 1111.76667 | L67: 50 | M67: 50 | N67: 1011.76667 | P67: 293.812512 | Q67: 0 | R67: 0 | S67: 0 | T67: 717.9541581 | V67: 175569.553 | W67: 24430.44698 | Y67: 0.02 | Z67: 293.812512 | AA67: 0 | AB67: 293.812512 | AC67: 293.812512 | AD67: 0 | AE67: 1061.76667 | AF67: -950.5634218 | AG67: -153556.8233 | AH67: -1061.76667 | AI67: 2023-04-25 | AK67: 45 | AL67: 2023-04-25 | AM67: 365 | AN67: 31 | AO67: 35 | AP67: 1111.76667 | AQ67: 50 | AR67: 50 | AS67: 1011.76667 | AT67: 293.9026604 | AU67: 717.8640097 | AV67: 175559.1531 | AW67: 0.020007327 | AY67: 175569.553 | AZ67: 293.812512 | BA67: 293.812512 | BB67: 717.9541581 | BC67: 50 | BD67: 1061.76667 | BE67: -950.5916181 | BF67: -153570.9437 | BG67: 1061.76667 | BH67: -1061.76667 | BI67: -924.1642839 | BJ67: -155774.046 | BK67: -976.0501318 | BL67: -151380.3732 | BM67: -924.1911471 | BN67: -155788.2423 | BO67: -976.0796706 | BP67: -151394.419 | BQ67: -1011.76667 | BS67: -1111.76667 | BU67: -1011.76667 | BW67: -1111.76667
A68: 45 | B68: 20 | C68: 41 | D68: 2022-12-25 | E68: =$C$73 -> 46 | F68: =$D$73 -> 2023-05-25 | G68: 2022-05-25 | H68: 365 | I68: 30 | J68: 36 | K68: 1111.76667 | L68: 50 | M68: 50 | N68: 1011.76667 | P68: 292.6159217 | Q68: 0 | R68: 0 | S68: 0 | T68: 719.1507484 | V68: 174850.4023 | W68: 25149.59773 | Y68: 0.02 | Z68: 292.6159217 | AA68: 0 | AB68: 292.6159217 | AC68: 292.6159217 | AD68: 0 | AE68: 1061.76667 | AF68: -948.2114104 | AG68: -152606.2598 | AH68: -1061.76667 | AI68: 2023-05-25 | AK68: 46 | AL68: 2023-05-25 | AM68: 365 | AN68: 30 | AO68: 36 | AP68: 1111.76667 | AQ68: 50 | AR68: 50 | AS68: 1011.76667 | AT68: 292.705782 | AU68: 719.060888 | AV68: 174840.0922 | AW68: 0.020007327 | AY68: 174850.4023 | AZ68: 292.6159217 | BA68: 292.6159217 | BB68: 719.1507484 | BC68: 50 | BD68: 1061.76667 | BE68: -948.2401668 | BF68: -152620.3521 | BG68: 1061.76667 | BH68: -1061.76667 | BI68: -922.2920207 | BJ68: -154849.8817 | BK68: -973.2087625 | BL68: -150404.3231 | BM68: -922.3194298 | BN68: -154864.0511 | BO68: -973.2388747 | BP68: -150418.3393 | BQ68: -1011.76667 | BS68: -1111.76667 | BU68: -1011.76667 | BW68: -1111.76667
A69: 46 | B69: 20 | C69: 42 | D69: 2023-01-25 | E69: =$C$74 -> 47 | F69: =$D$74 -> 2023-06-25 | G69: 2022-06-25 | H69: 365 | I69: 31 | J69: 37 | K69: 1111.76667 | L69: 50 | M69: 50 | N69: 1011.76667 | P69: 291.4173371 | Q69: 0 | R69: 0 | S69: 0 | T69: 720.349333 | V69: 174130.0529 | W69: 25869.94706 | Y69: 0.02 | Z69: 291.4173371 | AA69: 0 | AB69: 291.4173371 | AC69: 291.4173371 | AD69: 0 | AE69: 1061.76667 | AF69: -945.8652187 | AG69: -151658.0484 | AH69: -1061.76667 | AI69: 2023-06-25 | AK69: 47 | AL69: 2023-06-25 | AM69: 365 | AN69: 31 | AO69: 37 | AP69: 1111.76667 | AQ69: 50 | AR69: 50 | AS69: 1011.76667 | AT69: 291.5069082 | AU69: 720.2597619 | AV69: 174119.8325 | AW69: 0.020007327 | AY69: 174130.0529 | AZ69: 291.4173371 | BA69: 291.4173371 | BB69: 720.349333 | BC69: 50 | BD69: 1061.76667 | BE69: -945.8945322 | BF69: -151672.1119 | BG69: 1061.76667 | BH69: -1061.76667 | BI69: -920.4235505 | BJ69: -153927.5897 | BK69: -970.3756646 | BL69: -149431.1143 | BM69: -920.4515031 | BN69: -153941.7317 | BO69: -970.4063468 | BP69: -149445.1004 | BQ69: -1011.76667 | BS69: -1111.76667 | BU69: -1011.76667 | BW69: -1111.76667
A70: 47 | B70: 20 | C70: 43 | D70: 2023-02-25 | E70: =$C$75 -> 48 | F70: =$D$75 -> 2023-07-25 | G70: 2022-07-25 | H70: 365 | I70: 30 | J70: 38 | K70: 1111.76667 | L70: 50 | M70: 50 | N70: 1011.76667 | P70: 290.2167549 | Q70: 0 | R70: 0 | S70: 0 | T70: 721.5499152 | V70: 173408.503 | W70: 26591.49697 | Y70: 0.02 | Z70: 290.2167549 | AA70: 0 | AB70: 290.2167549 | AC70: 290.2167549 | AD70: 0 | AE70: 1061.76667 | AF70: -943.5248322 | AG70: -150712.1832 | AH70: -1061.76667 | AI70: 2023-07-25 | AK70: 48 | AL70: 2023-07-25 | AM70: 365 | AN70: 30 | AO70: 38 | AP70: 1111.76667 | AQ70: 50 | AR70: 50 | AS70: 1011.76667 | AT70: 290.3060355 | AU70: 721.4606346 | AV70: 173398.3718 | AW70: 0.020007327 | AY70: 173408.503 | AZ70: 290.2167549 | BA70: 290.2167549 | BB70: 721.5499152 | BC70: 50 | BD70: 1061.76667 | BE70: -943.5546999 | BF70: -150726.2174 | BG70: 1061.76667 | BH70: -1061.76667 | BI70: -918.5588656 | BJ70: -153007.1661 | BK70: -967.5508141 | BL70: -148460.7387 | BM70: -918.5873595 | BN70: -153021.2802 | BO70: -967.5820627 | BP70: -148474.6941 | BQ70: -1011.76667 | BS70: -1111.76667 | BU70: -1011.76667 | BW70: -1111.76667
A71: 48 | B71: 20 | C71: 44 | D71: 2023-03-25 | E71: =$C$76 -> 49 | F71: =$D$76 -> 2023-08-25 | G71: 2022-08-25 | H71: 365 | I71: 31 | J71: 39 | K71: 1111.76667 | L71: 50 | M71: 50 | N71: 1011.76667 | P71: 289.0141717 | Q71: 0 | R71: 0 | S71: 0 | T71: 722.7524984 | V71: 172685.7505 | W71: 27314.24947 | Y71: 0.02 | Z71: 289.0141717 | AA71: 0 | AB71: 289.0141717 | AC71: 289.0141717 | AD71: 0 | AE71: 1061.76667 | AF71: -941.1902366 | AG71: -149768.6584 | AH71: -1061.76667 | AI71: 2023-08-25 | AK71: 49 | AL71: 2023-08-25 | AM71: 365 | AN71: 31 | AO71: 39 | AP71: 1111.76667 | AQ71: 50 | AR71: 50 | AS71: 1011.76667 | AT71: 289.1031606 | AU71: 722.6635095 | AV71: 172675.7083 | AW71: 0.020007327 | AY71: 172685.7505 | AZ71: 289.0141717 | BA71: 289.0141717 | BB71: 722.7524984 | BC71: 50 | BD71: 1061.76667 | BE71: -941.2206556 | BF71: -149782.6627 | BG71: 1061.76667 | BH71: -1061.76667 | BI71: -916.6979584 | BJ71: -152088.6072 | BK71: -964.734187 | BL71: -147493.1878 | BM71: -916.7269913 | BN71: -152102.6928 | BO71: -964.7659985 | BP71: -147507.112 | BQ71: -1011.76667 | BS71: -1111.76667 | BU71: -1011.76667 | BW71: -1111.76667
A72: 49 | B72: 20 | C72: 45 | D72: 2023-04-25 | E72: =$C$77 -> 50 | F72: =$D$77 -> 2023-09-25 | G72: 2022-09-25 | H72: 365 | I72: 31 | J72: 40 | K72: 1111.76667 | L72: 50 | M72: 50 | N72: 1011.76667 | P72: 287.8095842 | Q72: 0 | R72: 0 | S72: 0 | T72: 723.9570859 | V72: 171961.7934 | W72: 28038.20656 | Y72: 0.02 | Z72: 287.8095842 | AA72: 0 | AB72: 287.8095842 | AC72: 287.8095842 | AD72: 0 | AE72: 1061.76667 | AF72: -938.8614176 | AG72: -148827.4681 | AH72: -1061.76667 | AI72: 2023-09-25 | AK72: 50 | AL72: 2023-09-25 | AM72: 365 | AN72: 31 | AO72: 40 | AP72: 1111.76667 | AQ72: 50 | AR72: 50 | AS72: 1011.76667 | AT72: 287.8982801 | AU72: 723.86839 | AV72: 171951.8399 | AW72: 0.020007327 | AY72: 171961.7934 | AZ72: 287.8095842 | BA72: 287.8095842 | BB72: 723.9570859 | BC72: 50 | BD72: 1061.76667 | BE72: -938.892385 | BF72: -148841.442 | BG72: 1061.76667 | BH72: -1061.76667 | BI72: -914.8408212 | BJ72: -151171.9093 | BK72: -961.9257594 | BL72: -146528.4537 | BM72: -914.8703907 | BN72: -151185.9658 | BO72: -961.9581301 | BP72: -146542.346 | BQ72: -1011.76667 | BS72: -1111.76667 | BU72: -1011.76667 | BW72: -1111.76667
A73: 50 | B73: 20 | C73: 46 | D73: 2023-05-25 | E73: =$C$78 -> 51 | F73: =$D$78 -> 2023-10-25 | G73: 2022-10-25 | H73: 365 | I73: 30 | J73: 41 | K73: 1111.76667 | L73: 50 | M73: 50 | N73: 1011.76667 | P73: 286.6029891 | Q73: 0 | R73: 0 | S73: 0 | T73: 725.163681 | V73: 171236.6298 | W73: 28763.37024 | Y73: 0.02 | Z73: 286.6029891 | AA73: 0 | AB73: 286.6029891 | AC73: 286.6029891 | AD73: 0 | AE73: 1061.76667 | AF73: -936.5383609 | AG73: -147888.6067 | AH73: -1061.76667 | AI73: 2023-10-25 | AK73: 51 | AL73: 2023-10-25 | AM73: 365 | AN73: 30 | AO73: 41 | AP73: 1111.76667 | AQ73: 50 | AR73: 50 | AS73: 1011.76667 | AT73: 286.6913908 | AU73: 725.0752793 | AV73: 171226.7647 | AW73: 0.020007327 | AY73: 171236.6298 | AZ73: 286.6029891 | BA73: 286.6029891 | BB73: 725.163681 | BC73: 50 | BD73: 1061.76667 | BE73: -936.5698737 | BF73: -147902.5496 | BG73: 1061.76667 | BH73: -1061.76667 | BI73: -912.9874463 | BJ73: -150257.0685 | BK73: -959.1255074 | BL73: -145566.5279 | BM73: -913.0175503 | BN73: -150271.0954 | BO73: -959.1584338 | BP73: -145580.3879 | BQ73: -1011.76667 | BS73: -1111.76667 | BU73: -1011.76667 | BW73: -1111.76667
A74: 51 | B74: 20 | C74: 47 | D74: 2023-06-25 | E74: =$C$79 -> 52 | F74: =$D$79 -> 2023-11-25 | G74: 2022-11-25 | H74: 365 | I74: 31 | J74: 42 | K74: 1111.76667 | L74: 50 | M74: 50 | N74: 1011.76667 | P74: 285.3943829 | Q74: 0 | R74: 0 | S74: 0 | T74: 726.3722872 | V74: 170510.2575 | W74: 29489.74253 | Y74: 0.02 | Z74: 285.3943829 | AA74: 0 | AB74: 285.3943829 | AC74: 285.3943829 | AD74: 0 | AE74: 1061.76667 | AF74: -934.2210522 | AG74: -146952.0684 | AH74: -1061.76667 | AI74: 2023-11-25 | AK74: 52 | AL74: 2023-11-25 | AM74: 365 | AN74: 31 | AO74: 42 | AP74: 1111.76667 | AQ74: 50 | AR74: 50 | AS74: 1011.76667 | AT74: 285.4824893 | AU74: 726.2841808 | AV74: 170500.4805 | AW74: 0.020007327 | AY74: 170510.2575 | AZ74: 285.3943829 | BA74: 285.3943829 | BB74: 726.3722872 | BC74: 50 | BD74: 1061.76667 | BE74: -934.2531076 | BF74: -146965.9797 | BG74: 1061.76667 | BH74: -1061.76667 | BI74: -911.1378262 | BJ74: -149344.081 | BK74: -956.3334071 | BL74: -144607.4024 | BM74: -911.1684623 | BN74: -149358.0779 | BO74: -956.3668858 | BP74: -144621.2295 | BQ74: -1011.76667 | BS74: -1111.76667 | BU74: -1011.76667 | BW74: -1111.76667
A75: 52 | B75: 20 | C75: 48 | D75: 2023-07-25 | E75: =$C$80 -> 53 | F75: =$D$80 -> 2023-12-25 | G75: 2022-12-25 | H75: 365 | I75: 30 | J75: 43 | K75: 1111.76667 | L75: 50 | M75: 50 | N75: 1011.76667 | P75: 284.1837625 | Q75: 0 | R75: 0 | S75: 0 | T75: 727.5829076 | V75: 169782.6746 | W75: 30217.32543 | Y75: 0.02 | Z75: 284.1837625 | AA75: 0 | AB75: 284.1837625 | AC75: 284.1837625 | AD75: 0 | AE75: 1061.76667 | AF75: -931.9094773 | AG75: -146017.8473 | AH75: -1061.76667 | AI75: 2023-12-25 | AK75: 53 | AL75: 2023-12-25 | AM75: 365 | AN75: 30 | AO75: 43 | AP75: 1111.76667 | AQ75: 50 | AR75: 50 | AS75: 1011.76667 | AT75: 284.2715722 | AU75: 727.4950979 | AV75: 169772.9854 | AW75: 0.020007327 | AY75: 169782.6746 | AZ75: 284.1837625 | BA75: 284.1837625 | BB75: 727.5829076 | BC75: 50 | BD75: 1061.76667 | BE75: -931.9420723 | BF75: -146031.7266 | BG75: 1061.76667 | BH75: -1061.76667 | BI75: -909.2919533 | BJ75: -148432.9432 | BK75: -953.5494349 | BL75: -143651.069 | BM75: -909.3231191 | BN75: -148446.9094 | BO75: -953.5834624 | BP75: -143664.8626 | BQ75: -1011.76667 | BS75: -1111.76667 | BU75: -1011.76667 | BW75: -1111.76667
A76: 53 | B76: 20 | C76: 49 | D76: 2023-08-25 | E76: =$C$81 -> 54 | F76: =$D$81 -> 2024-01-25 | G76: 2023-01-25 | H76: 365 | I76: 31 | J76: 44 | K76: 1111.76667 | L76: 50 | M76: 50 | N76: 1011.76667 | P76: 282.9711243 | Q76: 0 | R76: 0 | S76: 0 | T76: 728.7955458 | V76: 169053.879 | W76: 30946.12098 | Y76: 0.02 | Z76: 282.9711243 | AA76: 0 | AB76: 282.9711243 | AC76: 282.9711243 | AD76: 0 | AE76: 1061.76667 | AF76: -929.603622 | AG76: -145085.9378 | AH76: -1061.76667 | AI76: 2024-01-25 | AK76: 54 | AL76: 2024-01-25 | AM76: 365 | AN76: 31 | AO76: 44 | AP76: 1111.76667 | AQ76: 50 | AR76: 50 | AS76: 1011.76667 | AT76: 283.0586362 | AU76: 728.7080339 | AV76: 169044.2774 | AW76: 0.020007327 | AY76: 169053.879 | AZ76: 282.9711243 | BA76: 282.9711243 | BB76: 728.7955458 | BC76: 50 | BD76: 1061.76667 | BE76: -929.6367539 | BF76: -145099.7846 | BG76: 1061.76667 | BH76: -1061.76667 | BI76: -907.4498199 | BJ76: -147523.6512 | BK76: -950.7735671 | BL76: -142697.5195 | BM76: -907.4815133 | BN76: -147537.5863 | BO76: -950.8081398 | BP76: -142711.2791 | BQ76: -1011.76667 | BS76: -1111.76667 | BU76: -1011.76667 | BW76: -1111.76667
A77: 54 | B77: 20 | C77: 50 | D77: 2023-09-25 | E77: =$C$82 -> 55 | F77: =$D$82 -> 2024-02-25 | G77: 2023-02-25 | H77: 365 | I77: 31 | J77: 45 | K77: 1111.76667 | L77: 50 | M77: 50 | N77: 1011.76667 | P77: 281.756465 | Q77: 0 | R77: 0 | S77: 0 | T77: 730.0102051 | V77: 168323.8688 | W77: 31676.13119 | Y77: 0.02 | Z77: 281.756465 | AA77: 0 | AB77: 281.756465 | AC77: 281.756465 | AD77: 0 | AE77: 1061.76667 | AF77: -927.3034721 | AG77: -144156.3342 | AH77: -1061.76667 | AI77: 2024-02-25 | AK77: 55 | AL77: 2024-02-25 | AM77: 365 | AN77: 31 | AO77: 45 | AP77: 1111.76667 | AQ77: 50 | AR77: 50 | AS77: 1011.76667 | AT77: 281.8436779 | AU77: 729.9229922 | AV77: 168314.3544 | AW77: 0.020007327 | AY77: 168323.8688 | AZ77: 281.756465 | BA77: 281.756465 | BB77: 730.0102051 | BC77: 50 | BD77: 1061.76667 | BE77: -927.337138 | BF77: -144170.1478 | BG77: 1061.76667 | BH77: -1061.76667 | BI77: -905.6114185 | BJ77: -146616.2014 | BK77: -948.0057801 | BL77: -141746.746 | BM77: -905.6436371 | BN77: -146630.1048 | BO77: -948.0408946 | BP77: -141760.471 | BQ77: -1011.76667 | BS77: -1111.76667 | BU77: -1011.76667 | BW77: -1111.76667
A78: 55 | B78: 20 | C78: 51 | D78: 2023-10-25 | E78: =$C$83 -> 56 | F78: =$D$83 -> 2024-03-25 | G78: 2023-03-25 | H78: 366 | I78: 29 | J78: 46 | K78: 1111.76667 | L78: 50 | M78: 50 | N78: 1011.76667 | P78: 280.5397814 | Q78: 0 | R78: 0 | S78: 0 | T78: 731.2268887 | V78: 167592.6419 | W78: 32407.35807 | Y78: 0.02 | Z78: 280.5397814 | AA78: 0 | AB78: 280.5397814 | AC78: 280.5397814 | AD78: 0 | AE78: 1061.76667 | AF78: -925.0090136 | AG78: -143229.0307 | AH78: -1061.76667 | AI78: 2024-03-25 | AK78: 56 | AL78: 2024-03-25 | AM78: 366 | AN78: 29 | AO78: 46 | AP78: 1111.76667 | AQ78: 50 | AR78: 50 | AS78: 1011.76667 | AT78: 280.6266939 | AU78: 731.1399762 | AV78: 167583.2144 | AW78: 0.020007327 | AY78: 167592.6419 | AZ78: 280.5397814 | BA78: 280.5397814 | BB78: 731.2268887 | BC78: 50 | BD78: 1061.76667 | BE78: -925.0432106 | BF78: -143242.8107 | BG78: 1061.76667 | BH78: -1061.76667 | BI78: -903.7767415 | BJ78: -145710.59 | BK78: -945.2460503 | BL78: -140798.7402 | BM78: -903.8094831 | BN78: -145724.4612 | BO78: -945.2817033 | BP78: -140812.4301 | BQ78: -1011.76667 | BS78: -1111.76667 | BU78: -1011.76667 | BW78: -1111.76667
A79: 56 | B79: 20 | C79: 52 | D79: 2023-11-25 | E79: =$C$84 -> 57 | F79: =$D$84 -> 2024-04-25 | G79: 2023-04-25 | H79: 366 | I79: 31 | J79: 47 | K79: 1111.76667 | L79: 50 | M79: 50 | N79: 1011.76667 | P79: 279.3210699 | Q79: 0 | R79: 0 | S79: 0 | T79: 732.4456002 | V79: 166860.1963 | W79: 33139.80367 | Y79: 0.02 | Z79: 279.3210699 | AA79: 0 | AB79: 279.3210699 | AC79: 279.3210699 | AD79: 0 | AE79: 1061.76667 | AF79: -922.7202324 | AG79: -142304.0217 | AH79: -1061.76667 | AI79: 2024-04-25 | AK79: 57 | AL79: 2024-04-25 | AM79: 366 | AN79: 31 | AO79: 47 | AP79: 1111.76667 | AQ79: 50 | AR79: 50 | AS79: 1011.76667 | AT79: 279.4076808 | AU79: 732.3589893 | AV79: 166850.8554 | AW79: 0.020007327 | AY79: 166860.1963 | AZ79: 279.3210699 | BA79: 279.3210699 | BB79: 732.4456002 | BC79: 50 | BD79: 1061.76667 | BE79: -922.7549577 | BF79: -142317.7675 | BG79: 1061.76667 | BH79: -1061.76667 | BI79: -901.9457814 | BJ79: -144806.8133 | BK79: -942.4943544 | BL79: -139853.4941 | BM79: -901.9790438 | BN79: -144820.6517 | BO79: -942.5305423 | BP79: -139867.1484 | BQ79: -1011.76667 | BS79: -1111.76667 | BU79: -1011.76667 | BW79: -1111.76667
A80: 57 | B80: 20 | C80: 53 | D80: 2023-12-25 | E80: =$C$85 -> 58 | F80: =$D$85 -> 2024-05-25 | G80: 2023-05-25 | H80: 366 | I80: 30 | J80: 48 | K80: 1111.76667 | L80: 50 | M80: 50 | N80: 1011.76667 | P80: 278.1003272 | Q80: 0 | R80: 0 | S80: 0 | T80: 733.6663429 | V80: 166126.53 | W80: 33873.47002 | Y80: 0.02 | Z80: 278.1003272 | AA80: 0 | AB80: 278.1003272 | AC80: 278.1003272 | AD80: 0 | AE80: 1061.76667 | AF80: -920.4371143 | AG80: -141381.3015 | AH80: -1061.76667 | AI80: 2024-05-25 | AK80: 58 | AL80: 2024-05-25 | AM80: 366 | AN80: 30 | AO80: 48 | AP80: 1111.76667 | AQ80: 50 | AR80: 50 | AS80: 1011.76667 | AT80: 278.1866353 | AU80: 733.5800347 | AV80: 166117.2754 | AW80: 0.020007327 | AY80: 166126.53 | AZ80: 278.1003272 | BA80: 278.1003272 | BB80: 733.6663429 | BC80: 50 | BD80: 1061.76667 | BE80: -920.4723651 | BF80: -141395.0125 | BG80: 1061.76667 | BH80: -1061.76667 | BI80: -900.1185306 | BJ80: -143904.8675 | BK80: -939.7506689 | BL80: -138910.9998 | BM80: -900.1523115 | BN80: -143918.6726 | BO80: -939.7873883 | BP80: -138924.6178 | BQ80: -1011.76667 | BS80: -1111.76667 | BU80: -1011.76667 | BW80: -1111.76667
A81: 58 | B81: 20 | C81: 54 | D81: 2024-01-25 | E81: =$C$86 -> 59 | F81: =$D$86 -> 2024-06-25 | G81: 2023-06-25 | H81: 366 | I81: 31 | J81: 49 | K81: 1111.76667 | L81: 50 | M81: 50 | N81: 1011.76667 | P81: 276.87755 | Q81: 0 | R81: 0 | S81: 0 | T81: 734.8891201 | V81: 165391.6409 | W81: 34608.35914 | Y81: 0.02 | Z81: 276.87755 | AA81: 0 | AB81: 276.87755 | AC81: 276.87755 | AD81: 0 | AE81: 1061.76667 | AF81: -918.1596455 | AG81: -140460.8644 | AH81: -1061.76667 | AI81: 2024-06-25 | AK81: 59 | AL81: 2024-06-25 | AM81: 366 | AN81: 31 | AO81: 49 | AP81: 1111.76667 | AQ81: 50 | AR81: 50 | AS81: 1011.76667 | AT81: 276.963554 | AU81: 734.803116 | AV81: 165382.4722 | AW81: 0.020007327 | AY81: 165391.6409 | AZ81: 276.87755 | BA81: 276.87755 | BB81: 734.8891201 | BC81: 50 | BD81: 1061.76667 | BE81: -918.1954189 | BF81: -140474.5401 | BG81: 1061.76667 | BH81: -1061.76667 | BI81: -898.2949816 | BJ81: -143004.7489 | BK81: -937.0149705 | BL81: -137971.2491 | BM81: -898.3292788 | BN81: -143018.5203 | BO81: -937.0522181 | BP81: -137984.8305 | BQ81: -1011.76667 | BS81: -1111.76667 | BU81: -1011.76667 | BW81: -1111.76667
A82: 59 | B82: 20 | C82: 55 | D82: 2024-02-25 | E82: =$C$87 -> 60 | F82: =$D$87 -> 2024-07-25 | G82: 2023-07-25 | H82: 366 | I82: 30 | J82: 50 | K82: 1111.76667 | L82: 50 | M82: 50 | N82: 1011.76667 | P82: 275.6527348 | Q82: =IF(E82="",P82,0) -> 0 | R82: 0 | S82: 0 | T82: 736.1139353 | V82: 164655.5269 | W82: 35344.47307 | Y82: 0.02 | Z82: 275.6527348 | AA82: =IF(X82<>"",1,0) -> 0 | AB82: 275.6527348 | AC82: 275.6527348 | AD82: 0 | AE82: 1061.76667 | AF82: -915.8878118 | AG82: =AG83+AF82 -> -139542.7047 | AH82: -1061.76667 | AI82: 2024-07-25 | AK82: =IF(E82="","",E82) -> 60 | AL82: =F82 -> 2024-07-25 | AM82: 366 | AN82: 30 | AO82: 50 | AP82: 1111.76667 | AQ82: 50 | AR82: 50 | AS82: 1011.76667 | AT82: 275.7384335 | AU82: 736.0282366 | AV82: 164646.444 | AW82: 0.020007327 | AY82: 164655.5269 | AZ82: 275.6527348 | BA82: 275.6527348 | BB82: 736.1139353 | BC82: 50 | BD82: 1061.76667 | BE82: -915.9241051 | BF82: -139556.3447 | BG82: 1061.76667 | BH82: -1061.76667 | BI82: -896.475127 | BJ82: -142106.454 | BK82: -934.287236 | BL82: =BL83+BK82 -> -137034.2342 | BM82: -896.5099382 | BN82: -142120.191 | BO82: -934.3250083 | BP82: =BP83+BO82 -> -137047.7782 | BQ82: -1011.76667 | BS82: -1111.76667 | BU82: -1011.76667 | BW82: -1111.76667
A83: =IF(G83=0,0,DATEDIF($F$18,F83,"m")) -> 60 | B83: =IF(G83=0,0,DATE(YEAR(F83),MONTH(F83)-A83,DAY(F83))-$F$18) -> 20 | C83: 56 | D83: 2024-03-25 | E83: =$C$88 -> 61 | F83: =$D$88 -> 2024-08-25 | G83: =IF(F83="",0,EDATE(F83,-12)) -> 2023-08-25 | H83: =IF(F83="",0,F83-G83) -> 366 | I83: =IF(F83="",0,F83-F82) -> 31 | J83: 51 | K83: 1111.76667 | L83: 50 | M83: 50 | N83: 1011.76667 | P83: 274.4258782 | Q83: 0 | R83: 0 | S83: 0 | T83: =IF(F83>=$I$14,IF(J83=1,-PPMT($H$5/12,J83,$E$5,$G$5,0),N83-P83),0) -> 737.3407919 | V83: =IF(AND(J83<>"",J83>$E$5),0,V82-T83+U83) -> 163918.1861 | W83: =$G$5-V83 -> 36081.81386 | Y83: 0.02 | Z83: 274.4258782 | AA83: 0 | AB83: =IF(OR(AND(E83="",E82=""),AND(E83<>"",E82="")),P83+AB82,P83) -> 274.4258782 | AC83: =IF(E83="",0,AB83) -> 274.4258782 | AD83: =U83 -> 0 | AE83: =IF(AND(J83>$E$5,J83<>""),0,IF(E83="",0,N83+$N$14)) -> 1061.76667 | AF83: -913.6215995 | AG83: -138626.8169 | AH83: -1061.76667 | AI83: =IF(AND(J83<>"",J83>1),EDATE(AI82,1),IF(J83=1,$I$14,F83)) -> 2024-08-25 | AK83: 61 | AL83: 2024-08-25 | AM83: 366 | AN83: 31 | AO83: 51 | AP83: =AS83+AR83+AQ83 -> 1111.76667 | AQ83: =L83 -> 50 | AR83: =M83 -> 50 | AS83: =IF(AND(AO83>$E$5,AO83<>""),0,N83) -> 1011.76667 | AT83: =IF(AND(AO83>$E$5,AO83<>""),0,IF(OR(AL83>$I$14,AL83=EDATE(AL82,1)),AV82*$AW$17/12,AV82*$AW$17/AM83*AN83)) -> 274.5112704 | AU83: 737.2553997 | AV83: =AV82+U83-AU83 -> 163909.1886 | AW83: 0.020007327 | AY83: 163918.1861 | AZ83: 274.4258782 | BA83: =IF(J83>$E$5,0,IF(OR(F83=EDATE(F82,1),J83>1),P83,V82*$H$5/H83*I83)) -> 274.4258782 | BB83: 737.3407919 | BC83: 50 | BD83: 1061.76667 | BE83: -913.6584098 | BF83: =BF84+BE83 -> -138640.4206 | BG83: 1061.76667 | BH83: -1061.76667 | BI83: =IF($A83=0,0,IF($AD83=0,-$N83*(1+$BJ$16)^(-(($A83/12)+($B83/$H$19))),$AD83*(1+$BJ$16)^(-(($A83/12)+($B83/$H83))))) -> -894.6589592 | BJ83: =BJ84+BI83 -> -141209.9788 | BK83: -931.5674422 | BL83: -136099.9469 | BM83: -894.6942822 | BN83: =BN84+BM83 -> -141223.6811 | BO83: -931.6057358 | BP83: -136113.4532 | BQ83: -1011.76667 | BS83: -1111.76667 | BU83: -1011.76667 | BW83: -1111.76667
A84: 61 | B84: 20 | C84: 57 | D84: 2024-04-25 | E84: =$C$89 -> 62 | F84: =$D$89 -> 2024-09-25 | G84: 2023-09-25 | H84: 366 | I84: 31 | J84: =IF(F84<$I$14,0,IF(ISERROR(AY84),J83+1,IF(OR(F84>$K$14,F84=""),J83+1,IF(AY84=$G$5,0,IF(F84<$I$14,"",IF(AND(J83=0,F84=$I$14),J83+1,IF(F84=EDATE(F83,1),J83+1,J83+1))))))) -> 52 | K84: =IF(J84>$E$5,0,N84+M84+L84) -> 1111.76667 | L84: 50 | M84: 50 | N84: =IF(J84>$E$5,0,IF(AND(O84>0,F84>=$I$14),O84,IF(J84=1,T84+P84,IF(J84>$E$5,0,IF(F84>=$I$14,-PMT($H$5/12,$E$5,$G$5,0,0),P84))))) -> 1011.76667 | P84: =IF(AND(E84<>"",F84>=$I$14,O84>0),N84-T84,IF(AND(E84<>"",F84<$I$14,O84>0),O84,IF(AND(E84="",$S$17=1),0,IF(AND(J84>$E$5,J84<>""),0,IF(AND(J84>$E$5,ISERROR(T84)),0,IF(AND(OR(F84>$I$14,F84=EDATE(F83,1)),E84<>1),IF(AND(Q84=0,S84>0),S84,V83*$H$5/12),IF(AND(Q84=0,S84>0),S84,V83*$H$5/360*I84))))))) -> 273.1969769 | Q84: 0 | R84: 0 | S84: 0 | T84: 738.5696932 | V84: 163179.6164 | W84: 36820.38356 | Y84: =IF(Z84=0,0,IF(AND(J84>$E$5,J84<>""),"",IF(AND(OR(F84>$I$14,F84=EDATE(F83,1)),E84<>1),Z84*12/V83,Z84*H84/I84/V83))) -> 0.02 | Z84: 273.1969769 | AA84: 0 | AB84: 273.1969769 | AC84: 273.1969769 | AD84: 0 | AE84: 1061.76667 | AF84: =IF($A84=0,0,IF($AD84=0,-$AE84*(1+$AG$16)^(-(($A84/12)+($B84/$H$19))),$AD84*(1+$AG$16)^(-(($A84/12)+($B84/$H84))))) -> -911.3609945 | AG84: -137713.1953 | AH84: =AD84-AE84 -> -1061.76667 | AI84: 2024-09-25 | AK84: 62 | AL84: 2024-09-25 | AM84: =H84 -> 366 | AN84: =I84 -> 31 | AO84: =IF(J84="","",J84) -> 52 | AP84: 1111.76667 | AQ84: 50 | AR84: 50 | AS84: 1011.76667 | AT84: 273.2820612 | AU84: =AS84-AT84 -> 738.4846089 | AV84: 163170.704 | AW84: =IF(AT84=0,0,IF(AND(AO84>$E$5,AO84<>""),"",IF(OR(AL84>$I$14,AL84=EDATE(AL83,1)),AT84*12/AV83,AT84/AN84*AM84/AV83))) -> 0.020007327 | AY84: 163179.6164 | AZ84: =IF(J84>$E$5,0,IF(F84<>EDATE(F83,1),P84/H84*360,P84)) -> 273.1969769 | BA84: 273.1969769 | BB84: =T84 -> 738.5696932 | BC84: 50 | BD84: =AZ84+BB84+BC84 -> 1061.76667 | BE84: =IF($A84=0,0,IF($AD84=0,-$BG84*(1+$BF$16)^(-(($A84/12)+($B84/$H$19))),$AD84*(1+$BF$16)^(-(($A84/12)+($B84/$H84))))) -> -911.3983191 | BF84: -137726.7622 | BG84: 1061.76667 | BH84: =AD84-BG84 -> -1061.76667 | BI84: -892.8464708 | BJ84: -140315.3199 | BK84: =IF($A84=0,0,IF($AD84=0,-($N84+$L$14+$M$14)*(1+$BL$16)^(-(($A84/12)+($B84/$H$19))),$AD84*(1+$BL$16)^(-(($A84/12)+($B84/$H84))))) -> -928.8555659 | BL84: -135168.3795 | BM84: =IF($A84=0,0,IF($AD84=0,-($BG84-BC84)*(1+$BN$16)^(-(($A84/12)+($B84/$H$19))),$AD84*(1+$BN$16)^(-(($A84/12)+($B84/$H84))))) -> -892.8823034 | BN84: -140328.9868 | BO84: =IF($A84=0,0,IF($AD84=0,-(BG84-BC84+$L$14+$M$14)*(1+$BP$16)^(-(($A84/12)+($B84/$H$19))),$AD84*(1+$BP$16)^(-(($A84/12)+($B84/$H84))))) -> -928.8943776 | BP84: -135181.8475 | BQ84: =IF($A84=0,0,IF($AD84=0,-$N84,$AD84)) -> -1011.76667 | BS84: =IF($A84=0,0,IF($AD84=0,-($N84+$L$14+$M$14),$AD84)) -> -1111.76667 | BU84: =IF($A84=0,0,IF($AD84=0,-($BD84-$BC84),$AD84)) -> -1011.76667 | BW84: =IF($A84=0,0,IF($AD84=0,-($BD84-$BC84+$L$14+$M$14),$AD84)) -> -1111.76667
A85: 62 | B85: 20 | C85: 58 | D85: 2024-05-25 | E85: =$C$90 -> 63 | F85: =$D$90 -> 2024-10-25 | G85: 2023-10-25 | H85: 366 | I85: 30 | J85: 53 | K85: 1111.76667 | L85: =IF(OR(J85>$E$5,E85=""),0,$L$14) -> 50 | M85: =IF(OR(J85>$E$5,E85=""),0,$M$14) -> 50 | N85: 1011.76667 | P85: 271.9660274 | Q85: 0 | R85: 0 | S85: 0 | T85: 739.8006427 | V85: 162439.8158 | W85: 37560.1842 | Y85: 0.02 | Z85: 271.9660274 | AA85: 0 | AB85: 271.9660274 | AC85: 271.9660274 | AD85: 0 | AE85: 1061.76667 | AF85: -909.105983 | AG85: -136801.8343 | AH85: -1061.76667 | AI85: 2024-10-25 | AK85: 63 | AL85: 2024-10-25 | AM85: 366 | AN85: 30 | AO85: 53 | AP85: 1111.76667 | AQ85: 50 | AR85: 50 | AS85: 1011.76667 | AT85: 272.0508026 | AU85: 739.7158674 | AV85: 162430.9881 | AW85: 0.020007327 | AY85: 162439.8158 | AZ85: 271.9660274 | BA85: 271.9660274 | BB85: 739.8006427 | BC85: =IF(E85="",0,IF(J85>$E$5,0,$N$14)) -> 50 | BD85: 1061.76667 | BE85: -909.1438192 | BF85: -136815.3639 | BG85: 1061.76667 | BH85: -1061.76667 | BI85: -891.0376543 | BJ85: -139422.4734 | BK85: -926.1515842 | BL85: -134239.5239 | BM85: -891.0739943 | BN85: -139436.1045 | BO85: -926.1909105 | BP85: -134252.9531 | BQ85: -1011.76667 | BS85: -1111.76667 | BU85: -1011.76667 | BW85: -1111.76667
A86: 63 | B86: 20 | C86: 59 | D86: 2024-06-25 | E86: =$C$91 -> 64 | F86: =$D$91 -> 2024-11-25 | G86: 2023-11-25 | H86: 366 | I86: 31 | J86: 54 | K86: 1111.76667 | L86: 50 | M86: 50 | N86: 1011.76667 | P86: 270.7330263 | Q86: 0 | R86: 0 | S86: 0 | T86: 741.0336438 | V86: 161698.7822 | W86: 38301.21784 | Y86: 0.02 | Z86: 270.7330263 | AA86: 0 | AB86: 270.7330263 | AC86: 270.7330263 | AD86: 0 | AE86: 1061.76667 | AF86: -906.8565512 | AG86: -135892.7283 | AH86: -1061.76667 | AI86: 2024-11-25 | AK86: 64 | AL86: 2024-11-25 | AM86: 366 | AN86: 31 | AO86: 54 | AP86: 1111.76667 | AQ86: 50 | AR86: 50 | AS86: 1011.76667 | AT86: 270.8174912 | AU86: 740.9491789 | AV86: 161690.039 | AW86: 0.020007327 | AY86: 161698.7822 | AZ86: 270.7330263 | BA86: 270.7330263 | BB86: 741.0336438 | BC86: 50 | BD86: 1061.76667 | BE86: -906.8948961 | BF86: -135906.2201 | BG86: 1061.76667 | BH86: -1061.76667 | BI86: -889.2325022 | BJ86: -138531.4357 | BK86: -923.455474 | BL86: -133313.3723 | BM86: -889.2693475 | BN86: -138545.0305 | BO86: -923.4953116 | BP86: -133326.7622 | BQ86: -1011.76667 | BS86: -1111.76667 | BU86: -1011.76667 | BW86: -1111.76667
A87: 64 | B87: 20 | C87: 60 | D87: 2024-07-25 | E87: =$C$92 -> 65 | F87: =$D$92 -> 2024-12-25 | G87: 2023-12-25 | H87: 366 | I87: 30 | J87: 55 | K87: 1111.76667 | L87: 50 | M87: 50 | N87: 1011.76667 | P87: 269.4979703 | Q87: 0 | R87: 0 | S87: 0 | T87: 742.2686998 | V87: 160956.5135 | W87: 39043.48654 | Y87: 0.02 | Z87: 269.4979703 | AA87: 0 | AB87: 269.4979703 | AC87: 269.4979703 | AD87: 0 | AE87: 1061.76667 | AF87: -904.6126852 | AG87: -134985.8718 | AH87: -1061.76667 | AI87: 2024-12-25 | AK87: 65 | AL87: 2024-12-25 | AM87: 366 | AN87: 30 | AO87: 55 | AP87: 1111.76667 | AQ87: 50 | AR87: 50 | AS87: 1011.76667 | AT87: 269.5821235 | AU87: 742.1845466 | AV87: 160947.8544 | AW87: 0.020007327 | AY87: 160956.5135 | AZ87: 269.4979703 | BA87: 269.4979703 | BB87: 742.2686998 | BC87: 50 | BD87: 1061.76667 | BE87: -904.6515361 | BF87: -134999.3252 | BG87: 1061.76667 | BH87: -1061.76667 | BI87: -887.4310073 | BJ87: -137642.2032 | BK87: -920.7672124 | BL87: -132389.9168 | BM87: -887.4683555 | BN87: -137655.7612 | BO87: -920.807558 | BP87: -132403.2669 | BQ87: -1011.76667 | BS87: -1111.76667 | BU87: -1011.76667 | BW87: -1111.76667
A88: 65 | B88: 20 | C88: 61 | D88: 2024-08-25 | E88: =$C$93 -> 66 | F88: =$D$93 -> 2025-01-25 | G88: 2024-01-25 | H88: 366 | I88: 31 | J88: 56 | K88: 1111.76667 | L88: 50 | M88: 50 | N88: 1011.76667 | P88: 268.2608558 | Q88: 0 | R88: 0 | S88: 0 | T88: 743.5058143 | V88: 160213.0076 | W88: 39786.99236 | Y88: 0.02 | Z88: 268.2608558 | AA88: 0 | AB88: 268.2608558 | AC88: 268.2608558 | AD88: 0 | AE88: 1061.76667 | AF88: -902.3743713 | AG88: -134081.2591 | AH88: -1061.76667 | AI88: 2025-01-25 | AK88: 66 | AL88: 2025-01-25 | AM88: 366 | AN88: 31 | AO88: 56 | AP88: 1111.76667 | AQ88: 50 | AR88: 50 | AS88: 1011.76667 | AT88: 268.3446961 | AU88: 743.421974 | AV88: 160204.4324 | AW88: 0.020007327 | AY88: 160213.0076 | AZ88: 268.2608558 | BA88: 268.2608558 | BB88: 743.5058143 | BC88: 50 | BD88: 1061.76667 | BE88: -902.4137254 | BF88: -134094.6736 | BG88: 1061.76667 | BH88: -1061.76667 | BI88: -885.6331619 | BJ88: -136754.7722 | BK88: -918.0867766 | BL88: -131469.1496 | BM88: -885.671011 | BN88: -136768.2928 | BO88: -918.1276269 | BP88: -131482.4593 | BQ88: -1011.76667 | BS88: -1111.76667 | BU88: -1011.76667 | BW88: -1111.76667
A89: 66 | B89: 20 | C89: 62 | D89: 2024-09-25 | E89: =$C$94 -> 67 | F89: =$D$94 -> 2025-02-25 | G89: 2024-02-25 | H89: 366 | I89: 31 | J89: 57 | K89: 1111.76667 | L89: 50 | M89: 50 | N89: 1011.76667 | P89: 267.0216794 | Q89: 0 | R89: 0 | S89: 0 | T89: 744.7449907 | V89: 159468.2627 | W89: 40531.73735 | Y89: 0.02 | Z89: 267.0216794 | AA89: 0 | AB89: 267.0216794 | AC89: 267.0216794 | AD89: 0 | AE89: 1061.76667 | AF89: -900.1415957 | AG89: -133178.8847 | AH89: -1061.76667 | AI89: 2025-02-25 | AK89: 67 | AL89: 2025-02-25 | AM89: 366 | AN89: 31 | AO89: 57 | AP89: 1111.76667 | AQ89: 50 | AR89: 50 | AS89: 1011.76667 | AT89: 267.1052055 | AU89: 744.6614645 | AV89: 159459.771 | AW89: 0.020007327 | AY89: 159468.2627 | AZ89: 267.0216794 | BA89: 267.0216794 | BB89: 744.7449907 | BC89: 50 | BD89: 1061.76667 | BE89: -900.1814504 | BF89: -133192.2599 | BG89: 1061.76667 | BH89: -1061.76667 | BI89: -883.8389589 | BJ89: -135869.1391 | BK89: -915.4141437 | BL89: -130551.0629 | BM89: -883.8773065 | BN89: -135882.6218 | BO89: -915.4554956 | BP89: -130564.3317 | BQ89: -1011.76667 | BS89: -1111.76667 | BU89: -1011.76667 | BW89: -1111.76667
A90: 67 | B90: 20 | C90: 63 | D90: 2024-10-25 | E90: =$C$95 -> 68 | F90: =$D$95 -> 2025-03-25 | G90: 2024-03-25 | H90: 365 | I90: 28 | J90: 58 | K90: 1111.76667 | L90: 50 | M90: 50 | N90: 1011.76667 | P90: 265.7804378 | Q90: 0 | R90: 0 | S90: 0 | T90: 745.9862323 | V90: 158722.2764 | W90: 41277.72358 | Y90: 0.02 | Z90: 265.7804378 | AA90: 0 | AB90: 265.7804378 | AC90: 265.7804378 | AD90: 0 | AE90: 1061.76667 | AF90: -897.9143447 | AG90: -132278.7431 | AH90: -1061.76667 | AI90: 2025-03-25 | AK90: 68 | AL90: 2025-03-25 | AM90: 365 | AN90: 28 | AO90: 58 | AP90: 1111.76667 | AQ90: 50 | AR90: 50 | AS90: 1011.76667 | AT90: 265.8636484 | AU90: 745.9030217 | AV90: 158713.8679 | AW90: 0.020007327 | AY90: 158722.2764 | AZ90: 265.7804378 | BA90: 265.7804378 | BB90: 745.9862323 | BC90: 50 | BD90: 1061.76667 | BE90: -897.9546973 | BF90: -132292.0785 | BG90: 1061.76667 | BH90: -1061.76667 | BI90: -882.0483907 | BJ90: -134985.3001 | BK90: -912.7492911 | BL90: -129635.6487 | BM90: -882.0872348 | BN90: -134998.7445 | BO90: -912.7911412 | BP90: -129648.8762 | BQ90: -1011.76667 | BS90: -1111.76667 | BU90: -1011.76667 | BW90: -1111.76667
A91: 68 | B91: 20 | C91: 64 | D91: 2024-11-25 | E91: =$C$96 -> 69 | F91: =$D$96 -> 2025-04-25 | G91: 2024-04-25 | H91: 365 | I91: 31 | J91: 59 | K91: 1111.76667 | L91: 50 | M91: 50 | N91: 1011.76667 | P91: 264.5371274 | Q91: 0 | R91: 0 | S91: 0 | T91: 747.2295427 | V91: 157975.0469 | W91: 42024.95312 | Y91: 0.02 | Z91: 264.5371274 | AA91: 0 | AB91: 264.5371274 | AC91: 264.5371274 | AD91: 0 | AE91: 1061.76667 | AF91: -895.6926047 | AG91: -131380.8288 | AH91: -1061.76667 | AI91: 2025-04-25 | AK91: 69 | AL91: 2025-04-25 | AM91: 365 | AN91: 31 | AO91: 59 | AP91: 1111.76667 | AQ91: 50 | AR91: 50 | AS91: 1011.76667 | AT91: 264.6200213 | AU91: 747.1466488 | AV91: 157966.7213 | AW91: 0.020007327 | AY91: 157975.0469 | AZ91: 264.5371274 | BA91: 264.5371274 | BB91: 747.2295427 | BC91: 50 | BD91: 1061.76667 | BE91: -895.7334524 | BF91: -131394.1238 | BG91: 1061.76667 | BH91: -1061.76667 | BI91: -880.26145 | BJ91: -134103.2517 | BK91: -910.0921962 | BL91: -128722.8994 | BM91: -880.3007884 | BN91: -134116.6573 | BO91: -910.1345412 | BP91: -128736.0851 | BQ91: -1011.76667 | BS91: -1111.76667 | BU91: -1011.76667 | BW91: -1111.76667
A92: 69 | B92: 20 | C92: 65 | D92: 2024-12-25 | E92: =$C$97 -> 70 | F92: =$D$97 -> 2025-05-25 | G92: 2024-05-25 | H92: 365 | I92: 30 | J92: 60 | K92: 1111.76667 | L92: 50 | M92: 50 | N92: 1011.76667 | P92: 263.2917448 | Q92: 0 | R92: 0 | S92: 0 | T92: 748.4749253 | V92: 157226.572 | W92: 42773.42805 | Y92: 0.02 | Z92: 263.2917448 | AA92: 0 | AB92: 263.2917448 | AC92: 263.2917448 | AD92: 0 | AE92: 1061.76667 | AF92: -893.4763621 | AG92: -130485.1362 | AH92: -1061.76667 | AI92: 2025-05-25 | AK92: 70 | AL92: 2025-05-25 | AM92: 365 | AN92: 30 | AO92: 60 | AP92: 1111.76667 | AQ92: 50 | AR92: 50 | AS92: 1011.76667 | AT92: 263.3743207 | AU92: 748.3923494 | AV92: 157218.3289 | AW92: 0.020007327 | AY92: 157226.572 | AZ92: 263.2917448 | BA92: 263.2917448 | BB92: 748.4749253 | BC92: 50 | BD92: 1061.76667 | BE92: -893.5177021 | BF92: -130498.3903 | BG92: 1061.76667 | BH92: -1061.76667 | BI92: -878.4781294 | BJ92: -133222.9903 | BK92: -907.4428363 | BL92: -127812.8072 | BM92: -878.51796 | BN92: -133236.3565 | BO92: -907.485673 | BP92: -127825.9505 | BQ92: -1011.76667 | BS92: -1111.76667 | BU92: -1011.76667 | BW92: -1111.76667
A93: 70 | B93: 20 | C93: 66 | D93: =IF((EDATE($N$5,C92))>$K$14,"",EDATE($N$5,C92)) -> 2025-01-25 | E93: =$C$98 -> 71 | F93: =$D$98 -> 2025-06-25 | G93: 2024-06-25 | H93: 365 | I93: 31 | J93: 61 | K93: 1111.76667 | L93: 50 | M93: 50 | N93: 1011.76667 | P93: 262.0442866 | Q93: 0 | R93: =IF($S$17=1,0,IF(AND(Q93=0,Q92>0),AC93,0)) -> 0 | S93: 0 | T93: 749.7223835 | V93: 156476.8496 | W93: 43523.15043 | Y93: 0.02 | Z93: 262.0442866 | AA93: 0 | AB93: 262.0442866 | AC93: 262.0442866 | AD93: 0 | AE93: 1061.76667 | AF93: -891.2656031 | AG93: -129591.6598 | AH93: -1061.76667 | AI93: 2025-06-25 | AK93: 71 | AL93: 2025-06-25 | AM93: 365 | AN93: 31 | AO93: 61 | AP93: 1111.76667 | AQ93: 50 | AR93: 50 | AS93: 1011.76667 | AT93: 262.1265431 | AU93: 749.640127 | AV93: 156468.6888 | AW93: 0.020007327 | AY93: 156476.8496 | AZ93: 262.0442866 | BA93: 262.0442866 | BB93: 749.7223835 | BC93: 50 | BD93: 1061.76667 | BE93: -891.3074329 | BF93: -129604.8726 | BG93: 1061.76667 | BH93: -1061.76667 | BI93: -876.6984217 | BJ93: -132344.5121 | BK93: -904.8011889 | BL93: -126905.3644 | BM93: -876.7387422 | BN93: -132357.8385 | BO93: -904.8445141 | BP93: -126918.4649 | BQ93: -1011.76667 | BS93: -1111.76667 | BU93: -1011.76667 | BW93: -1111.76667
A94: 71 | B94: 20 | C94: 67 | D94: 2025-02-25 | E94: =$C$99 -> 72 | F94: =$D$99 -> 2025-07-25 | G94: 2024-07-25 | H94: 365 | I94: 30 | J94: 62 | K94: 1111.76667 | L94: 50 | M94: 50 | N94: 1011.76667 | P94: 260.7947493 | Q94: 0 | R94: 0 | S94: 0 | T94: 750.9719208 | V94: 155725.8776 | W94: 44274.12235 | Y94: 0.02 | Z94: 260.7947493 | AA94: 0 | AB94: 260.7947493 | AC94: 260.7947493 | AD94: 0 | AE94: 1061.76667 | AF94: -889.0603143 | AG94: -128700.3942 | AH94: -1061.76667 | AI94: 2025-07-25 | AK94: 72 | AL94: 2025-07-25 | AM94: 365 | AN94: 30 | AO94: 62 | AP94: 1111.76667 | AQ94: 50 | AR94: 50 | AS94: 1011.76667 | AT94: 260.8766852 | AU94: 750.8899849 | AV94: 155717.7988 | AW94: 0.020007327 | AY94: 155725.8776 | AZ94: 260.7947493 | BA94: 260.7947493 | BB94: 750.9719208 | BC94: 50 | BD94: 1061.76667 | BE94: -889.1026312 | BF94: -128713.5652 | BG94: 1061.76667 | BH94: -1061.76667 | BI94: -874.9223195 | BJ94: -131467.8137 | BK94: -902.1672316 | BL94: -126000.5632 | BM94: -874.9631279 | BN94: -131481.0998 | BO94: -902.2110421 | BP94: -126013.6203 | BQ94: -1011.76667 | BS94: -1111.76667 | BU94: -1011.76667 | BW94: -1111.76667
A95: 72 | B95: 20 | C95: 68 | D95: 2025-03-25 | E95: =$C$100 -> 73 | F95: =$D$100 -> 2025-08-25 | G95: 2024-08-25 | H95: 365 | I95: 31 | J95: 63 | K95: 1111.76667 | L95: 50 | M95: 50 | N95: 1011.76667 | P95: 259.5431294 | Q95: 0 | R95: 0 | S95: 0 | T95: 752.2235407 | V95: 154973.6541 | W95: 45026.34589 | Y95: 0.02 | Z95: 259.5431294 | AA95: 0 | AB95: 259.5431294 | AC95: 259.5431294 | AD95: 0 | AE95: 1061.76667 | AF95: -886.8604822 | AG95: -127811.3339 | AH95: -1061.76667 | AI95: 2025-08-25 | AK95: 73 | AL95: 2025-08-25 | AM95: 365 | AN95: 31 | AO95: 63 | AP95: 1111.76667 | AQ95: 50 | AR95: 50 | AS95: 1011.76667 | AT95: 259.6247434 | AU95: 752.1419267 | AV95: 154965.6569 | AW95: 0.020007327 | AY95: 154973.6541 | AZ95: 259.5431294 | BA95: 259.5431294 | BB95: 752.2235407 | BC95: 50 | BD95: 1061.76667 | BE95: -886.9032834 | BF95: -127824.4625 | BG95: 1061.76667 | BH95: -1061.76667 | BI95: -873.1498155 | BJ95: -130592.8914 | BK95: -899.540942 | BL95: -125098.396 | BM95: -873.1911095 | BN95: -130606.1367 | BO95: -899.5852345 | BP95: -125111.4093 | BQ95: -1011.76667 | BS95: -1111.76667 | BU95: -1011.76667 | BW95: -1111.76667
A96: 73 | B96: 20 | C96: 69 | D96: 2025-04-25 | E96: =$C$101 -> 74 | F96: =$D$101 -> 2025-09-25 | G96: 2024-09-25 | H96: 365 | I96: 31 | J96: 64 | K96: 1111.76667 | L96: 50 | M96: 50 | N96: 1011.76667 | P96: 258.2894235 | Q96: 0 | R96: 0 | S96: 0 | T96: 753.4772466 | V96: 154220.1769 | W96: 45779.82314 | X96: =IF(J96>$E$5,"",IF(AND(F96=$F$14,$U$424<$G$5),"Total déblocages insuffisant",IF(AND(J96>$E$5,O96>0),"Imposible - Durée dépassée",IF(AND(E96<>"",U96>0),"Pas de déblocage à cette date",IF(AND(E96="",O96<>""),"Pas d'échéance à cette date",IF(W96<0,"Saisies incohérentes",IF(AND(E96="",U96>0),"",IF(AND(E96="",U96=""),"Saisie manquante",IF(AND(F96=$F$14,$U$424<$G$5),"Fonds mis à disposition insuffisants",""))))))))) ->  | Y96: 0.02 | Z96: 258.2894235 | AA96: 0 | AB96: 258.2894235 | AC96: 258.2894235 | AD96: 0 | AE96: 1061.76667 | AF96: -884.6660931 | AG96: -126924.4734 | AH96: -1061.76667 | AI96: 2025-09-25 | AK96: 74 | AL96: 2025-09-25 | AM96: 365 | AN96: 31 | AO96: 64 | AP96: 1111.76667 | AQ96: 50 | AR96: 50 | AS96: 1011.76667 | AT96: 258.3707143 | AU96: 753.3959558 | AV96: 154212.261 | AW96: 0.020007327 | AY96: 154220.1769 | AZ96: 258.2894235 | BA96: 258.2894235 | BB96: 753.4772466 | BC96: 50 | BD96: 1061.76667 | BE96: -884.7093761 | BF96: -126937.5593 | BG96: 1061.76667 | BH96: -1061.76667 | BI96: -871.3809025 | BJ96: -129719.7416 | BK96: -896.9222978 | BL96: -124198.855 | BM96: -871.42268 | BN96: -129732.9455 | BO96: -896.9670692 | BP96: -124211.8241 | BQ96: -1011.76667 | BS96: -1111.76667 | BU96: -1011.76667 | BW96: -1111.76667
A97: 74 | B97: 20 | C97: 70 | D97: 2025-05-25 | E97: =$C$102 -> 75 | F97: =$D$102 -> 2025-10-25 | G97: 2024-10-25 | H97: 365 | I97: 30 | J97: 65 | K97: 1111.76667 | L97: 50 | M97: 50 | N97: 1011.76667 | P97: 257.0336281 | Q97: 0 | R97: 0 | S97: 0 | T97: 754.733042 | V97: 153465.4438 | W97: 46534.55618 | Y97: 0.02 | Z97: 257.0336281 | AA97: 0 | AB97: 257.0336281 | AC97: 257.0336281 | AD97: 0 | AE97: 1061.76667 | AF97: -882.4771337 | AG97: -126039.8073 | AH97: -1061.76667 | AI97: 2025-10-25 | AK97: 75 | AL97: 2025-10-25 | AM97: 365 | AN97: 30 | AO97: 65 | AP97: 1111.76667 | AQ97: 50 | AR97: 50 | AS97: 1011.76667 | AT97: 257.1145944 | AU97: 754.6520757 | AV97: 153457.6089 | AW97: 0.020007327 | AY97: 153465.4438 | AZ97: 257.0336281 | BA97: 257.0336281 | BB97: 754.733042 | BC97: 50 | BD97: 1061.76667 | BE97: -882.5208958 | BF97: -126052.8499 | BG97: 1061.76667 | BH97: -1061.76667 | BI97: -869.615573 | BJ97: -128848.3607 | BK97: -894.3112766 | BL97: -123301.9327 | BM97: -869.657832 | BN97: -128861.5229 | BO97: -894.3565238 | BP97: -123314.857 | BQ97: -1011.76667 | BS97: -1111.76667 | BU97: -1011.76667 | BW97: -1111.76667
A98: 75 | B98: 20 | C98: 71 | D98: 2025-06-25 | E98: =$C$103 -> 76 | F98: =$D$103 -> 2025-11-25 | G98: 2024-11-25 | H98: 365 | I98: 31 | J98: 66 | K98: 1111.76667 | L98: 50 | M98: 50 | N98: 1011.76667 | P98: 255.7757397 | Q98: 0 | R98: 0 | S98: 0 | T98: 755.9909304 | V98: 152709.4529 | W98: 47290.54711 | Y98: 0.02 | Z98: 255.7757397 | AA98: 0 | AB98: 255.7757397 | AC98: 255.7757397 | AD98: 0 | AE98: 1061.76667 | AF98: -880.2935906 | AG98: -125157.3302 | AH98: -1061.76667 | AI98: 2025-11-25 | AK98: 76 | AL98: 2025-11-25 | AM98: 365 | AN98: 31 | AO98: 66 | AP98: 1111.76667 | AQ98: 50 | AR98: 50 | AS98: 1011.76667 | AT98: 255.8563801 | AU98: 755.91029 | AV98: 152701.6986 | AW98: 0.020007327 | AY98: 152709.4529 | AZ98: 255.7757397 | BA98: 255.7757397 | BB98: 755.9909304 | BC98: 50 | BD98: 1061.76667 | BE98: -880.3378291 | BF98: -125170.329 | BG98: 1061.76667 | BH98: -1061.76667 | BI98: -867.85382 | BJ98: -127978.7451 | BK98: -891.7078564 | BL98: -122407.6215 | BM98: -867.8965582 | BN98: -127991.865 | BO98: -891.7535762 | BP98: -122420.5005 | BQ98: -1011.76667 | BS98: -1111.76667 | BU98: -1011.76667 | BW98: -1111.76667
A99: 76 | B99: 20 | C99: 72 | D99: 2025-07-25 | E99: =$C$104 -> 77 | F99: =$D$104 -> 2025-12-25 | G99: 2024-12-25 | H99: 365 | I99: 30 | J99: 67 | K99: 1111.76667 | L99: 50 | M99: 50 | N99: 1011.76667 | P99: 254.5157548 | Q99: 0 | R99: 0 | S99: 0 | T99: 757.2509153 | V99: 151952.202 | W99: 48047.79803 | Y99: 0.02 | Z99: 254.5157548 | AA99: 0 | AB99: 254.5157548 | AC99: 254.5157548 | AD99: 0 | AE99: 1061.76667 | AF99: -878.1154502 | AG99: -124277.0366 | AH99: -1061.76667 | AI99: 2025-12-25 | AK99: 77 | AL99: 2025-12-25 | AM99: 365 | AN99: 30 | AO99: 67 | AP99: 1111.76667 | AQ99: 50 | AR99: 50 | AS99: 1011.76667 | AT99: 254.5960681 | AU99: 757.170602 | AV99: 151944.528 | AW99: 0.020007327 | AY99: 151952.202 | AZ99: 254.5157548 | BA99: 254.5157548 | BB99: 757.2509153 | BC99: 50 | BD99: 1061.76667 | BE99: -878.1601626 | BF99: -124289.9912 | BG99: 1061.76667 | BH99: -1061.76667 | BI99: -866.095636 | BJ99: -127110.8913 | BK99: -889.1120149 | BL99: -121515.9136 | BM99: -866.1388515 | BN99: -127123.9685 | BO99: -889.1582042 | BP99: -121528.7469 | BQ99: -1011.76667 | BS99: -1111.76667 | BU99: -1011.76667 | BW99: -1111.76667
A100: 77 | B100: 20 | C100: 73 | D100: 2025-08-25 | E100: =$C$105 -> 78 | F100: =$D$105 -> 2026-01-25 | G100: 2025-01-25 | H100: 365 | I100: 31 | J100: 68 | K100: 1111.76667 | L100: 50 | M100: 50 | N100: 1011.76667 | P100: 253.25367 | Q100: 0 | R100: 0 | S100: 0 | T100: 758.5130001 | V100: 151193.689 | W100: 48806.31103 | Y100: 0.02 | Z100: 253.25367 | AA100: 0 | AB100: 253.25367 | AC100: 253.25367 | AD100: 0 | AE100: 1061.76667 | AF100: -875.9426993 | AG100: -123398.9212 | AH100: -1061.76667 | AI100: 2026-01-25 | AK100: 78 | AL100: 2026-01-25 | AM100: 365 | AN100: 31 | AO100: 68 | AP100: 1111.76667 | AQ100: 50 | AR100: 50 | AS100: 1011.76667 | AT100: 253.3336548 | AU100: 758.4330153 | AV100: 151186.095 | AW100: 0.020007327 | AY100: 151193.689 | AZ100: 253.25367 | BA100: 253.25367 | BB100: 758.5130001 | BC100: 50 | BD100: 1061.76667 | BE100: -875.9878829 | BF100: -123411.831 | BG100: 1061.76667 | BH100: -1061.76667 | BI100: -864.341014 | BJ100: -126244.7957 | BK100: -886.5237302 | BL100: -120626.8016 | BM100: -864.3847045 | BN100: -126257.8296 | BO100: -886.5703858 | BP100: -120639.5887 | BQ100: -1011.76667 | BS100: -1111.76667 | BU100: -1011.76667 | BW100: -1111.76667
A101: 78 | B101: 20 | C101: 74 | D101: 2025-09-25 | E101: =$C$106 -> 79 | F101: =$D$106 -> 2026-02-25 | G101: 2025-02-25 | H101: 365 | I101: 31 | J101: 69 | K101: 1111.76667 | L101: 50 | M101: 50 | N101: 1011.76667 | P101: 251.9894816 | Q101: 0 | R101: 0 | S101: 0 | T101: 759.7771885 | V101: 150433.9118 | W101: 49566.08822 | Y101: 0.02 | Z101: 251.9894816 | AA101: 0 | AB101: 251.9894816 | AC101: 251.9894816 | AD101: 0 | AE101: 1061.76667 | AF101: -873.7753245 | AG101: -122522.9785 | AH101: -1061.76667 | AI101: 2026-02-25 | AK101: 79 | AL101: 2026-02-25 | AM101: 365 | AN101: 31 | AO101: 69 | AP101: 1111.76667 | AQ101: 50 | AR101: 50 | AS101: 1011.76667 | AT101: 252.0691367 | AU101: 759.6975334 | AV101: 150426.3974 | AW101: 0.020007327 | AY101: 150433.9118 | AZ101: 251.9894816 | BA101: 251.9894816 | BB101: 759.7771885 | BC101: 50 | BD101: 1061.76667 | BE101: -873.8209767 | BF101: -122535.8431 | BG101: 1061.76667 | BH101: -1061.76667 | BI101: -862.5899467 | BJ101: -125380.4546 | BK101: -883.9429802 | BL101: -119740.2779 | BM101: -862.6341101 | BN101: -125393.4449 | BO101: -883.9900991 | BP101: -119753.0183 | BQ101: -1011.76667 | BS101: -1111.76667 | BU101: -1011.76667 | BW101: -1111.76667
A102: 79 | B102: 20 | C102: 75 | D102: 2025-10-25 | E102: =$C$107 -> 80 | F102: =$D$107 -> 2026-03-25 | G102: 2025-03-25 | H102: 365 | I102: 28 | J102: 70 | K102: 1111.76667 | L102: 50 | M102: 50 | N102: 1011.76667 | P102: 250.7231863 | Q102: 0 | R102: 0 | S102: 0 | T102: 761.0434838 | V102: 149672.8683 | W102: 50327.1317 | Y102: 0.02 | Z102: 250.7231863 | AA102: 0 | AB102: 250.7231863 | AC102: 250.7231863 | AD102: 0 | AE102: 1061.76667 | AF102: -871.6133125 | AG102: -121649.2031 | AH102: -1061.76667 | AI102: 2026-03-25 | AK102: 80 | AL102: 2026-03-25 | AM102: 365 | AN102: 28 | AO102: 70 | AP102: 1111.76667 | AQ102: 50 | AR102: 50 | AS102: 1011.76667 | AT102: 250.8025102 | AU102: 760.9641598 | AV102: 149665.4333 | AW102: 0.020007327 | AY102: 149672.8683 | AZ102: 250.7231863 | BA102: 250.7231863 | BB102: 761.0434838 | BC102: 50 | BD102: 1061.76667 | BE102: -871.6594307 | BF102: -121662.0221 | BG102: 1061.76667 | BH102: -1061.76667 | BI102: -860.8424268 | BJ102: -124517.8647 | BK102: -881.369743 | BL102: -118856.3349 | BM102: -860.8870612 | BN102: -124530.8108 | BO102: -881.417322 | BP102: -118869.0282 | BQ102: -1011.76667 | BS102: -1111.76667 | BU102: -1011.76667 | BW102: -1111.76667
A103: 80 | B103: 20 | C103: 76 | D103: 2025-11-25 | E103: =$C$108 -> 81 | F103: =$D$108 -> 2026-04-25 | G103: 2025-04-25 | H103: 365 | I103: 31 | J103: 71 | K103: 1111.76667 | L103: 50 | M103: 50 | N103: 1011.76667 | P103: 249.4547805 | Q103: 0 | R103: 0 | S103: 0 | T103: 762.3118896 | V103: 148910.5564 | W103: 51089.44359 | Y103: 0.02 | Z103: 249.4547805 | AA103: 0 | AB103: 249.4547805 | AC103: 249.4547805 | AD103: 0 | AE103: 1061.76667 | AF103: -869.45665 | AG103: -120777.5898 | AH103: -1061.76667 | AI103: 2026-04-25 | AK103: 81 | AL103: 2026-04-25 | AM103: 365 | AN103: 31 | AO103: 71 | AP103: 1111.76667 | AQ103: 50 | AR103: 50 | AS103: 1011.76667 | AT103: 249.533772 | AU103: 762.2328981 | AV103: 148903.2004 | AW103: 0.020007327 | AY103: 148910.5564 | AZ103: 249.4547805 | BA103: 249.4547805 | BB103: 762.3118896 | BC103: 50 | BD103: 1061.76667 | BE103: -869.5032317 | BF103: -120790.3627 | BG103: 1061.76667 | BH103: -1061.76667 | BI103: -859.0984473 | BJ103: -123657.0223 | BK103: -878.8039968 | BL103: -117974.9651 | BM103: -859.1435504 | BN103: -123669.9237 | BO103: -878.8520328 | BP103: -117987.6109 | BQ103: -1011.76667 | BS103: -1111.76667 | BU103: -1011.76667 | BW103: -1111.76667
A104: 81 | B104: 20 | C104: 77 | D104: 2025-12-25 | E104: =$C$109 -> 82 | F104: =$D$109 -> 2026-05-25 | G104: 2025-05-25 | H104: 365 | I104: 30 | J104: 72 | K104: 1111.76667 | L104: 50 | M104: 50 | N104: 1011.76667 | P104: 248.1842607 | Q104: 0 | R104: 0 | S104: 0 | T104: 763.5824094 | V104: 148146.974 | W104: 51853.026 | Y104: 0.02 | Z104: 248.1842607 | AA104: 0 | AB104: 248.1842607 | AC104: 248.1842607 | AD104: 0 | AE104: 1061.76667 | AF104: -867.3053239 | AG104: -119908.1332 | AH104: -1061.76667 | AI104: 2026-05-25 | AK104: 82 | AL104: 2026-05-25 | AM104: 365 | AN104: 30 | AO104: 72 | AP104: 1111.76667 | AQ104: 50 | AR104: 50 | AS104: 1011.76667 | AT104: 248.2629184 | AU104: 763.5037516 | AV104: 148139.6966 | AW104: 0.020007327 | AY104: 148146.974 | AZ104: 248.1842607 | BA104: 248.1842607 | BB104: 763.5824094 | BC104: 50 | BD104: 1061.76667 | BE104: -867.3523664 | BF104: -119920.8595 | BG104: 1061.76667 | BH104: -1061.76667 | BI104: -857.3580008 | BJ104: -122797.9238 | BK104: -876.2457196 | BL104: -117096.1611 | BM104: -857.4035706 | BN104: -122810.7802 | BO104: -876.2942097 | BP104: -117108.7589 | BQ104: -1011.76667 | BS104: -1111.76667 | BU104: -1011.76667 | BW104: -1111.76667
A105: 82 | B105: 20 | C105: 78 | D105: 2026-01-25 | E105: =$C$110 -> 83 | F105: =$D$110 -> 2026-06-25 | G105: 2025-06-25 | H105: 365 | I105: 31 | J105: 73 | K105: 1111.76667 | L105: 50 | M105: 50 | N105: 1011.76667 | P105: 246.9116233 | Q105: 0 | R105: 0 | S105: 0 | T105: 764.8550468 | V105: 147382.119 | W105: 52617.88105 | Y105: 0.02 | Z105: 246.9116233 | AA105: 0 | AB105: 246.9116233 | AC105: 246.9116233 | AD105: 0 | AE105: 1061.76667 | AF105: -865.1593208 | AG105: -119040.8278 | AH105: -1061.76667 | AI105: 2026-06-25 | AK105: 83 | AL105: 2026-06-25 | AM105: 365 | AN105: 31 | AO105: 73 | AP105: 1111.76667 | AQ105: 50 | AR105: 50 | AS105: 1011.76667 | AT105: 246.989946 | AU105: 764.7767241 | AV105: 147374.9199 | AW105: 0.020007327 | AY105: 147382.119 | AZ105: 246.9116233 | BA105: 246.9116233 | BB105: 764.8550468 | BC105: 50 | BD105: 1061.76667 | BE105: -865.2068216 | BF105: -119053.5071 | BG105: 1061.76667 | BH105: -1061.76667 | BI105: -855.6210804 | BJ105: -121940.5658 | BK105: -873.6948899 | BL105: -116219.9154 | BM105: -855.6671148 | BN105: -121953.3766 | BO105: -873.7438308 | BP105: -116232.4646 | BQ105: -1011.76667 | BS105: -1111.76667 | BU105: -1011.76667 | BW105: -1111.76667
A106: 83 | B106: 20 | C106: 79 | D106: 2026-02-25 | E106: =$C$111 -> 84 | F106: =$D$111 -> 2026-07-25 | G106: 2025-07-25 | H106: 365 | I106: 30 | J106: 74 | K106: 1111.76667 | L106: 50 | M106: 50 | N106: 1011.76667 | P106: 245.6368649 | Q106: 0 | R106: 0 | S106: 0 | T106: 766.1298052 | V106: 146615.9891 | W106: 53384.01085 | Y106: 0.02 | Z106: 245.6368649 | AA106: 0 | AB106: 245.6368649 | AC106: 245.6368649 | AD106: 0 | AE106: 1061.76667 | AF106: -863.0186277 | AG106: -118175.6685 | AH106: -1061.76667 | AI106: 2026-07-25 | AK106: 84 | AL106: 2026-07-25 | AM106: 365 | AN106: 30 | AO106: 74 | AP106: 1111.76667 | AQ106: 50 | AR106: 50 | AS106: 1011.76667 | AT106: 245.7148512 | AU106: 766.0518189 | AV106: 146608.8681 | AW106: 0.020007327 | AY106: 146615.9891 | AZ106: 245.6368649 | BA106: 245.6368649 | BB106: 766.1298052 | BC106: 50 | BD106: 1061.76667 | BE106: -863.0665842 | BF106: -118188.3003 | BG106: 1061.76667 | BH106: -1061.76667 | BI106: -853.8876787 | BJ106: -121084.9447 | BK106: -871.1514858 | BL106: -115346.2205 | BM106: -853.9341757 | BN106: -121097.7095 | BO106: -871.2008747 | BP106: -115358.7208 | BQ106: -1011.76667 | BS106: -1111.76667 | BU106: -1011.76667 | BW106: -1111.76667
A107: 84 | B107: 20 | C107: 80 | D107: 2026-03-25 | E107: =$C$112 -> 85 | F107: =$D$112 -> 2026-08-25 | G107: 2025-08-25 | H107: 365 | I107: 31 | J107: 75 | K107: 1111.76667 | L107: 50 | M107: 50 | N107: 1011.76667 | P107: 244.3599819 | Q107: 0 | R107: 0 | S107: 0 | T107: 767.4066882 | V107: 145848.5825 | W107: 54151.41754 | Y107: 0.02 | Z107: 244.3599819 | AA107: 0 | AB107: 244.3599819 | AC107: 244.3599819 | AD107: 0 | AE107: 1061.76667 | AF107: -860.8832314 | AG107: -117312.6499 | AH107: -1061.76667 | AI107: 2026-08-25 | AK107: 85 | AL107: 2026-08-25 | AM107: 365 | AN107: 31 | AO107: 75 | AP107: 1111.76667 | AQ107: 50 | AR107: 50 | AS107: 1011.76667 | AT107: 244.4376304 | AU107: 767.3290397 | AV107: 145841.539 | AW107: 0.020007327 | AY107: 145848.5825 | AZ107: 244.3599819 | BA107: 244.3599819 | BB107: 767.4066882 | BC107: 50 | BD107: 1061.76667 | BE107: -860.931641 | BF107: -117325.2337 | BG107: 1061.76667 | BH107: -1061.76667 | BI107: -852.1577888 | BJ107: -120231.0571 | BK107: -868.6154858 | BL107: -114475.069 | BM107: -852.2047463 | BN107: -120243.7753 | BO107: -868.6653196 | BP107: -114487.5199 | BQ107: -1011.76667 | BS107: -1111.76667 | BU107: -1011.76667 | BW107: -1111.76667
A108: 85 | B108: 20 | C108: 81 | D108: 2026-04-25 | E108: =$C$113 -> 86 | F108: =$D$113 -> 2026-09-25 | G108: 2025-09-25 | H108: 365 | I108: 31 | J108: 76 | K108: 1111.76667 | L108: 50 | M108: 50 | N108: 1011.76667 | P108: 243.0809708 | Q108: 0 | R108: 0 | S108: 0 | T108: 768.6856993 | V108: 145079.8968 | W108: 54920.10324 | Y108: 0.02 | Z108: 243.0809708 | AA108: 0 | AB108: 243.0809708 | AC108: 243.0809708 | AD108: 0 | AE108: 1061.76667 | AF108: -858.7531187 | AG108: -116451.7667 | AH108: -1061.76667 | AI108: 2026-09-25 | AK108: 86 | AL108: 2026-09-25 | AM108: 365 | AN108: 31 | AO108: 76 | AP108: 1111.76667 | AQ108: 50 | AR108: 50 | AS108: 1011.76667 | AT108: 243.1582802 | AU108: 768.6083899 | AV108: 145072.9307 | AW108: 0.020007327 | AY108: 145079.8968 | AZ108: 243.0809708 | BA108: 243.0809708 | BB108: 768.6856993 | BC108: 50 | BD108: 1061.76667 | BE108: -858.801979 | BF108: -116464.3021 | BG108: 1061.76667 | BH108: -1061.76667 | BI108: -850.4314034 | BJ108: -119378.8993 | BK108: -866.0868683 | BL108: -113606.4536 | BM108: -850.4788194 | BN108: -119391.5706 | BO108: -866.137144 | BP108: -113618.8546 | BQ108: -1011.76667 | BS108: -1111.76667 | BU108: -1011.76667 | BW108: -1111.76667
A109: 86 | B109: 20 | C109: 82 | D109: 2026-05-25 | E109: =$C$114 -> 87 | F109: =$D$114 -> 2026-10-25 | G109: 2025-10-25 | H109: 365 | I109: 30 | J109: 77 | K109: 1111.76667 | L109: 50 | M109: 50 | N109: 1011.76667 | P109: 241.7998279 | Q109: 0 | R109: 0 | S109: 0 | T109: 769.9668422 | V109: 144309.9299 | W109: 55690.07008 | Y109: 0.02 | Z109: 241.7998279 | AA109: 0 | AB109: 241.7998279 | AC109: 241.7998279 | AD109: 0 | AE109: 1061.76667 | AF109: -856.6282767 | AG109: -115593.0135 | AH109: -1061.76667 | AI109: 2026-10-25 | AK109: 87 | AL109: 2026-10-25 | AM109: 365 | AN109: 30 | AO109: 77 | AP109: 1111.76667 | AQ109: 50 | AR109: 50 | AS109: 1011.76667 | AT109: 241.8767969 | AU109: 769.8898732 | AV109: 144303.0408 | AW109: 0.020007327 | AY109: 144309.9299 | AZ109: 241.7998279 | BA109: 241.7998279 | BB109: 769.9668422 | BC109: 50 | BD109: 1061.76667 | BE109: -856.6775851 | BF109: -115605.5001 | BG109: 1061.76667 | BH109: -1061.76667 | BI109: -848.7085156 | BJ109: -118528.4679 | BK109: -863.5656118 | BL109: -112740.3667 | BM109: -848.7563879 | BN109: -118541.0918 | BO109: -863.6163264 | BP109: -112752.7175 | BQ109: -1011.76667 | BS109: -1111.76667 | BU109: -1011.76667 | BW109: -1111.76667
A110: 87 | B110: 20 | C110: 83 | D110: 2026-06-25 | E110: =$C$115 -> 88 | F110: =$D$115 -> 2026-11-25 | G110: 2025-11-25 | H110: 365 | I110: 31 | J110: 78 | K110: 1111.76667 | L110: 50 | M110: 50 | N110: 1011.76667 | P110: 240.5165499 | Q110: 0 | R110: 0 | S110: 0 | T110: 771.2501202 | V110: 143538.6798 | W110: 56461.3202 | Y110: 0.02 | Z110: 240.5165499 | AA110: 0 | AB110: 240.5165499 | AC110: 240.5165499 | AD110: 0 | AE110: 1061.76667 | AF110: -854.5086922 | AG110: -114736.3853 | AH110: -1061.76667 | AI110: 2026-11-25 | AK110: 88 | AL110: 2026-11-25 | AM110: 365 | AN110: 31 | AO110: 78 | AP110: 1111.76667 | AQ110: 50 | AR110: 50 | AS110: 1011.76667 | AT110: 240.593177 | AU110: 771.1734931 | AV110: 143531.8673 | AW110: 0.020007327 | AY110: 143538.6798 | AZ110: 240.5165499 | BA110: 240.5165499 | BB110: 771.2501202 | BC110: 50 | BD110: 1061.76667 | BE110: -854.5584463 | BF110: -114748.8225 | BG110: 1061.76667 | BH110: -1061.76667 | BI110: -846.9891181 | BJ110: -117679.7594 | BK110: -861.051695 | BL110: -111876.8011 | BM110: -847.0374447 | BN110: -117692.3354 | BO110: -861.1028455 | BP110: -111889.1011 | BQ110: -1011.76667 | BS110: -1111.76667 | BU110: -1011.76667 | BW110: -1111.76667
A111: 88 | B111: 20 | C111: 84 | D111: 2026-07-25 | E111: =$C$116 -> 89 | F111: =$D$116 -> 2026-12-25 | G111: 2025-12-25 | H111: 365 | I111: 30 | J111: 79 | K111: 1111.76667 | L111: 50 | M111: 50 | N111: 1011.76667 | P111: 239.231133 | Q111: 0 | R111: 0 | S111: 0 | T111: 772.5355371 | V111: 142766.1443 | W111: 57233.85574 | Y111: 0.02 | Z111: 239.231133 | AA111: 0 | AB111: 239.231133 | AC111: 239.231133 | AD111: 0 | AE111: 1061.76667 | AF111: -852.3943523 | AG111: -113881.8766 | AH111: -1061.76667 | AI111: 2026-12-25 | AK111: 89 | AL111: 2026-12-25 | AM111: 365 | AN111: 30 | AO111: 79 | AP111: 1111.76667 | AQ111: 50 | AR111: 50 | AS111: 1011.76667 | AT111: 239.307417 | AU111: 772.4592531 | AV111: 142759.408 | AW111: 0.020007327 | AY111: 142766.1443 | AZ111: 239.231133 | BA111: 239.231133 | BB111: 772.5355371 | BC111: 50 | BD111: 1061.76667 | BE111: -852.4445495 | BF111: -113894.264 | BG111: 1061.76667 | BH111: -1061.76667 | BI111: -845.2732039 | BJ111: -116832.7702 | BK111: -858.5450964 | BL111: -111015.7494 | BM111: -845.3219829 | BN111: -116845.2979 | BO111: -858.5966798 | BP111: -111027.9983 | BQ111: -1011.76667 | BS111: -1111.76667 | BU111: -1011.76667 | BW111: -1111.76667
A112: 89 | B112: 20 | C112: 85 | D112: 2026-08-25 | E112: =$C$117 -> 90 | F112: =$D$117 -> 2027-01-25 | G112: 2026-01-25 | H112: 365 | I112: 31 | J112: 80 | K112: 1111.76667 | L112: 50 | M112: 50 | N112: 1011.76667 | P112: 237.9435738 | Q112: 0 | R112: 0 | S112: 0 | T112: 773.8230963 | V112: 141992.3212 | W112: 58007.67884 | Y112: 0.02 | Z112: 237.9435738 | AA112: 0 | AB112: 237.9435738 | AC112: 237.9435738 | AD112: 0 | AE112: 1061.76667 | AF112: -850.285244 | AG112: -113029.4822 | AH112: -1061.76667 | AI112: 2027-01-25 | AK112: 90 | AL112: 2027-01-25 | AM112: 365 | AN112: 31 | AO112: 80 | AP112: 1111.76667 | AQ112: 50 | AR112: 50 | AS112: 1011.76667 | AT112: 238.0195132 | AU112: 773.7471568 | AV112: 141985.6609 | AW112: 0.020007327 | AY112: 141992.3212 | AZ112: 237.9435738 | BA112: 237.9435738 | BB112: 773.8230963 | BC112: 50 | BD112: 1061.76667 | BE112: -850.3358817 | BF112: -113041.8195 | BG112: 1061.76667 | BH112: -1061.76667 | BI112: -843.560766 | BJ112: -115987.497 | BK112: -856.0457947 | BL112: -110157.2043 | BM112: -843.6099953 | BN112: -115999.976 | BO112: -856.0978081 | BP112: -110169.4016 | BQ112: -1011.76667 | BS112: -1111.76667 | BU112: -1011.76667 | BW112: -1111.76667
A113: 90 | B113: 20 | C113: 86 | D113: 2026-09-25 | E113: =$C$118 -> 91 | F113: =$D$118 -> 2027-02-25 | G113: 2026-02-25 | H113: 365 | I113: 31 | J113: 81 | K113: 1111.76667 | L113: 50 | M113: 50 | N113: 1011.76667 | P113: 236.6538686 | Q113: 0 | R113: 0 | S113: 0 | T113: 775.1128015 | V113: 141217.2084 | W113: 58782.79164 | Y113: 0.02 | Z113: 236.6538686 | AA113: 0 | AB113: 236.6538686 | AC113: 236.6538686 | AD113: 0 | AE113: 1061.76667 | AF113: -848.1813543 | AG113: -112179.197 | AH113: -1061.76667 | AI113: 2027-02-25 | AK113: 91 | AL113: 2027-02-25 | AM113: 365 | AN113: 31 | AO113: 81 | AP113: 1111.76667 | AQ113: 50 | AR113: 50 | AS113: 1011.76667 | AT113: 236.7294622 | AU113: 775.0372079 | AV113: 141210.6237 | AW113: 0.020007327 | AY113: 141217.2084 | AZ113: 236.6538686 | BA113: 236.6538686 | BB113: 775.1128015 | BC113: 50 | BD113: 1061.76667 | BE113: -848.2324302 | BF113: -112191.4836 | BG113: 1061.76667 | BH113: -1061.76667 | BI113: -841.8517974 | BJ113: -115143.9363 | BK113: -853.5537687 | BL113: -109301.1585 | BM113: -841.9014749 | BN113: -115156.366 | BO113: -853.6062092 | BP113: -109313.3038 | BQ113: -1011.76667 | BS113: -1111.76667 | BU113: -1011.76667 | BW113: -1111.76667
A114: 91 | B114: 20 | C114: 87 | D114: 2026-10-25 | E114: =$C$119 -> 92 | F114: =$D$119 -> 2027-03-25 | G114: 2026-03-25 | H114: 365 | I114: 28 | J114: 82 | K114: 1111.76667 | L114: 50 | M114: 50 | N114: 1011.76667 | P114: 235.3620139 | Q114: 0 | R114: 0 | S114: 0 | T114: 776.4046562 | V114: 140440.8037 | W114: 59559.19629 | Y114: 0.02 | Z114: 235.3620139 | AA114: 0 | AB114: 235.3620139 | AC114: 235.3620139 | AD114: 0 | AE114: 1061.76667 | AF114: -846.0826703 | AG114: -111331.0156 | AH114: -1061.76667 | AI114: 2027-03-25 | AK114: 92 | AL114: 2027-03-25 | AM114: 365 | AN114: 28 | AO114: 82 | AP114: 1111.76667 | AQ114: 50 | AR114: 50 | AS114: 1011.76667 | AT114: 235.4372603 | AU114: 776.3294098 | AV114: 140434.2943 | AW114: 0.020007327 | AY114: 140440.8037 | AZ114: 235.3620139 | BA114: 235.3620139 | BB114: 776.4046562 | BC114: 50 | BD114: 1061.76667 | BE114: -846.1341818 | BF114: -111343.2512 | BG114: 1061.76667 | BH114: -1061.76667 | BI114: -840.1462909 | BJ114: -114302.0845 | BK114: -851.0689973 | BL114: -108447.6047 | BM114: -840.1964146 | BN114: -114314.4645 | BO114: -851.1218618 | BP114: -108459.6976 | BQ114: -1011.76667 | BS114: -1111.76667 | BU114: -1011.76667 | BW114: -1111.76667
A115: 92 | B115: 20 | C115: 88 | D115: 2026-11-25 | E115: =$C$120 -> 93 | F115: =$D$120 -> 2027-04-25 | G115: 2026-04-25 | H115: 365 | I115: 31 | J115: 83 | K115: 1111.76667 | L115: 50 | M115: 50 | N115: 1011.76667 | P115: 234.0680062 | Q115: 0 | R115: 0 | S115: 0 | T115: 777.6986639 | V115: 139663.105 | W115: 60336.89496 | Y115: 0.02 | Z115: 234.0680062 | AA115: 0 | AB115: 234.0680062 | AC115: 234.0680062 | AD115: 0 | AE115: 1061.76667 | AF115: -843.9891792 | AG115: -110484.933 | AH115: -1061.76667 | AI115: 2027-04-25 | AK115: 93 | AL115: 2027-04-25 | AM115: 365 | AN115: 31 | AO115: 83 | AP115: 1111.76667 | AQ115: 50 | AR115: 50 | AS115: 1011.76667 | AT115: 234.1429039 | AU115: 777.6237661 | AV115: 139656.6705 | AW115: 0.020007327 | AY115: 139663.105 | AZ115: 234.0680062 | BA115: 234.0680062 | BB115: 777.6986639 | BC115: 50 | BD115: 1061.76667 | BE115: -844.0411239 | BF115: -110497.117 | BG115: 1061.76667 | BH115: -1061.76667 | BI115: -838.4442396 | BJ115: -113461.9382 | BK115: -848.5914592 | BL115: -107596.5357 | BM115: -838.4948076 | BN115: -113474.2681 | BO115: -848.644745 | BP115: -107608.5757 | BQ115: -1011.76667 | BS115: -1111.76667 | BU115: -1011.76667 | BW115: -1111.76667
A116: 93 | B116: 20 | C116: 89 | D116: 2026-12-25 | E116: =$C$121 -> 94 | F116: =$D$121 -> 2027-05-25 | G116: 2026-05-25 | H116: 365 | I116: 30 | J116: 84 | K116: 1111.76667 | L116: 50 | M116: 50 | N116: 1011.76667 | P116: 232.7718417 | Q116: 0 | R116: 0 | S116: 0 | T116: 778.9948284 | V116: 138884.1102 | W116: 61115.88979 | Y116: 0.02 | Z116: 232.7718417 | AA116: 0 | AB116: 232.7718417 | AC116: 232.7718417 | AD116: 0 | AE116: 1061.76667 | AF116: -841.9008681 | AG116: -109640.9438 | AH116: -1061.76667 | AI116: 2027-05-25 | AK116: 94 | AL116: 2027-05-25 | AM116: 365 | AN116: 30 | AO116: 84 | AP116: 1111.76667 | AQ116: 50 | AR116: 50 | AS116: 1011.76667 | AT116: 232.8463895 | AU116: 778.9202806 | AV116: 138877.7502 | AW116: 0.020007327 | AY116: 138884.1102 | AZ116: 232.7718417 | BA116: 232.7718417 | BB116: 778.9948284 | BC116: 50 | BD116: 1061.76667 | BE116: -841.9532435 | BF116: -109653.0759 | BG116: 1061.76667 | BH116: -1061.76667 | BI116: -836.7456365 | BJ116: -112623.4939 | BK116: -846.1211334 | BL116: -106747.9443 | BM116: -836.7966467 | BN116: -112635.7733 | BO116: -846.1748375 | BP116: -106759.931 | BQ116: -1011.76667 | BS116: -1111.76667 | BU116: -1011.76667 | BW116: -1111.76667
A117: 94 | B117: 20 | C117: 90 | D117: 2027-01-25 | E117: =$C$122 -> 95 | F117: =$D$122 -> 2027-06-25 | G117: 2026-06-25 | H117: 365 | I117: 31 | J117: 85 | K117: 1111.76667 | L117: 50 | M117: 50 | N117: 1011.76667 | P117: 231.473517 | Q117: 0 | R117: 0 | S117: 0 | T117: 780.2931531 | V117: 138103.8171 | W117: 61896.18294 | Y117: 0.02 | Z117: 231.473517 | AA117: 0 | AB117: 231.473517 | AC117: 231.473517 | AD117: 0 | AE117: 1061.76667 | AF117: -839.8177242 | AG117: -108799.0429 | AH117: -1061.76667 | AI117: 2027-06-25 | AK117: 95 | AL117: 2027-06-25 | AM117: 365 | AN117: 31 | AO117: 85 | AP117: 1111.76667 | AQ117: 50 | AR117: 50 | AS117: 1011.76667 | AT117: 231.5477135 | AU117: 780.2189566 | AV117: 138097.5313 | AW117: 0.020007327 | AY117: 138103.8171 | AZ117: 231.473517 | BA117: 231.473517 | BB117: 780.2931531 | BC117: 50 | BD117: 1061.76667 | BE117: -839.8705278 | BF117: -108811.1226 | BG117: 1061.76667 | BH117: -1061.76667 | BI117: -835.0504746 | BJ117: -111786.7483 | BK117: -843.657999 | BL117: -105901.8231 | BM117: -835.101925 | BN117: -111798.9766 | BO117: -843.7121185 | BP117: -105913.7562 | BQ117: -1011.76667 | BS117: -1111.76667 | BU117: -1011.76667 | BW117: -1111.76667
A118: 95 | B118: 20 | C118: 91 | D118: 2027-02-25 | E118: =$C$123 -> 96 | F118: =$D$123 -> 2027-07-25 | G118: 2026-07-25 | H118: 365 | I118: 30 | J118: 86 | K118: 1111.76667 | L118: 50 | M118: 50 | N118: 1011.76667 | P118: 230.1730284 | Q118: 0 | R118: 0 | S118: 0 | T118: 781.5936417 | V118: 137322.2234 | W118: 62677.77658 | Y118: 0.02 | Z118: 230.1730284 | AA118: 0 | AB118: 230.1730284 | AC118: 230.1730284 | AD118: 0 | AE118: 1061.76667 | AF118: -837.7397346 | AG118: -107959.2252 | AH118: -1061.76667 | AI118: 2027-07-25 | AK118: 96 | AL118: 2027-07-25 | AM118: 365 | AN118: 30 | AO118: 86 | AP118: 1111.76667 | AQ118: 50 | AR118: 50 | AS118: 1011.76667 | AT118: 230.2468721 | AU118: 781.5197979 | AV118: 137316.0115 | AW118: 0.020007327 | AY118: 137322.2234 | AZ118: 230.1730284 | BA118: 230.1730284 | BB118: 781.5936417 | BC118: 50 | BD118: 1061.76667 | BE118: -837.7929641 | BF118: -107971.2521 | BG118: 1061.76667 | BH118: -1061.76667 | BI118: -833.3587469 | BJ118: -110951.6978 | BK118: -841.202035 | BL118: -105058.1651 | BM118: -833.4106356 | BN118: -110963.8747 | BO118: -841.2565671 | BP118: -105070.044 | BQ118: -1011.76667 | BS118: -1111.76667 | BU118: -1011.76667 | BW118: -1111.76667
A119: 96 | B119: 20 | C119: 92 | D119: 2027-03-25 | E119: =$C$124 -> 97 | F119: =$D$124 -> 2027-08-25 | G119: 2026-08-25 | H119: 365 | I119: 31 | J119: 87 | K119: 1111.76667 | L119: 50 | M119: 50 | N119: 1011.76667 | P119: 228.8703724 | Q119: 0 | R119: 0 | S119: 0 | T119: 782.8962977 | V119: 136539.3271 | W119: 63460.67288 | Y119: 0.02 | Z119: 228.8703724 | AA119: 0 | AB119: 228.8703724 | AC119: 228.8703724 | AD119: 0 | AE119: 1061.76667 | AF119: -835.6668867 | AG119: -107121.4855 | AH119: -1061.76667 | AI119: 2027-08-25 | AK119: 97 | AL119: 2027-08-25 | AM119: 365 | AN119: 31 | AO119: 87 | AP119: 1111.76667 | AQ119: 50 | AR119: 50 | AS119: 1011.76667 | AT119: 228.943862 | AU119: 782.8228081 | AV119: 136533.1887 | AW119: 0.020007327 | AY119: 136539.3271 | AZ119: 228.8703724 | BA119: 228.8703724 | BB119: 782.8962977 | BC119: 50 | BD119: 1061.76667 | BE119: -835.7205396 | BF119: -107133.4591 | BG119: 1061.76667 | BH119: -1061.76667 | BI119: -831.6704465 | BJ119: -110118.3391 | BK119: -838.7532205 | BL119: -104216.9631 | BM119: -831.7227714 | BN119: -110130.4641 | BO119: -838.8081623 | BP119: -104228.7875 | BQ119: -1011.76667 | BS119: -1111.76667 | BU119: -1011.76667 | BW119: -1111.76667
A120: 97 | B120: 20 | C120: 93 | D120: 2027-04-25 | E120: =$C$125 -> 98 | F120: =$D$125 -> 2027-09-25 | G120: 2026-09-25 | H120: 365 | I120: 31 | J120: 88 | K120: 1111.76667 | L120: 50 | M120: 50 | N120: 1011.76667 | P120: 227.5655452 | Q120: 0 | R120: 0 | S120: 0 | T120: 784.2011249 | V120: 135755.126 | W120: 64244.874 | Y120: 0.02 | Z120: 227.5655452 | AA120: 0 | AB120: 227.5655452 | AC120: 227.5655452 | AD120: 0 | AE120: 1061.76667 | AF120: -833.5991677 | AG120: -106285.8186 | AH120: -1061.76667 | AI120: 2027-09-25 | AK120: 98 | AL120: 2027-09-25 | AM120: 365 | AN120: 31 | AO120: 88 | AP120: 1111.76667 | AQ120: 50 | AR120: 50 | AS120: 1011.76667 | AT120: 227.6386793 | AU120: 784.1279908 | AV120: 135749.0607 | AW120: 0.020007327 | AY120: 135755.126 | AZ120: 227.5655452 | BA120: 227.5655452 | BB120: 784.2011249 | BC120: 50 | BD120: 1061.76667 | BE120: -833.6532415 | BF120: -106297.7386 | BG120: 1061.76667 | BH120: -1061.76667 | BI120: -829.9855665 | BJ120: -109286.6686 | BK120: -836.3115348 | BL120: -103378.2099 | BM120: -830.0383256 | BN120: -109298.7413 | BO120: -836.3668834 | BP120: -103389.9793 | BQ120: -1011.76667 | BS120: -1111.76667 | BU120: -1011.76667 | BW120: -1111.76667
A121: 98 | B121: 20 | C121: 94 | D121: 2027-05-25 | E121: =$C$126 -> 99 | F121: =$D$126 -> 2027-10-25 | G121: 2026-10-25 | H121: 365 | I121: 30 | J121: 89 | K121: 1111.76667 | L121: 50 | M121: 50 | N121: 1011.76667 | P121: 226.2585433 | Q121: 0 | R121: 0 | S121: 0 | T121: 785.5081268 | V121: 134969.6179 | W121: 65030.38213 | Y121: 0.02 | Z121: 226.2585433 | AA121: 0 | AB121: 226.2585433 | AC121: 226.2585433 | AD121: 0 | AE121: 1061.76667 | AF121: -831.5365649 | AG121: -105452.2194 | AH121: -1061.76667 | AI121: 2027-10-25 | AK121: 99 | AL121: 2027-10-25 | AM121: 365 | AN121: 30 | AO121: 89 | AP121: 1111.76667 | AQ121: 50 | AR121: 50 | AS121: 1011.76667 | AT121: 226.3313206 | AU121: 785.4353495 | AV121: 134963.6253 | AW121: 0.020007327 | AY121: 134969.6179 | AZ121: 226.2585433 | BA121: 226.2585433 | BB121: 785.5081268 | BC121: 50 | BD121: 1061.76667 | BE121: -831.5910573 | BF121: -105464.0854 | BG121: 1061.76667 | BH121: -1061.76667 | BI121: -828.3040998 | BJ121: -108456.6831 | BK121: -833.876957 | BL121: -102541.8983 | BM121: -828.3572912 | BN121: -108468.703 | BO121: -833.9327096 | BP121: -102553.6124 | BQ121: -1011.76667 | BS121: -1111.76667 | BU121: -1011.76667 | BW121: -1111.76667
A122: 99 | B122: 20 | C122: 95 | D122: 2027-06-25 | E122: =$C$127 -> 100 | F122: =$D$127 -> 2027-11-25 | G122: 2026-11-25 | H122: 365 | I122: 31 | J122: 90 | K122: 1111.76667 | L122: 50 | M122: 50 | N122: 1011.76667 | P122: 224.9493631 | Q122: 0 | R122: 0 | S122: 0 | T122: 786.817307 | V122: 134182.8006 | W122: 65817.19944 | Y122: 0.02 | Z122: 224.9493631 | AA122: 0 | AB122: 224.9493631 | AC122: 224.9493631 | AD122: 0 | AE122: 1061.76667 | AF122: -829.4790657 | AG122: -104620.6828 | AH122: -1061.76667 | AI122: 2027-11-25 | AK122: 100 | AL122: 2027-11-25 | AM122: 365 | AN122: 31 | AO122: 90 | AP122: 1111.76667 | AQ122: 50 | AR122: 50 | AS122: 1011.76667 | AT122: 225.0217821 | AU122: 786.744888 | AV122: 134176.8804 | AW122: 0.020007327 | AY122: 134182.8006 | AZ122: 224.9493631 | BA122: 224.9493631 | BB122: 786.817307 | BC122: 50 | BD122: 1061.76667 | BE122: -829.5339743 | BF122: -104632.4943 | BG122: 1061.76667 | BH122: -1061.76667 | BI122: -826.6260396 | BJ122: -107628.379 | BK122: -831.4494665 | BL122: -101708.0214 | BM122: -826.6796613 | BN122: -107640.3457 | BO122: -831.5056203 | BP122: -101719.6797 | BQ122: -1011.76667 | BS122: -1111.76667 | BU122: -1011.76667 | BW122: -1111.76667
A123: 100 | B123: 20 | C123: 96 | D123: 2027-07-25 | E123: =$C$128 -> 101 | F123: =$D$128 -> 2027-12-25 | G123: 2026-12-25 | H123: 365 | I123: 30 | J123: 91 | K123: 1111.76667 | L123: 50 | M123: 50 | N123: 1011.76667 | P123: 223.6380009 | Q123: 0 | R123: 0 | S123: 0 | T123: 788.1286692 | V123: 133394.6719 | W123: 66605.32811 | Y123: 0.02 | Z123: 223.6380009 | AA123: 0 | AB123: 223.6380009 | AC123: 223.6380009 | AD123: 0 | AE123: 1061.76667 | AF123: -827.4266575 | AG123: -103791.2038 | AH123: -1061.76667 | AI123: 2027-12-25 | AK123: 101 | AL123: 2027-12-25 | AM123: 365 | AN123: 30 | AO123: 91 | AP123: 1111.76667 | AQ123: 50 | AR123: 50 | AS123: 1011.76667 | AT123: 223.7100602 | AU123: 788.0566099 | AV123: 133388.8238 | AW123: 0.020007327 | AY123: 133394.6719 | AZ123: 223.6380009 | BA123: 223.6380009 | BB123: 788.1286692 | BC123: 50 | BD123: 1061.76667 | BE123: -827.4819798 | BF123: -103802.9603 | BG123: 1061.76667 | BH123: -1061.76667 | BI123: -824.951379 | BJ123: -106801.7529 | BK123: -829.0290426 | BL123: -100876.5719 | BM123: -825.005429 | BN123: -106813.666 | BO123: -829.0855948 | BP123: -100888.1741 | BQ123: -1011.76667 | BS123: -1111.76667 | BU123: -1011.76667 | BW123: -1111.76667
A124: 101 | B124: 20 | C124: 97 | D124: 2027-08-25 | E124: =$C$129 -> 102 | F124: =$D$129 -> 2028-01-25 | G124: 2027-01-25 | H124: 365 | I124: 31 | J124: 92 | K124: 1111.76667 | L124: 50 | M124: 50 | N124: 1011.76667 | P124: 222.3244532 | Q124: 0 | R124: 0 | S124: 0 | T124: 789.4422169 | V124: 132605.2297 | W124: 67394.77032 | Y124: 0.02 | Z124: 222.3244532 | AA124: 0 | AB124: 222.3244532 | AC124: 222.3244532 | AD124: 0 | AE124: 1061.76667 | AF124: -825.3793276 | AG124: -102963.7771 | AH124: -1061.76667 | AI124: 2028-01-25 | AK124: 102 | AL124: 2028-01-25 | AM124: 365 | AN124: 31 | AO124: 92 | AP124: 1111.76667 | AQ124: 50 | AR124: 50 | AS124: 1011.76667 | AT124: 222.3961514 | AU124: 789.3705187 | AV124: 132599.4533 | AW124: 0.020007327 | AY124: 132605.2297 | AZ124: 222.3244532 | BA124: 222.3244532 | BB124: 789.4422169 | BC124: 50 | BD124: 1061.76667 | BE124: -825.4350613 | BF124: -102975.4784 | BG124: 1061.76667 | BH124: -1061.76667 | BI124: -823.280111 | BJ124: -105976.8016 | BK124: -826.6156648 | BL124: -100047.5429 | BM124: -823.3345875 | BN124: -105988.6606 | BO124: -826.6726126 | BP124: -100059.0885 | BQ124: -1011.76667 | BS124: -1111.76667 | BU124: -1011.76667 | BW124: -1111.76667
A125: 102 | B125: 20 | C125: 98 | D125: 2027-09-25 | E125: =$C$130 -> 103 | F125: =$D$130 -> 2028-02-25 | G125: 2027-02-25 | H125: 365 | I125: 31 | J125: 93 | K125: 1111.76667 | L125: 50 | M125: 50 | N125: 1011.76667 | P125: 221.0087161 | Q125: 0 | R125: 0 | S125: 0 | T125: 790.757954 | V125: 131814.4717 | W125: 68185.52828 | Y125: 0.02 | Z125: 221.0087161 | AA125: 0 | AB125: 221.0087161 | AC125: 221.0087161 | AD125: 0 | AE125: 1061.76667 | AF125: -823.3370635 | AG125: -102138.3978 | AH125: -1061.76667 | AI125: 2028-02-25 | AK125: 103 | AL125: 2028-02-25 | AM125: 365 | AN125: 31 | AO125: 93 | AP125: 1111.76667 | AQ125: 50 | AR125: 50 | AS125: 1011.76667 | AT125: 221.0800518 | AU125: 790.6866182 | AV125: 131808.7667 | AW125: 0.020007327 | AY125: 131814.4717 | AZ125: 221.0087161 | BA125: 221.0087161 | BB125: 790.757954 | BC125: 50 | BD125: 1061.76667 | BE125: -823.3932062 | BF125: -102150.0433 | BG125: 1061.76667 | BH125: -1061.76667 | BI125: -821.6122289 | BJ125: -105153.5214 | BK125: -824.2093126 | BL125: -99220.92721 | BM125: -821.6671298 | BN125: -105165.326 | BO125: -824.2666531 | BP125: -99232.41589 | BQ125: -1011.76667 | BS125: -1111.76667 | BU125: -1011.76667 | BW125: -1111.76667
A126: 103 | B126: 20 | C126: 99 | D126: 2027-10-25 | E126: =$C$131 -> 104 | F126: =$D$131 -> 2028-03-25 | G126: 2027-03-25 | H126: 366 | I126: 29 | J126: 94 | K126: 1111.76667 | L126: 50 | M126: 50 | N126: 1011.76667 | P126: 219.6907862 | Q126: 0 | R126: 0 | S126: 0 | T126: 792.0758839 | V126: 131022.3958 | W126: 68977.60416 | Y126: 0.02 | Z126: 219.6907862 | AA126: 0 | AB126: 219.6907862 | AC126: 219.6907862 | AD126: 0 | AE126: 1061.76667 | AF126: -821.2998526 | AG126: -101315.0607 | AH126: -1061.76667 | AI126: 2028-03-25 | AK126: 104 | AL126: 2028-03-25 | AM126: 366 | AN126: 29 | AO126: 94 | AP126: 1111.76667 | AQ126: 50 | AR126: 50 | AS126: 1011.76667 | AT126: 219.761758 | AU126: 792.0049121 | AV126: 131016.7618 | AW126: 0.020007327 | AY126: 131022.3958 | AZ126: 219.6907862 | BA126: 219.6907862 | BB126: 792.0758839 | BC126: 50 | BD126: 1061.76667 | BE126: -821.3564019 | BF126: -101326.6501 | BG126: 1061.76667 | BH126: -1061.76667 | BI126: -819.9477258 | BJ126: -104331.9092 | BK126: -821.8099655 | BL126: -98396.71789 | BM126: -820.0030492 | BN126: -104343.6589 | BO126: -821.867696 | BP126: -98408.14924 | BQ126: -1011.76667 | BS126: -1111.76667 | BU126: -1011.76667 | BW126: -1111.76667
A127: 104 | B127: 20 | C127: 100 | D127: 2027-11-25 | E127: =$C$132 -> 105 | F127: =$D$132 -> 2028-04-25 | G127: 2027-04-25 | H127: 366 | I127: 31 | J127: 95 | K127: 1111.76667 | L127: 50 | M127: 50 | N127: 1011.76667 | P127: 218.3706597 | Q127: 0 | R127: 0 | S127: 0 | T127: 793.3960104 | V127: 130228.9998 | W127: 69771.00017 | Y127: 0.02 | Z127: 218.3706597 | AA127: 0 | AB127: 218.3706597 | AC127: 218.3706597 | AD127: 0 | AE127: 1061.76667 | AF127: -819.2676824 | AG127: -100493.7609 | AH127: -1061.76667 | AI127: 2028-04-25 | AK127: 105 | AL127: 2028-04-25 | AM127: 366 | AN127: 31 | AO127: 95 | AP127: 1111.76667 | AQ127: 50 | AR127: 50 | AS127: 1011.76667 | AT127: 218.4412663 | AU127: 793.3254038 | AV127: 130223.4364 | AW127: 0.020007327 | AY127: 130228.9998 | AZ127: 218.3706597 | BA127: 218.3706597 | BB127: 793.3960104 | BC127: 50 | BD127: 1061.76667 | BE127: -819.3246361 | BF127: -100505.2937 | BG127: 1061.76667 | BH127: -1061.76667 | BI127: -818.2865947 | BJ127: -103511.9615 | BK127: -819.417603 | BL127: -97574.90793 | BM127: -818.3423387 | BN127: -103523.6558 | BO127: -819.4757209 | BP127: -97586.28154 | BQ127: -1011.76667 | BS127: -1111.76667 | BU127: -1011.76667 | BW127: -1111.76667
A128: 105 | B128: 20 | C128: 101 | D128: 2027-12-25 | E128: =$C$133 -> 106 | F128: =$D$133 -> 2028-05-25 | G128: 2027-05-25 | H128: 366 | I128: 30 | J128: 96 | K128: 1111.76667 | L128: 50 | M128: 50 | N128: 1011.76667 | P128: 217.048333 | Q128: 0 | R128: 0 | S128: 0 | T128: 794.718337 | V128: 129434.2815 | W128: 70565.71851 | Y128: 0.02 | Z128: 217.048333 | AA128: 0 | AB128: 217.048333 | AC128: 217.048333 | AD128: 0 | AE128: 1061.76667 | AF128: -817.2405405 | AG128: -99674.49319 | AH128: -1061.76667 | AI128: 2028-05-25 | AK128: 106 | AL128: 2028-05-25 | AM128: 366 | AN128: 30 | AO128: 96 | AP128: 1111.76667 | AQ128: 50 | AR128: 50 | AS128: 1011.76667 | AT128: 217.1185729 | AU128: 794.6480972 | AV128: 129428.7883 | AW128: 0.020007327 | AY128: 129434.2815 | AZ128: 217.048333 | BA128: 217.048333 | BB128: 794.718337 | BC128: 50 | BD128: 1061.76667 | BE128: -817.2978961 | BF128: -99685.96905 | BG128: 1061.76667 | BH128: -1061.76667 | BI128: -816.628829 | BJ128: -102693.6749 | BK128: -817.032205 | BL128: -96755.49033 | BM128: -816.6849916 | BN128: -102705.3135 | BO128: -817.0907074 | BP128: -96766.80582 | BQ128: -1011.76667 | BS128: -1111.76667 | BU128: -1011.76667 | BW128: -1111.76667
A129: 106 | B129: 20 | C129: 102 | D129: 2028-01-25 | E129: =$C$134 -> 107 | F129: =$D$134 -> 2028-06-25 | G129: 2027-06-25 | H129: 366 | I129: 31 | J129: 97 | K129: 1111.76667 | L129: 50 | M129: 50 | N129: 1011.76667 | P129: 215.7238025 | Q129: 0 | R129: 0 | S129: 0 | T129: 796.0428676 | V129: 128638.2386 | W129: 71361.76138 | Y129: 0.02 | Z129: 215.7238025 | AA129: 0 | AB129: 215.7238025 | AC129: 215.7238025 | AD129: 0 | AE129: 1061.76667 | AF129: -815.2184145 | AG129: -98857.25264 | AH129: -1061.76667 | AI129: 2028-06-25 | AK129: 107 | AL129: 2028-06-25 | AM129: 366 | AN129: 31 | AO129: 97 | AP129: 1111.76667 | AQ129: 50 | AR129: 50 | AS129: 1011.76667 | AT129: 215.7936742 | AU129: 795.9729959 | AV129: 128632.8153 | AW129: 0.020007327 | AY129: 128638.2386 | AZ129: 215.7238025 | BA129: 215.7238025 | BB129: 796.0428676 | BC129: 50 | BD129: 1061.76667 | BE129: -815.2761697 | BF129: -98868.67115 | BG129: 1061.76667 | BH129: -1061.76667 | BI129: -814.9744217 | BJ129: -101877.0461 | BK129: -814.6537511 | BL129: -95938.45812 | BM129: -815.031001 | BN129: -101888.6285 | BO129: -814.7126352 | BP129: -95949.71511 | BQ129: -1011.76667 | BS129: -1111.76667 | BU129: -1011.76667 | BW129: -1111.76667
A130: 107 | B130: 20 | C130: 103 | D130: 2028-02-25 | E130: =$C$135 -> 108 | F130: =$D$135 -> 2028-07-25 | G130: 2027-07-25 | H130: 366 | I130: 30 | J130: 98 | K130: 1111.76667 | L130: 50 | M130: 50 | N130: 1011.76667 | P130: 214.3970644 | Q130: 0 | R130: 0 | S130: 0 | T130: 797.3696057 | V130: 127840.869 | W130: 72159.13098 | Y130: 0.02 | Z130: 214.3970644 | AA130: 0 | AB130: 214.3970644 | AC130: 214.3970644 | AD130: 0 | AE130: 1061.76667 | AF130: -813.2012918 | AG130: -98042.03423 | AH130: -1061.76667 | AI130: 2028-07-25 | AK130: 108 | AL130: 2028-07-25 | AM130: 366 | AN130: 30 | AO130: 98 | AP130: 1111.76667 | AQ130: 50 | AR130: 50 | AS130: 1011.76667 | AT130: 214.4665665 | AU130: 797.3001036 | AV130: 127835.5152 | AW130: 0.020007327 | AY130: 127840.869 | AZ130: 214.3970644 | BA130: 214.3970644 | BB130: 797.3696057 | BC130: 50 | BD130: 1061.76667 | BE130: -813.2594443 | BF130: -98053.39498 | BG130: 1061.76667 | BH130: -1061.76667 | BI130: -813.3233661 | BJ130: -101062.0716 | BK130: -812.282221 | BL130: -95123.80437 | BM130: -813.3803602 | BN130: -101073.5975 | BO130: -812.3414843 | BP130: -95135.00248 | BQ130: -1011.76667 | BS130: -1111.76667 | BU130: -1011.76667 | BW130: -1111.76667
A131: 108 | B131: 20 | C131: 104 | D131: 2028-03-25 | E131: =$C$136 -> 109 | F131: =$D$136 -> 2028-08-25 | G131: 2027-08-25 | H131: 366 | I131: 31 | J131: 99 | K131: 1111.76667 | L131: 50 | M131: 50 | N131: 1011.76667 | P131: 213.068115 | Q131: 0 | R131: 0 | S131: 0 | T131: 798.6985551 | V131: 127042.1705 | W131: 72957.82954 | Y131: 0.02 | Z131: 213.068115 | AA131: 0 | AB131: 213.068115 | AC131: 213.068115 | AD131: 0 | AE131: 1061.76667 | AF131: -811.1891602 | AG131: -97228.83294 | AH131: -1061.76667 | AI131: 2028-08-25 | AK131: 109 | AL131: 2028-08-25 | AM131: 366 | AN131: 31 | AO131: 99 | AP131: 1111.76667 | AQ131: 50 | AR131: 50 | AS131: 1011.76667 | AT131: 213.1372462 | AU131: 798.6294239 | AV131: 127036.8857 | AW131: 0.020007327 | AY131: 127042.1705 | AZ131: 213.068115 | BA131: 213.068115 | BB131: 798.6985551 | BC131: 50 | BD131: 1061.76667 | BE131: -811.2477076 | BF131: -97240.13554 | BG131: 1061.76667 | BH131: -1061.76667 | BI131: -811.6756553 | BJ131: -100248.7483 | BK131: -809.9175947 | BL131: -94311.52215 | BM131: -811.7330624 | BN131: -100260.2171 | BO131: -809.9772344 | BP131: -94322.66099 | BQ131: -1011.76667 | BS131: -1111.76667 | BU131: -1011.76667 | BW131: -1111.76667
A132: 109 | B132: 20 | C132: 105 | D132: 2028-04-25 | E132: =$C$137 -> 110 | F132: =$D$137 -> 2028-09-25 | G132: 2027-09-25 | H132: 366 | I132: 31 | J132: 100 | K132: 1111.76667 | L132: 50 | M132: 50 | N132: 1011.76667 | P132: 211.7369508 | Q132: 0 | R132: 0 | S132: 0 | T132: 800.0297193 | V132: 126242.1407 | W132: 73757.85926 | Y132: 0.02 | Z132: 211.7369508 | AA132: 0 | AB132: 211.7369508 | AC132: 211.7369508 | AD132: 0 | AE132: 1061.76667 | AF132: -809.1820073 | AG132: -96417.64378 | AH132: -1061.76667 | AI132: 2028-09-25 | AK132: 110 | AL132: 2028-09-25 | AM132: 366 | AN132: 31 | AO132: 100 | AP132: 1111.76667 | AQ132: 50 | AR132: 50 | AS132: 1011.76667 | AT132: 211.8057095 | AU132: 799.9609606 | AV132: 126236.9248 | AW132: 0.020007327 | AY132: 126242.1407 | AZ132: 211.7369508 | BA132: 211.7369508 | BB132: 800.0297193 | BC132: 50 | BD132: 1061.76667 | BE132: -809.2409474 | BF132: -96428.88783 | BG132: 1061.76667 | BH132: -1061.76667 | BI132: -810.0312827 | BJ132: -99437.07262 | BK132: -807.5598521 | BL132: -93501.60455 | BM132: -810.0891007 | BN132: -99448.48405 | BO132: -807.6198654 | BP132: -93512.68376 | BQ132: -1011.76667 | BS132: -1111.76667 | BU132: -1011.76667 | BW132: -1111.76667
A133: 110 | B133: 20 | C133: 106 | D133: 2028-05-25 | E133: =$C$138 -> 111 | F133: =$D$138 -> 2028-10-25 | G133: 2027-10-25 | H133: 366 | I133: 30 | J133: 101 | K133: 1111.76667 | L133: 50 | M133: 50 | N133: 1011.76667 | P133: 210.4035679 | Q133: 0 | R133: 0 | S133: 0 | T133: 801.3631022 | V133: 125440.7776 | W133: 74559.22236 | Y133: 0.02 | Z133: 210.4035679 | AA133: 0 | AB133: 210.4035679 | AC133: 210.4035679 | AD133: 0 | AE133: 1061.76667 | AF133: -807.1798208 | AG133: -95608.46177 | AH133: -1061.76667 | AI133: 2028-10-25 | AK133: 111 | AL133: 2028-10-25 | AM133: 366 | AN133: 30 | AO133: 101 | AP133: 1111.76667 | AQ133: 50 | AR133: 50 | AS133: 1011.76667 | AT133: 210.4719528 | AU133: 801.2947173 | AV133: 125435.6301 | AW133: 0.020007327 | AY133: 125440.7776 | AZ133: 210.4035679 | BA133: 210.4035679 | BB133: 801.3631022 | BC133: 50 | BD133: 1061.76667 | BE133: -807.2391512 | BF133: -95619.64688 | BG133: 1061.76667 | BH133: -1061.76667 | BI133: -808.3902413 | BJ133: -98627.04134 | BK133: -805.208973 | BL133: -92694.0447 | BM133: -808.4484684 | BN133: -98638.39495 | BO133: -805.2693573 | BP133: -92705.06389 | BQ133: -1011.76667 | BS133: -1111.76667 | BU133: -1011.76667 | BW133: -1111.76667
A134: 111 | B134: 20 | C134: 107 | D134: 2028-06-25 | E134: =$C$139 -> 112 | F134: =$D$139 -> 2028-11-25 | G134: 2027-11-25 | H134: 366 | I134: 31 | J134: 102 | K134: 1111.76667 | L134: 50 | M134: 50 | N134: 1011.76667 | P134: 209.0679627 | Q134: 0 | R134: 0 | S134: 0 | T134: 802.6987074 | V134: 124638.0789 | W134: 75361.92106 | Y134: 0.02 | Z134: 209.0679627 | AA134: 0 | AB134: 209.0679627 | AC134: 209.0679627 | AD134: 0 | AE134: 1061.76667 | AF134: -805.1825883 | AG134: -94801.28195 | AH134: -1061.76667 | AI134: 2028-11-25 | AK134: 112 | AL134: 2028-11-25 | AM134: 366 | AN134: 31 | AO134: 102 | AP134: 1111.76667 | AQ134: 50 | AR134: 50 | AS134: 1011.76667 | AT134: 209.1359723 | AU134: 802.6306977 | AV134: 124632.9994 | AW134: 0.020007327 | AY134: 124638.0789 | AZ134: 209.0679627 | BA134: 209.0679627 | BB134: 802.6987074 | BC134: 50 | BD134: 1061.76667 | BE134: -805.2423067 | BF134: -94812.40773 | BG134: 1061.76667 | BH134: -1061.76667 | BI134: -806.7525246 | BJ134: -97818.6511 | BK134: -802.8649376 | BL134: -91888.83573 | BM134: -806.8111589 | BN134: -97829.94649 | BO134: -802.9256902 | BP134: -91899.79454 | BQ134: -1011.76667 | BS134: -1111.76667 | BU134: -1011.76667 | BW134: -1111.76667
A135: 112 | B135: 20 | C135: 108 | D135: 2028-07-25 | E135: =$C$140 -> 113 | F135: =$D$140 -> 2028-12-25 | G135: 2027-12-25 | H135: 366 | I135: 30 | J135: 103 | K135: 1111.76667 | L135: 50 | M135: 50 | N135: 1011.76667 | P135: 207.7301316 | Q135: 0 | R135: 0 | S135: 0 | T135: 804.0365385 | V135: 123834.0424 | W135: 76165.9576 | Y135: 0.02 | Z135: 207.7301316 | AA135: 0 | AB135: 207.7301316 | AC135: 207.7301316 | AD135: 0 | AE135: 1061.76667 | AF135: -803.1902976 | AG135: -93996.09936 | AH135: -1061.76667 | AI135: 2028-12-25 | AK135: 113 | AL135: 2028-12-25 | AM135: 366 | AN135: 30 | AO135: 103 | AP135: 1111.76667 | AQ135: 50 | AR135: 50 | AS135: 1011.76667 | AT135: 207.7977644 | AU135: 803.9689056 | AV135: 123829.0305 | AW135: 0.020007327 | AY135: 123834.0424 | AZ135: 207.7301316 | BA135: 207.7301316 | BB135: 804.0365385 | BC135: 50 | BD135: 1061.76667 | BE135: -803.2504019 | BF135: -94007.16543 | BG135: 1061.76667 | BH135: -1061.76667 | BI135: -805.1181257 | BJ135: -97011.89857 | BK135: -800.5277258 | BL135: -91085.97079 | BM135: -805.1771653 | BN135: -97023.13533 | BO135: -800.5888441 | BP135: -91096.86885 | BQ135: -1011.76667 | BS135: -1111.76667 | BU135: -1011.76667 | BW135: -1111.76667
A136: 113 | B136: 20 | C136: 109 | D136: 2028-08-25 | E136: =$C$141 -> 114 | F136: =$D$141 -> 2029-01-25 | G136: 2028-01-25 | H136: 366 | I136: 31 | J136: 104 | K136: 1111.76667 | L136: 50 | M136: 50 | N136: 1011.76667 | P136: 206.3900707 | Q136: 0 | R136: 0 | S136: 0 | T136: 805.3765994 | V136: 123028.6658 | W136: 76971.3342 | Y136: 0.02 | Z136: 206.3900707 | AA136: 0 | AB136: 206.3900707 | AC136: 206.3900707 | AD136: 0 | AE136: 1061.76667 | AF136: -801.2029366 | AG136: -93192.90906 | AH136: -1061.76667 | AI136: 2029-01-25 | AK136: 114 | AL136: 2029-01-25 | AM136: 366 | AN136: 31 | AO136: 104 | AP136: 1111.76667 | AQ136: 50 | AR136: 50 | AS136: 1011.76667 | AT136: 206.4573254 | AU136: 805.3093447 | AV136: 123023.7211 | AW136: 0.020007327 | AY136: 123028.6658 | AZ136: 206.3900707 | BA136: 206.3900707 | BB136: 805.3765994 | BC136: 50 | BD136: 1061.76667 | BE136: -801.2634243 | BF136: -93203.91502 | BG136: 1061.76667 | BH136: -1061.76667 | BI136: -803.4870379 | BJ136: -96206.78044 | BK136: -798.1973179 | BL136: -90285.44307 | BM136: -803.5464809 | BN136: -96217.95816 | BO136: -798.2587993 | BP136: -90296.28 | BQ136: -1011.76667 | BS136: -1111.76667 | BU136: -1011.76667 | BW136: -1111.76667
A137: 114 | B137: 20 | C137: 110 | D137: 2028-09-25 | E137: =$C$142 -> 115 | F137: =$D$142 -> 2029-02-25 | G137: 2028-02-25 | H137: 366 | I137: 31 | J137: 105 | K137: 1111.76667 | L137: 50 | M137: 50 | N137: 1011.76667 | P137: 205.0477763 | Q137: 0 | R137: 0 | S137: 0 | T137: 806.7188938 | V137: 122221.9469 | W137: 77778.0531 | Y137: 0.02 | Z137: 205.0477763 | AA137: 0 | AB137: 205.0477763 | AC137: 205.0477763 | AD137: 0 | AE137: 1061.76667 | AF137: -799.2204929 | AG137: -92391.70613 | AH137: -1061.76667 | AI137: 2029-02-25 | AK137: 115 | AL137: 2029-02-25 | AM137: 366 | AN137: 31 | AO137: 105 | AP137: 1111.76667 | AQ137: 50 | AR137: 50 | AS137: 1011.76667 | AT137: 205.1146514 | AU137: 806.6520187 | AV137: 122217.0691 | AW137: 0.020007327 | AY137: 122221.9469 | AZ137: 205.0477763 | BA137: 205.0477763 | BB137: 806.7188938 | BC137: 50 | BD137: 1061.76667 | BE137: -799.2813619 | BF137: -92402.6516 | BG137: 1061.76667 | BH137: -1061.76667 | BI137: -801.8592546 | BJ137: -95403.29341 | BK137: -795.873694 | BL137: -89487.24575 | BM137: -801.9190991 | BN137: -95414.41168 | BO137: -795.9355358 | BP137: -89498.0212 | BQ137: -1011.76667 | BS137: -1111.76667 | BU137: -1011.76667 | BW137: -1111.76667
A138: 115 | B138: 20 | C138: 111 | D138: 2028-10-25 | E138: =$C$143 -> 116 | F138: =$D$143 -> 2029-03-25 | G138: 2028-03-25 | H138: 365 | I138: 28 | J138: 106 | K138: 1111.76667 | L138: 50 | M138: 50 | N138: 1011.76667 | P138: 203.7032448 | Q138: 0 | R138: 0 | S138: 0 | T138: 808.0634253 | V138: 121413.8835 | W138: 78586.11652 | Y138: 0.02 | Z138: 203.7032448 | AA138: 0 | AB138: 203.7032448 | AC138: 203.7032448 | AD138: 0 | AE138: 1061.76667 | AF138: -797.2429545 | AG138: -91592.48563 | AH138: -1061.76667 | AI138: 2029-03-25 | AK138: 116 | AL138: 2029-03-25 | AM138: 365 | AN138: 28 | AO138: 106 | AP138: 1111.76667 | AQ138: 50 | AR138: 50 | AS138: 1011.76667 | AT138: 203.7697389 | AU138: 807.9969312 | AV138: 121409.0722 | AW138: 0.020007327 | AY138: 121413.8835 | AZ138: 203.7032448 | BA138: 203.7032448 | BB138: 808.0634253 | BC138: 50 | BD138: 1061.76667 | BE138: -797.3042024 | BF138: -91603.37024 | BG138: 1061.76667 | BH138: -1061.76667 | BI138: -800.234769 | BJ138: -94601.43415 | BK138: -793.5568344 | BL138: -88691.37205 | BM138: -800.2950131 | BN138: -94612.49258 | BO138: -793.619034 | BP138: -88702.08567 | BQ138: -1011.76667 | BS138: -1111.76667 | BU138: -1011.76667 | BW138: -1111.76667
A139: 116 | B139: 20 | C139: 112 | D139: 2028-11-25 | E139: =$C$144 -> 117 | F139: =$D$144 -> 2029-04-25 | G139: 2028-04-25 | H139: 365 | I139: 31 | J139: 107 | K139: 1111.76667 | L139: 50 | M139: 50 | N139: 1011.76667 | P139: 202.3564725 | Q139: 0 | R139: 0 | S139: 0 | T139: 809.4101976 | V139: 120604.4733 | W139: 79395.52672 | Y139: 0.02 | Z139: 202.3564725 | AA139: 0 | AB139: 202.3564725 | AC139: 202.3564725 | AD139: 0 | AE139: 1061.76667 | AF139: -795.2703091 | AG139: -90795.24268 | AH139: -1061.76667 | AI139: 2029-04-25 | AK139: 117 | AL139: 2029-04-25 | AM139: 365 | AN139: 31 | AO139: 107 | AP139: 1111.76667 | AQ139: 50 | AR139: 50 | AS139: 1011.76667 | AT139: 202.422584 | AU139: 809.3440861 | AV139: 120599.7281 | AW139: 0.020007327 | AY139: 120604.4733 | AZ139: 202.3564725 | BA139: 202.3564725 | BB139: 809.4101976 | BC139: 50 | BD139: 1061.76667 | BE139: -795.3319338 | BF139: -90806.06603 | BG139: 1061.76667 | BH139: -1061.76667 | BI139: -798.6135744 | BJ139: -93801.19938 | BK139: -791.2467194 | BL139: -87897.81522 | BM139: -798.6742164 | BN139: -93812.19757 | BO139: -791.3092741 | BP139: -87908.46663 | BQ139: -1011.76667 | BS139: -1111.76667 | BU139: -1011.76667 | BW139: -1111.76667
A140: 117 | B140: 20 | C140: 113 | D140: 2028-12-25 | E140: =$C$145 -> 118 | F140: =$D$145 -> 2029-05-25 | G140: 2028-05-25 | H140: 365 | I140: 30 | J140: 108 | K140: 1111.76667 | L140: 50 | M140: 50 | N140: 1011.76667 | P140: 201.0074555 | Q140: 0 | R140: 0 | S140: 0 | T140: 810.7592146 | V140: 119793.7141 | W140: 80206.28593 | Y140: 0.02 | Z140: 201.0074555 | AA140: 0 | AB140: 201.0074555 | AC140: 201.0074555 | AD140: 0 | AE140: 1061.76667 | AF140: -793.3025448 | AG140: -89999.97237 | AH140: -1061.76667 | AI140: 2029-05-25 | AK140: 118 | AL140: 2029-05-25 | AM140: 365 | AN140: 30 | AO140: 108 | AP140: 1111.76667 | AQ140: 50 | AR140: 50 | AS140: 1011.76667 | AT140: 201.073183 | AU140: 810.6934871 | AV140: 119789.0346 | AW140: 0.020007327 | AY140: 119793.7141 | AZ140: 201.0074555 | BA140: 201.0074555 | BB140: 810.7592146 | BC140: 50 | BD140: 1061.76667 | BE140: -793.3645439 | BF140: -90010.7341 | BG140: 1061.76667 | BH140: -1061.76667 | BI140: -796.9956642 | BJ140: -93002.58581 | BK140: -788.9433293 | BL140: -87106.5685 | BM140: -797.0567021 | BN140: -93013.52335 | BO140: -789.0062366 | BP140: -87117.15736 | BQ140: -1011.76667 | BS140: -1111.76667 | BU140: -1011.76667 | BW140: -1111.76667
A141: 118 | B141: 20 | C141: 114 | D141: 2029-01-25 | E141: =$C$146 -> 119 | F141: =$D$146 -> 2029-06-25 | G141: 2028-06-25 | H141: 365 | I141: 31 | J141: 109 | K141: 1111.76667 | L141: 50 | M141: 50 | N141: 1011.76667 | P141: 199.6561901 | Q141: 0 | R141: 0 | S141: 0 | T141: 812.11048 | V141: 118981.6036 | W141: 81018.39641 | Y141: 0.02 | Z141: 199.6561901 | AA141: 0 | AB141: 199.6561901 | AC141: 199.6561901 | AD141: 0 | AE141: 1061.76667 | AF141: -791.3396493 | AG141: -89206.66983 | AH141: -1061.76667 | AI141: 2029-06-25 | AK141: 119 | AL141: 2029-06-25 | AM141: 365 | AN141: 31 | AO141: 109 | AP141: 1111.76667 | AQ141: 50 | AR141: 50 | AS141: 1011.76667 | AT141: 199.7215322 | AU141: 812.0451379 | AV141: 118976.9895 | AW141: 0.020007327 | AY141: 118981.6036 | AZ141: 199.6561901 | BA141: 199.6561901 | BB141: 812.11048 | BC141: 50 | BD141: 1061.76667 | BE141: -791.4020207 | BF141: -89217.36956 | BG141: 1061.76667 | BH141: -1061.76667 | BI141: -795.3810317 | BJ141: -92205.59014 | BK141: -786.6466446 | BL141: -86317.62517 | BM141: -795.4424637 | BN141: -92216.46665 | BO141: -786.7099019 | BP141: -86328.15112 | BQ141: -1011.76667 | BS141: -1111.76667 | BU141: -1011.76667 | BW141: -1111.76667
A142: 119 | B142: 20 | C142: 115 | D142: 2029-02-25 | E142: =$C$147 -> 120 | F142: =$D$147 -> 2029-07-25 | G142: 2028-07-25 | H142: 365 | I142: 30 | J142: 110 | K142: 1111.76667 | L142: 50 | M142: 50 | N142: 1011.76667 | P142: 198.3026726 | Q142: 0 | R142: 0 | S142: 0 | T142: 813.4639974 | V142: 118168.1396 | W142: 81831.86041 | Y142: 0.02 | Z142: 198.3026726 | AA142: 0 | AB142: 198.3026726 | AC142: 198.3026726 | AD142: 0 | AE142: 1061.76667 | AF142: -789.3816107 | AG142: -88415.33018 | AH142: -1061.76667 | AI142: 2029-07-25 | AK142: 120 | AL142: 2029-07-25 | AM142: 365 | AN142: 30 | AO142: 110 | AP142: 1111.76667 | AQ142: 50 | AR142: 50 | AS142: 1011.76667 | AT142: 198.3676278 | AU142: 813.3990423 | AV142: 118163.5904 | AW142: 0.020007327 | AY142: 118168.1396 | AZ142: 198.3026726 | BA142: 198.3026726 | BB142: 813.4639974 | BC142: 50 | BD142: 1061.76667 | BE142: -789.4443521 | BF142: -88425.96754 | BG142: 1061.76667 | BH142: -1061.76667 | BI142: -793.7696703 | BJ142: -91410.20911 | BK142: -784.3566458 | BL142: -85530.97853 | BM142: -793.8314945 | BN142: -91421.02419 | BO142: -784.4202505 | BP142: -85541.44122 | BQ142: -1011.76667 | BS142: -1111.76667 | BU142: -1011.76667 | BW142: -1111.76667
A143: 120 | B143: 20 | C143: 116 | D143: 2029-03-25 | E143: =$C$148 -> 121 | F143: =$D$148 -> 2029-08-25 | G143: 2028-08-25 | H143: 365 | I143: 31 | J143: 111 | K143: 1111.76667 | L143: 50 | M143: 50 | N143: 1011.76667 | P143: 196.9468993 | Q143: 0 | R143: 0 | S143: 0 | T143: 814.8197708 | V143: 117353.3198 | W143: 82646.68018 | Y143: 0.02 | Z143: 196.9468993 | AA143: 0 | AB143: 196.9468993 | AC143: 196.9468993 | AD143: 0 | AE143: 1061.76667 | AF143: -787.4284169 | AG143: -87625.94857 | AH143: -1061.76667 | AI143: 2029-08-25 | AK143: 121 | AL143: 2029-08-25 | AM143: 365 | AN143: 31 | AO143: 111 | AP143: 1111.76667 | AQ143: 50 | AR143: 50 | AS143: 1011.76667 | AT143: 197.0114661 | AU143: 814.755204 | AV143: 117348.8352 | AW143: 0.020007327 | AY143: 117353.3198 | AZ143: 196.9468993 | BA143: 196.9468993 | BB143: 814.8197708 | BC143: 50 | BD143: 1061.76667 | BE143: -787.4915262 | BF143: -87636.52318 | BG143: 1061.76667 | BH143: -1061.76667 | BI143: -792.1615734 | BJ143: -90616.43944 | BK143: -782.0733133 | BL143: -84746.62188 | BM143: -792.223788 | BN143: -90627.19269 | BO143: -782.1372629 | BP143: -84757.02097 | BQ143: -1011.76667 | BS143: -1111.76667 | BU143: -1011.76667 | BW143: -1111.76667
A144: 121 | B144: 20 | C144: 117 | D144: 2029-04-25 | E144: =$C$149 -> 122 | F144: =$D$149 -> 2029-09-25 | G144: 2028-09-25 | H144: 365 | I144: 31 | J144: 112 | K144: 1111.76667 | L144: 50 | M144: 50 | N144: 1011.76667 | P144: 195.5888664 | Q144: 0 | R144: 0 | S144: 0 | T144: 816.1778037 | V144: 116537.142 | W144: 83462.85799 | Y144: 0.02 | Z144: 195.5888664 | AA144: 0 | AB144: 195.5888664 | AC144: 195.5888664 | AD144: 0 | AE144: 1061.76667 | AF144: -785.480056 | AG144: -86838.52015 | AH144: -1061.76667 | AI144: 2029-09-25 | AK144: 122 | AL144: 2029-09-25 | AM144: 365 | AN144: 31 | AO144: 112 | AP144: 1111.76667 | AQ144: 50 | AR144: 50 | AS144: 1011.76667 | AT144: 195.6530433 | AU144: 816.1136268 | AV144: 116532.7216 | AW144: 0.020007327 | AY144: 116537.142 | AZ144: 195.5888664 | BA144: 195.5888664 | BB144: 816.1778037 | BC144: 50 | BD144: 1061.76667 | BE144: -785.5435309 | BF144: -86849.03166 | BG144: 1061.76667 | BH144: -1061.76667 | BI144: -790.5567343 | BJ144: -89824.27787 | BK144: -779.7966278 | BL144: -83964.54857 | BM144: -790.6193375 | BN144: -89834.9689 | BO144: -779.8609198 | BP144: -83974.88371 | BQ144: -1011.76667 | BS144: -1111.76667 | BU144: -1011.76667 | BW144: -1111.76667
A145: 122 | B145: 20 | C145: 118 | D145: 2029-05-25 | E145: =$C$150 -> 123 | F145: =$D$150 -> 2029-10-25 | G145: 2028-10-25 | H145: 365 | I145: 30 | J145: 113 | K145: 1111.76667 | L145: 50 | M145: 50 | N145: 1011.76667 | P145: 194.22857 | Q145: 0 | R145: 0 | S145: 0 | T145: 817.5381001 | V145: 115719.6039 | W145: 84280.39609 | Y145: 0.02 | Z145: 194.22857 | AA145: 0 | AB145: 194.22857 | AC145: 194.22857 | AD145: 0 | AE145: 1061.76667 | AF145: -783.536516 | AG145: -86053.04009 | AH145: -1061.76667 | AI145: 2029-10-25 | AK145: 123 | AL145: 2029-10-25 | AM145: 365 | AN145: 30 | AO145: 113 | AP145: 1111.76667 | AQ145: 50 | AR145: 50 | AS145: 1011.76667 | AT145: 194.2923556 | AU145: 817.4743145 | AV145: 115715.2473 | AW145: 0.020007327 | AY145: 115719.6039 | AZ145: 194.22857 | BA145: 194.22857 | BB145: 817.5381001 | BC145: 50 | BD145: 1061.76667 | BE145: -783.6003543 | BF145: -86063.48813 | BG145: 1061.76667 | BH145: -1061.76667 | BI145: -788.9551464 | BJ145: -89033.72114 | BK145: -777.52657 | BL145: -83184.75194 | BM145: -789.0181363 | BN145: -89044.34957 | BO145: -777.5912018 | BP145: -83195.02279 | BQ145: -1011.76667 | BS145: -1111.76667 | BU145: -1011.76667 | BW145: -1111.76667
A146: 123 | B146: 20 | C146: 119 | D146: 2029-06-25 | E146: =$C$151 -> 124 | F146: =$D$151 -> 2029-11-25 | G146: 2028-11-25 | H146: 365 | I146: 31 | J146: 114 | K146: 1111.76667 | L146: 50 | M146: 50 | N146: 1011.76667 | P146: 192.8660065 | Q146: =IF(E146="",P146,0) -> 0 | R146: 0 | S146: 0 | T146: 818.9006636 | V146: 114900.7033 | W146: 85099.29675 | Y146: 0.02 | Z146: 192.8660065 | AA146: =IF(X146<>"",1,0) -> 0 | AB146: 192.8660065 | AC146: 192.8660065 | AD146: 0 | AE146: 1061.76667 | AF146: -781.597785 | AG146: =AG147+AF146 -> -85269.50358 | AH146: -1061.76667 | AI146: 2029-11-25 | AK146: =IF(E146="","",E146) -> 124 | AL146: =F146 -> 2029-11-25 | AM146: 365 | AN146: 31 | AO146: 114 | AP146: 1111.76667 | AQ146: 50 | AR146: 50 | AS146: 1011.76667 | AT146: 192.9293992 | AU146: 818.8372708 | AV146: 114896.41 | AW146: 0.020007327 | AY146: 114900.7033 | AZ146: 192.8660065 | BA146: 192.8660065 | BB146: 818.9006636 | BC146: 50 | BD146: 1061.76667 | BE146: -781.6619845 | BF146: -85279.88777 | BG146: 1061.76667 | BH146: -1061.76667 | BI146: -787.3568032 | BJ146: -88244.76599 | BK146: -775.2631205 | BL146: =BL147+BK146 -> -82407.22537 | BM146: -787.420178 | BN146: -88255.33143 | BO146: -775.3280895 | BP146: =BP147+BO146 -> -82417.43159 | BQ146: -1011.76667 | BS146: -1111.76667 | BU146: -1011.76667 | BW146: -1111.76667
A147: =IF(G147=0,0,DATEDIF($F$18,F147,"m")) -> 124 | B147: =IF(G147=0,0,DATE(YEAR(F147),MONTH(F147)-A147,DAY(F147))-$F$18) -> 20 | C147: 120 | D147: 2029-07-25 | E147: =$C$152 -> 125 | F147: =$D$152 -> 2029-12-25 | G147: =IF(F147="",0,EDATE(F147,-12)) -> 2028-12-25 | H147: =IF(F147="",0,F147-G147) -> 365 | I147: =IF(F147="",0,F147-F146) -> 30 | J147: 115 | K147: 1111.76667 | L147: 50 | M147: 50 | N147: 1011.76667 | P147: 191.5011721 | Q147: 0 | R147: 0 | S147: 0 | T147: =IF(F147>=$I$14,IF(J147=1,-PPMT($H$5/12,J147,$E$5,$G$5,0),N147-P147),0) -> 820.265498 | V147: =IF(AND(J147<>"",J147>$E$5),0,V146-T147+U147) -> 114080.4378 | W147: =$G$5-V147 -> 85919.56225 | Y147: 0.02 | Z147: 191.5011721 | AA147: 0 | AB147: =IF(OR(AND(E147="",E146=""),AND(E147<>"",E146="")),P147+AB146,P147) -> 191.5011721 | AC147: =IF(E147="",0,AB147) -> 191.5011721 | AD147: =U147 -> 0 | AE147: =IF(AND(J147>$E$5,J147<>""),0,IF(E147="",0,N147+$N$14)) -> 1061.76667 | AF147: -779.663851 | AG147: -84487.90579 | AH147: -1061.76667 | AI147: =IF(AND(J147<>"",J147>1),EDATE(AI146,1),IF(J147=1,$I$14,F147)) -> 2029-12-25 | AK147: 125 | AL147: 2029-12-25 | AM147: 365 | AN147: 30 | AO147: 115 | AP147: =AS147+AR147+AQ147 -> 1111.76667 | AQ147: =L147 -> 50 | AR147: =M147 -> 50 | AS147: =IF(AND(AO147>$E$5,AO147<>""),0,N147) -> 1011.76667 | AT147: =IF(AND(AO147>$E$5,AO147<>""),0,IF(OR(AL147>$I$14,AL147=EDATE(AL146,1)),AV146*$AW$17/12,AV146*$AW$17/AM147*AN147)) -> 191.5641705 | AU147: 820.2024996 | AV147: =AV146+U147-AU147 -> 114076.2075 | AW147: 0.020007327 | AY147: 114080.4378 | AZ147: 191.5011721 | BA147: =IF(J147>$E$5,0,IF(OR(F147=EDATE(F146,1),J147>1),P147,V146*$H$5/H147*I147)) -> 191.5011721 | BB147: 820.265498 | BC147: 50 | BD147: 1061.76667 | BE147: -779.7284096 | BF147: =BF148+BE147 -> -84498.22579 | BG147: 1061.76667 | BH147: -1061.76667 | BI147: =IF($A147=0,0,IF($AD147=0,-$N147*(1+$BJ$16)^(-(($A147/12)+($B147/$H$19))),$AD147*(1+$BJ$16)^(-(($A147/12)+($B147/$H147))))) -> -785.7616981 | BJ147: =BJ148+BI147 -> -87457.40919 | BK147: -773.0062601 | BL147: -81631.96225 | BM147: -785.825456 | BN147: =BN148+BM147 -> -87467.91125 | BO147: -773.0715639 | BP147: -81642.1035 | BQ147: -1011.76667 | BS147: -1111.76667 | BU147: -1011.76667 | BW147: -1111.76667
A148: 125 | B148: 20 | C148: 121 | D148: 2029-08-25 | E148: =$C$153 -> 126 | F148: =$D$153 -> 2030-01-25 | G148: 2029-01-25 | H148: 365 | I148: 31 | J148: =IF(F148<$I$14,0,IF(ISERROR(AY148),J147+1,IF(OR(F148>$K$14,F148=""),J147+1,IF(AY148=$G$5,0,IF(F148<$I$14,"",IF(AND(J147=0,F148=$I$14),J147+1,IF(F148=EDATE(F147,1),J147+1,J147+1))))))) -> 116 | K148: =IF(J148>$E$5,0,N148+M148+L148) -> 1111.76667 | L148: 50 | M148: 50 | N148: =IF(J148>$E$5,0,IF(AND(O148>0,F148>=$I$14),O148,IF(J148=1,T148+P148,IF(J148>$E$5,0,IF(F148>=$I$14,-PMT($H$5/12,$E$5,$G$5,0,0),P148))))) -> 1011.76667 | P148: =IF(AND(E148<>"",F148>=$I$14,O148>0),N148-T148,IF(AND(E148<>"",F148<$I$14,O148>0),O148,IF(AND(E148="",$S$17=1),0,IF(AND(J148>$E$5,J148<>""),0,IF(AND(J148>$E$5,ISERROR(T148)),0,IF(AND(OR(F148>$I$14,F148=EDATE(F147,1)),E148<>1),IF(AND(Q148=0,S148>0),S148,V147*$H$5/12),IF(AND(Q148=0,S148>0),S148,V147*$H$5/360*I148))))))) -> 190.1340629 | Q148: 0 | R148: 0 | S148: 0 | T148: 821.6326072 | V148: 113258.8051 | W148: 86741.19485 | Y148: =IF(Z148=0,0,IF(AND(J148>$E$5,J148<>""),"",IF(AND(OR(F148>$I$14,F148=EDATE(F147,1)),E148<>1),Z148*12/V147,Z148*H148/I148/V147))) -> 0.02 | Z148: 190.1340629 | AA148: 0 | AB148: 190.1340629 | AC148: 190.1340629 | AD148: 0 | AE148: 1061.76667 | AF148: =IF($A148=0,0,IF($AD148=0,-$AE148*(1+$AG$16)^(-(($A148/12)+($B148/$H$19))),$AD148*(1+$AG$16)^(-(($A148/12)+($B148/$H148))))) -> -777.7347022 | AG148: -83708.24194 | AH148: =AD148-AE148 -> -1061.76667 | AI148: 2030-01-25 | AK148: 126 | AL148: 2030-01-25 | AM148: =H148 -> 365 | AN148: =I148 -> 31 | AO148: =IF(J148="","",J148) -> 116 | AP148: 1111.76667 | AQ148: 50 | AR148: 50 | AS148: 1011.76667 | AT148: 190.1966655 | AU148: =AS148-AT148 -> 821.5700046 | AV148: 113254.6375 | AW148: =IF(AT148=0,0,IF(AND(AO148>$E$5,AO148<>""),"",IF(OR(AL148>$I$14,AL148=EDATE(AL147,1)),AT148*12/AV147,AT148/AN148*AM148/AV147))) -> 0.020007327 | AY148: 113258.8051 | AZ148: =IF(J148>$E$5,0,IF(F148<>EDATE(F147,1),P148/H148*360,P148)) -> 190.1340629 | BA148: 190.1340629 | BB148: =T148 -> 821.6326072 | BC148: 50 | BD148: =AZ148+BB148+BC148 -> 1061.76667 | BE148: =IF($A148=0,0,IF($AD148=0,-$BG148*(1+$BF$16)^(-(($A148/12)+($B148/$H$19))),$AD148*(1+$BF$16)^(-(($A148/12)+($B148/$H148))))) -> -777.7996177 | BF148: -83718.49738 | BG148: 1061.76667 | BH148: =AD148-BG148 -> -1061.76667 | BI148: -784.1698245 | BJ148: -86671.64749 | BK148: =IF($A148=0,0,IF($AD148=0,-($N148+$L$14+$M$14)*(1+$BL$16)^(-(($A148/12)+($B148/$H$19))),$AD148*(1+$BL$16)^(-(($A148/12)+($B148/$H148))))) -> -770.7559697 | BL148: -80858.95599 | BM148: =IF($A148=0,0,IF($AD148=0,-($BG148-BC148)*(1+$BN$16)^(-(($A148/12)+($B148/$H$19))),$AD148*(1+$BN$16)^(-(($A148/12)+($B148/$H148))))) -> -784.2339637 | BN148: -86682.0858 | BO148: =IF($A148=0,0,IF($AD148=0,-(BG148-BC148+$L$14+$M$14)*(1+$BP$16)^(-(($A148/12)+($B148/$H$19))),$AD148*(1+$BP$16)^(-(($A148/12)+($B148/$H148))))) -> -770.8216057 | BP148: -80869.03193 | BQ148: =IF($A148=0,0,IF($AD148=0,-$N148,$AD148)) -> -1011.76667 | BS148: =IF($A148=0,0,IF($AD148=0,-($N148+$L$14+$M$14),$AD148)) -> -1111.76667 | BU148: =IF($A148=0,0,IF($AD148=0,-($BD148-$BC148),$AD148)) -> -1011.76667 | BW148: =IF($A148=0,0,IF($AD148=0,-($BD148-$BC148+$L$14+$M$14),$AD148)) -> -1111.76667
A149: 126 | B149: 20 | C149: 122 | D149: 2029-09-25 | E149: =$C$154 -> 127 | F149: =$D$154 -> 2030-02-25 | G149: 2029-02-25 | H149: 365 | I149: 31 | J149: 117 | K149: 1111.76667 | L149: =IF(OR(J149>$E$5,E149=""),0,$L$14) -> 50 | M149: =IF(OR(J149>$E$5,E149=""),0,$M$14) -> 50 | N149: 1011.76667 | P149: 188.7646752 | Q149: 0 | R149: 0 | S149: 0 | T149: 823.0019948 | V149: 112435.8032 | W149: 87564.19685 | Y149: 0.02 | Z149: 188.7646752 | AA149: 0 | AB149: 188.7646752 | AC149: 188.7646752 | AD149: 0 | AE149: 1061.76667 | AF149: -775.8103268 | AG149: -82930.50724 | AH149: -1061.76667 | AI149: 2030-02-25 | AK149: 127 | AL149: 2030-02-25 | AM149: 365 | AN149: 31 | AO149: 117 | AP149: 1111.76667 | AQ149: 50 | AR149: 50 | AS149: 1011.76667 | AT149: 188.8268805 | AU149: 822.9397895 | AV149: 112431.6977 | AW149: 0.020007327 | AY149: 112435.8032 | AZ149: 188.7646752 | BA149: 188.7646752 | BB149: 823.0019948 | BC149: =IF(E149="",0,IF(J149>$E$5,0,$N$14)) -> 50 | BD149: 1061.76667 | BE149: -775.875597 | BF149: -82940.69776 | BG149: 1061.76667 | BH149: -1061.76667 | BI149: -782.5811758 | BJ149: -85887.47766 | BK149: -768.51223 | BL149: -80088.20002 | BM149: -782.6456945 | BN149: -85897.85183 | BO149: -768.5781958 | BP149: -80098.21033 | BQ149: -1011.76667 | BS149: -1111.76667 | BU149: -1011.76667 | BW149: -1111.76667
A150: 127 | B150: 20 | C150: 123 | D150: 2029-10-25 | E150: =$C$155 -> 128 | F150: =$D$155 -> 2030-03-25 | G150: 2029-03-25 | H150: 365 | I150: 28 | J150: 118 | K150: 1111.76667 | L150: 50 | M150: 50 | N150: 1011.76667 | P150: 187.3930053 | Q150: 0 | R150: 0 | S150: 0 | T150: 824.3736648 | V150: 111611.4295 | W150: 88388.57051 | Y150: 0.02 | Z150: 187.3930053 | AA150: 0 | AB150: 187.3930053 | AC150: 187.3930053 | AD150: 0 | AE150: 1061.76667 | AF150: -773.890713 | AG150: -82154.69691 | AH150: -1061.76667 | AI150: 2030-03-25 | AK150: 128 | AL150: 2030-03-25 | AM150: 365 | AN150: 28 | AO150: 118 | AP150: 1111.76667 | AQ150: 50 | AR150: 50 | AS150: 1011.76667 | AT150: 187.4548118 | AU150: 824.3118583 | AV150: 111607.3858 | AW150: 0.020007327 | AY150: 111611.4295 | AZ150: 187.3930053 | BA150: 187.3930053 | BB150: 824.3736648 | BC150: 50 | BD150: 1061.76667 | BE150: -773.9563357 | BF150: -82164.82216 | BG150: 1061.76667 | BH150: -1061.76667 | BI150: -780.9957456 | BJ150: -85104.89649 | BK150: -766.2750221 | BL150: -79319.68779 | BM150: -781.060642 | BN150: -85115.20614 | BO150: -766.3413152 | BP150: -79329.63213 | BQ150: -1011.76667 | BS150: -1111.76667 | BU150: -1011.76667 | BW150: -1111.76667
A151: 128 | B151: 20 | C151: 124 | D151: 2029-11-25 | E151: =$C$156 -> 129 | F151: =$D$156 -> 2030-04-25 | G151: 2029-04-25 | H151: 365 | I151: 31 | J151: 119 | K151: 1111.76667 | L151: 50 | M151: 50 | N151: 1011.76667 | P151: 186.0190491 | Q151: 0 | R151: 0 | S151: 0 | T151: 825.7476209 | V151: 110785.6819 | W151: 89214.31814 | Y151: 0.02 | Z151: 186.0190491 | AA151: 0 | AB151: 186.0190491 | AC151: 186.0190491 | AD151: 0 | AE151: 1061.76667 | AF151: -771.9758489 | AG151: -81380.8062 | AH151: -1061.76667 | AI151: 2030-04-25 | AK151: 129 | AL151: 2030-04-25 | AM151: 365 | AN151: 31 | AO151: 119 | AP151: 1111.76667 | AQ151: 50 | AR151: 50 | AS151: 1011.76667 | AT151: 186.0804553 | AU151: 825.6862147 | AV151: 110781.6996 | AW151: 0.020007327 | AY151: 110785.6819 | AZ151: 186.0190491 | BA151: 186.0190491 | BB151: 825.7476209 | BC151: 50 | BD151: 1061.76667 | BE151: -772.0418221 | BF151: -81390.86583 | BG151: 1061.76667 | BH151: -1061.76667 | BI151: -779.4135274 | BJ151: -84323.90074 | BK151: -764.0443269 | BL151: -78553.41277 | BM151: -779.4787996 | BN151: -84334.1455 | BO151: -764.1109448 | BP151: -78563.29082 | BQ151: -1011.76667 | BS151: -1111.76667 | BU151: -1011.76667 | BW151: -1111.76667
A152: 129 | B152: 20 | C152: 125 | D152: 2029-12-25 | E152: =$C$157 -> 130 | F152: =$D$157 -> 2030-05-25 | G152: 2029-05-25 | H152: 365 | I152: 30 | J152: 120 | K152: 1111.76667 | L152: 50 | M152: 50 | N152: 1011.76667 | P152: 184.6428031 | Q152: 0 | R152: 0 | S152: 0 | T152: 827.123867 | V152: 109958.558 | W152: 90041.442 | Y152: 0.02 | Z152: 184.6428031 | AA152: 0 | AB152: 184.6428031 | AC152: 184.6428031 | AD152: 0 | AE152: 1061.76667 | AF152: -770.0657228 | AG152: -80608.83035 | AH152: -1061.76667 | AI152: 2030-05-25 | AK152: 130 | AL152: 2030-05-25 | AM152: 365 | AN152: 30 | AO152: 120 | AP152: 1111.76667 | AQ152: 50 | AR152: 50 | AS152: 1011.76667 | AT152: 184.7038075 | AU152: 827.0628626 | AV152: 109954.6368 | AW152: 0.020007327 | AY152: 109958.558 | AZ152: 184.6428031 | BA152: 184.6428031 | BB152: 827.123867 | BC152: 50 | BD152: 1061.76667 | BE152: -770.1320443 | BF152: -80618.82401 | BG152: 1061.76667 | BH152: -1061.76667 | BI152: -777.8345145 | BJ152: -83544.48721 | BK152: -761.8201254 | BL152: -77789.36844 | BM152: -777.9001609 | BN152: -83554.6667 | BO152: -761.8870657 | BP152: -77799.17987 | BQ152: -1011.76667 | BS152: -1111.76667 | BU152: -1011.76667 | BW152: -1111.76667
A153: 130 | B153: 20 | C153: 126 | D153: 2030-01-25 | E153: =$C$158 -> 131 | F153: =$D$158 -> 2030-06-25 | G153: 2029-06-25 | H153: 365 | I153: 31 | J153: 121 | K153: 1111.76667 | L153: 50 | M153: 50 | N153: 1011.76667 | P153: 183.2642633 | Q153: 0 | R153: 0 | S153: 0 | T153: 828.5024068 | V153: 109130.0556 | W153: 90869.94441 | Y153: 0.02 | Z153: 183.2642633 | AA153: 0 | AB153: 183.2642633 | AC153: 183.2642633 | AD153: 0 | AE153: 1061.76667 | AF153: -768.160323 | AG153: -79838.76463 | AH153: -1061.76667 | AI153: 2030-06-25 | AK153: 131 | AL153: 2030-06-25 | AM153: 365 | AN153: 31 | AO153: 121 | AP153: 1111.76667 | AQ153: 50 | AR153: 50 | AS153: 1011.76667 | AT153: 183.3248644 | AU153: 828.4418057 | AV153: 109126.195 | AW153: 0.020007327 | AY153: 109130.0556 | AZ153: 183.2642633 | BA153: 183.2642633 | BB153: 828.5024068 | BC153: 50 | BD153: 1061.76667 | BE153: -768.2269906 | BF153: -79848.69196 | BG153: 1061.76667 | BH153: -1061.76667 | BI153: -776.2587006 | BJ153: -82766.6527 | BK153: -759.6023988 | BL153: -77027.54831 | BM153: -776.3247192 | BN153: -82776.76653 | BO153: -759.669659 | BP153: -77037.29281 | BQ153: -1011.76667 | BS153: -1111.76667 | BU153: -1011.76667 | BW153: -1111.76667
A154: 131 | B154: 20 | C154: 127 | D154: 2030-02-25 | E154: =$C$159 -> 132 | F154: =$D$159 -> 2030-07-25 | G154: 2029-07-25 | H154: 365 | I154: 30 | J154: 122 | K154: 1111.76667 | L154: 50 | M154: 50 | N154: 1011.76667 | P154: 181.883426 | Q154: 0 | R154: 0 | S154: 0 | T154: 829.8832441 | V154: 108300.1723 | W154: 91699.82765 | Y154: 0.02 | Z154: 181.883426 | AA154: 0 | AB154: 181.883426 | AC154: 181.883426 | AD154: 0 | AE154: 1061.76667 | AF154: -766.2596378 | AG154: -79070.6043 | AH154: -1061.76667 | AI154: 2030-07-25 | AK154: 132 | AL154: 2030-07-25 | AM154: 365 | AN154: 30 | AO154: 122 | AP154: 1111.76667 | AQ154: 50 | AR154: 50 | AS154: 1011.76667 | AT154: 181.9436222 | AU154: 829.8230479 | AV154: 108296.3719 | AW154: 0.020007327 | AY154: 108300.1723 | AZ154: 181.883426 | BA154: 181.883426 | BB154: 829.8832441 | BC154: 50 | BD154: 1061.76667 | BE154: -766.3266495 | BF154: -79080.46497 | BG154: 1061.76667 | BH154: -1061.76667 | BI154: -774.6860791 | BJ154: -81990.394 | BK154: -757.3911281 | BL154: -76267.94592 | BM154: -774.7524683 | BN154: -82000.44182 | BO154: -757.4587059 | BP154: -76277.62315 | BQ154: -1011.76667 | BS154: -1111.76667 | BU154: -1011.76667 | BW154: -1111.76667
A155: 132 | B155: 20 | C155: 128 | D155: 2030-03-25 | E155: =$C$160 -> 133 | F155: =$D$160 -> 2030-08-25 | G155: 2029-08-25 | H155: 365 | I155: 31 | J155: 123 | K155: 1111.76667 | L155: 50 | M155: 50 | N155: 1011.76667 | P155: 180.5002872 | Q155: 0 | R155: 0 | S155: 0 | T155: 831.2663828 | V155: 107468.906 | W155: 92531.09404 | Y155: 0.02 | Z155: 180.5002872 | AA155: 0 | AB155: 180.5002872 | AC155: 180.5002872 | AD155: 0 | AE155: 1061.76667 | AF155: -764.3636555 | AG155: -78304.34467 | AH155: -1061.76667 | AI155: 2030-08-25 | AK155: 133 | AL155: 2030-08-25 | AM155: 365 | AN155: 31 | AO155: 123 | AP155: 1111.76667 | AQ155: 50 | AR155: 50 | AS155: 1011.76667 | AT155: 180.5600771 | AU155: 831.2065929 | AV155: 107465.1653 | AW155: 0.020007327 | AY155: 107468.906 | AZ155: 180.5002872 | BA155: 180.5002872 | BB155: 831.2663828 | BC155: 50 | BD155: 1061.76667 | BE155: -764.4310091 | BF155: -78314.13832 | BG155: 1061.76667 | BH155: -1061.76667 | BI155: -773.1166436 | BJ155: -81215.70792 | BK155: -755.1862947 | BL155: -75510.55479 | BM155: -773.1834015 | BN155: -81225.68935 | BO155: -755.2541875 | BP155: -75520.16444 | BQ155: -1011.76667 | BS155: -1111.76667 | BU155: -1011.76667 | BW155: -1111.76667
A156: 133 | B156: 20 | C156: 129 | D156: 2030-04-25 | E156: =$C$161 -> 134 | F156: =$D$161 -> 2030-09-25 | G156: 2029-09-25 | H156: 365 | I156: 31 | J156: 124 | K156: 1111.76667 | L156: 50 | M156: 50 | N156: 1011.76667 | P156: 179.1148433 | Q156: 0 | R156: 0 | S156: 0 | T156: 832.6518268 | V156: 106636.2541 | W156: 93363.74586 | Y156: 0.02 | Z156: 179.1148433 | AA156: 0 | AB156: 179.1148433 | AC156: 179.1148433 | AD156: 0 | AE156: 1061.76667 | AF156: -762.4723645 | AG156: -77539.98101 | AH156: -1061.76667 | AI156: 2030-09-25 | AK156: 134 | AL156: 2030-09-25 | AM156: 365 | AN156: 31 | AO156: 124 | AP156: 1111.76667 | AQ156: 50 | AR156: 50 | AS156: 1011.76667 | AT156: 179.1742253 | AU156: 832.5924448 | AV156: 106632.5729 | AW156: 0.020007327 | AY156: 106636.2541 | AZ156: 179.1148433 | BA156: 179.1148433 | BB156: 832.6518268 | BC156: 50 | BD156: 1061.76667 | BE156: -762.540058 | BF156: -77549.70731 | BG156: 1061.76667 | BH156: -1061.76667 | BI156: -771.5503876 | BJ156: -80442.59128 | BK156: -752.9878798 | BL156: -74755.36849 | BM156: -771.6175125 | BN156: -80452.50595 | BO156: -753.0560853 | BP156: -74764.91025 | BQ156: -1011.76667 | BS156: -1111.76667 | BU156: -1011.76667 | BW156: -1111.76667
A157: 134 | B157: 20 | C157: 130 | D157: =IF((EDATE($N$5,C156))>$K$14,"",EDATE($N$5,C156)) -> 2030-05-25 | E157: =$C$162 -> 135 | F157: =$D$162 -> 2030-10-25 | G157: 2029-10-25 | H157: 365 | I157: 30 | J157: 125 | K157: 1111.76667 | L157: 50 | M157: 50 | N157: 1011.76667 | P157: 177.7270902 | Q157: 0 | R157: =IF($S$17=1,0,IF(AND(Q157=0,Q156>0),AC157,0)) -> 0 | S157: 0 | T157: 834.0395799 | V157: 105802.2146 | W157: 94197.78544 | Y157: 0.02 | Z157: 177.7270902 | AA157: 0 | AB157: 177.7270902 | AC157: 177.7270902 | AD157: 0 | AE157: 1061.76667 | AF157: -760.5857532 | AG157: -76777.50865 | AH157: -1061.76667 | AI157: 2030-10-25 | AK157: 135 | AL157: 2030-10-25 | AM157: 365 | AN157: 30 | AO157: 125 | AP157: 1111.76667 | AQ157: 50 | AR157: 50 | AS157: 1011.76667 | AT157: 177.7860629 | AU157: 833.9806072 | AV157: 105798.5923 | AW157: 0.020007327 | AY157: 105802.2146 | AZ157: 177.7270902 | BA157: 177.7270902 | BB157: 834.0395799 | BC157: 50 | BD157: 1061.76667 | BE157: -760.6537844 | BF157: -76787.16726 | BG157: 1061.76667 | BH157: -1061.76667 | BI157: -769.9873046 | BJ157: -79671.04089 | BK157: -750.7958646 | BL157: -74002.38061 | BM157: -770.0547948 | BN157: -79680.88843 | BO157: -750.8643804 | BP157: -74011.85417 | BQ157: -1011.76667 | BS157: -1111.76667 | BU157: -1011.76667 | BW157: -1111.76667
A158: 135 | B158: 20 | C158: 131 | D158: 2030-06-25 | E158: =$C$163 -> 136 | F158: =$D$163 -> 2030-11-25 | G158: 2029-11-25 | H158: 365 | I158: 31 | J158: 126 | K158: 1111.76667 | L158: 50 | M158: 50 | N158: 1011.76667 | P158: 176.3370243 | Q158: 0 | R158: 0 | S158: 0 | T158: 835.4296458 | V158: 104966.7849 | W158: 95033.21509 | Y158: 0.02 | Z158: 176.3370243 | AA158: 0 | AB158: 176.3370243 | AC158: 176.3370243 | AD158: 0 | AE158: 1061.76667 | AF158: -758.70381 | AG158: -76016.92289 | AH158: -1061.76667 | AI158: 2030-11-25 | AK158: 136 | AL158: 2030-11-25 | AM158: 365 | AN158: 31 | AO158: 126 | AP158: 1111.76667 | AQ158: 50 | AR158: 50 | AS158: 1011.76667 | AT158: 176.395586 | AU158: 835.3710841 | AV158: 104963.2212 | AW158: 0.020007327 | AY158: 104966.7849 | AZ158: 176.3370243 | BA158: 176.3370243 | BB158: 835.4296458 | BC158: 50 | BD158: 1061.76667 | BE158: -758.7721769 | BF158: -76026.51347 | BG158: 1061.76667 | BH158: -1061.76667 | BI158: -768.4273883 | BJ158: -78901.05358 | BK158: -748.6102306 | BL158: -73251.58475 | BM158: -768.495242 | BN158: -78910.83364 | BO158: -748.6790543 | BP158: -73260.98979 | BQ158: -1011.76667 | BS158: -1111.76667 | BU158: -1011.76667 | BW158: -1111.76667
A159: 136 | B159: 20 | C159: 132 | D159: 2030-07-25 | E159: =$C$164 -> 137 | F159: =$D$164 -> 2030-12-25 | G159: 2029-12-25 | H159: 365 | I159: 30 | J159: 127 | K159: 1111.76667 | L159: 50 | M159: 50 | N159: 1011.76667 | P159: 174.9446415 | Q159: 0 | R159: 0 | S159: 0 | T159: 836.8220286 | V159: 104129.9629 | W159: 95870.03712 | Y159: 0.02 | Z159: 174.9446415 | AA159: 0 | AB159: 174.9446415 | AC159: 174.9446415 | AD159: 0 | AE159: 1061.76667 | AF159: -756.8265234 | AG159: -75258.21908 | AH159: -1061.76667 | AI159: 2030-12-25 | AK159: 137 | AL159: 2030-12-25 | AM159: 365 | AN159: 30 | AO159: 127 | AP159: 1111.76667 | AQ159: 50 | AR159: 50 | AS159: 1011.76667 | AT159: 175.0027908 | AU159: 836.7638793 | AV159: 104126.4573 | AW159: 0.020007327 | AY159: 104129.9629 | AZ159: 174.9446415 | BA159: 174.9446415 | BB159: 836.8220286 | BC159: 50 | BD159: 1061.76667 | BE159: -756.8952239 | BF159: -75267.74129 | BG159: 1061.76667 | BH159: -1061.76667 | BI159: -766.8706323 | BJ159: -78132.6262 | BK159: -746.4309592 | BL159: -72502.97452 | BM159: -766.9388477 | BN159: -78142.3384 | BO159: -746.5000884 | BP159: -72512.31073 | BQ159: -1011.76667 | BS159: -1111.76667 | BU159: -1011.76667 | BW159: -1111.76667
A160: 137 | B160: 20 | C160: 133 | D160: 2030-08-25 | E160: =$C$165 -> 138 | F160: =$D$165 -> 2031-01-25 | G160: 2030-01-25 | H160: 365 | I160: 31 | J160: 128 | K160: 1111.76667 | L160: 50 | M160: 50 | N160: 1011.76667 | P160: 173.5499381 | Q160: 0 | R160: 0 | S160: 0 | T160: 838.216732 | V160: 103291.7462 | W160: 96708.25385 | X160: =IF(J160>$E$5,"",IF(AND(F160=$F$14,$U$424<$G$5),"Total déblocages insuffisant",IF(AND(J160>$E$5,O160>0),"Imposible - Durée dépassée",IF(AND(E160<>"",U160>0),"Pas de déblocage à cette date",IF(AND(E160="",O160<>""),"Pas d'échéance à cette date",IF(W160<0,"Saisies incohérentes",IF(AND(E160="",U160>0),"",IF(AND(E160="",U160=""),"Saisie manquante",IF(AND(F160=$F$14,$U$424<$G$5),"Fonds mis à disposition insuffisants",""))))))))) ->  | Y160: 0.02 | Z160: 173.5499381 | AA160: 0 | AB160: 173.5499381 | AC160: 173.5499381 | AD160: 0 | AE160: 1061.76667 | AF160: -754.9538818 | AG160: -74501.39256 | AH160: -1061.76667 | AI160: 2031-01-25 | AK160: 138 | AL160: 2031-01-25 | AM160: 365 | AN160: 31 | AO160: 128 | AP160: 1111.76667 | AQ160: 50 | AR160: 50 | AS160: 1011.76667 | AT160: 173.6076734 | AU160: 838.1589967 | AV160: 103288.2983 | AW160: 0.020007327 | AY160: 103291.7462 | AZ160: 173.5499381 | BA160: 173.5499381 | BB160: 838.216732 | BC160: 50 | BD160: 1061.76667 | BE160: -755.0229138 | BF160: -74510.84607 | BG160: 1061.76667 | BH160: -1061.76667 | BI160: -765.3170301 | BJ160: -77365.75556 | BK160: -744.2580318 | BL160: -71756.54356 | BM160: -765.3856054 | BN160: -77375.39955 | BO160: -744.3274642 | BP160: -71765.81064 | BQ160: -1011.76667 | BS160: -1111.76667 | BU160: -1011.76667 | BW160: -1111.76667
A161: 138 | B161: 20 | C161: 134 | D161: 2030-09-25 | E161: =$C$166 -> 139 | F161: =$D$166 -> 2031-02-25 | G161: 2030-02-25 | H161: 365 | I161: 31 | J161: 129 | K161: 1111.76667 | L161: 50 | M161: 50 | N161: 1011.76667 | P161: 172.1529103 | Q161: 0 | R161: 0 | S161: 0 | T161: 839.6137598 | V161: 102452.1324 | W161: 97547.86761 | Y161: 0.02 | Z161: 172.1529103 | AA161: 0 | AB161: 172.1529103 | AC161: 172.1529103 | AD161: 0 | AE161: 1061.76667 | AF161: -753.0858737 | AG161: -73746.43868 | AH161: -1061.76667 | AI161: 2031-02-25 | AK161: 139 | AL161: 2031-02-25 | AM161: 365 | AN161: 31 | AO161: 129 | AP161: 1111.76667 | AQ161: 50 | AR161: 50 | AS161: 1011.76667 | AT161: 172.21023 | AU161: 839.5564401 | AV161: 102448.7419 | AW161: 0.020007327 | AY161: 102452.1324 | AZ161: 172.1529103 | BA161: 172.1529103 | BB161: 839.6137598 | BC161: 50 | BD161: 1061.76667 | BE161: -753.1552352 | BF161: -73755.82316 | BG161: 1061.76667 | BH161: -1061.76667 | BI161: -763.7665753 | BJ161: -76600.43853 | BK161: -742.09143 | BL161: -71012.28553 | BM161: -763.8355089 | BN161: -76610.01394 | BO161: -742.1611632 | BP161: -71021.48318 | BQ161: -1011.76667 | BS161: -1111.76667 | BU161: -1011.76667 | BW161: -1111.76667
A162: 139 | B162: 20 | C162: 135 | D162: 2030-10-25 | E162: =$C$167 -> 140 | F162: =$D$167 -> 2031-03-25 | G162: 2030-03-25 | H162: 365 | I162: 28 | J162: 130 | K162: 1111.76667 | L162: 50 | M162: 50 | N162: 1011.76667 | P162: 170.753554 | Q162: 0 | R162: 0 | S162: 0 | T162: 841.0131161 | V162: 101611.1193 | W162: 98388.88073 | Y162: 0.02 | Z162: 170.753554 | AA162: 0 | AB162: 170.753554 | AC162: 170.753554 | AD162: 0 | AE162: 1061.76667 | AF162: -751.2224877 | AG162: -72993.3528 | AH162: -1061.76667 | AI162: 2031-03-25 | AK162: 140 | AL162: 2031-03-25 | AM162: 365 | AN162: 28 | AO162: 130 | AP162: 1111.76667 | AQ162: 50 | AR162: 50 | AS162: 1011.76667 | AT162: 170.8104566 | AU162: 840.9562135 | AV162: 101607.7857 | AW162: 0.020007327 | AY162: 101611.1193 | AZ162: 170.753554 | BA162: 170.753554 | BB162: 841.0131161 | BC162: 50 | BD162: 1061.76667 | BE162: -751.2921766 | BF162: -73002.66792 | BG162: 1061.76667 | BH162: -1061.76667 | BI162: -762.2192616 | BJ162: -75836.67196 | BK162: -739.9311354 | BL162: -70270.1941 | BM162: -762.2885517 | BN162: -75846.17843 | BO162: -740.0011671 | BP162: -70279.32202 | BQ162: -1011.76667 | BS162: -1111.76667 | BU162: -1011.76667 | BW162: -1111.76667
A163: 140 | B163: 20 | C163: 136 | D163: 2030-11-25 | E163: =$C$168 -> 141 | F163: =$D$168 -> 2031-04-25 | G163: 2030-04-25 | H163: 365 | I163: 31 | J163: 131 | K163: 1111.76667 | L163: 50 | M163: 50 | N163: 1011.76667 | P163: 169.3518655 | Q163: 0 | R163: 0 | S163: 0 | T163: 842.4148046 | V163: 100768.7045 | W163: 99231.29553 | Y163: 0.02 | Z163: 169.3518655 | AA163: 0 | AB163: 169.3518655 | AC163: 169.3518655 | AD163: 0 | AE163: 1061.76667 | AF163: -749.3637124 | AG163: -72242.13032 | AH163: -1061.76667 | AI163: 2031-04-25 | AK163: 141 | AL163: 2031-04-25 | AM163: 365 | AN163: 31 | AO163: 131 | AP163: 1111.76667 | AQ163: 50 | AR163: 50 | AS163: 1011.76667 | AT163: 169.4083494 | AU163: 842.3583206 | AV163: 100765.4273 | AW163: 0.020007327 | AY163: 100768.7045 | AZ163: 169.3518655 | BA163: 169.3518655 | BB163: 842.4148046 | BC163: 50 | BD163: 1061.76667 | BE163: -749.4337266 | BF163: -72251.37574 | BG163: 1061.76667 | BH163: -1061.76667 | BI163: -760.6750826 | BJ163: -75074.4527 | BK163: -737.7771296 | BL163: -69530.26296 | BM163: -760.7447275 | BN163: -75083.88988 | BO163: -737.8474574 | BP163: -69539.32085 | BQ163: -1011.76667 | BS163: -1111.76667 | BU163: -1011.76667 | BW163: -1111.76667
A164: 141 | B164: 20 | C164: 137 | D164: 2030-12-25 | E164: =$C$169 -> 142 | F164: =$D$169 -> 2031-05-25 | G164: 2030-05-25 | H164: 365 | I164: 30 | J164: 132 | K164: 1111.76667 | L164: 50 | M164: 50 | N164: 1011.76667 | P164: 167.9478408 | Q164: 0 | R164: 0 | S164: 0 | T164: 843.8188293 | V164: 99924.88564 | W164: 100075.1144 | Y164: 0.02 | Z164: 167.9478408 | AA164: 0 | AB164: 167.9478408 | AC164: 167.9478408 | AD164: 0 | AE164: 1061.76667 | AF164: -747.5095363 | AG164: -71492.7666 | AH164: -1061.76667 | AI164: 2031-05-25 | AK164: 142 | AL164: 2031-05-25 | AM164: 365 | AN164: 30 | AO164: 132 | AP164: 1111.76667 | AQ164: 50 | AR164: 50 | AS164: 1011.76667 | AT164: 168.0039046 | AU164: 843.7627655 | AV164: 99921.66457 | AW164: 0.020007327 | AY164: 99924.88564 | AZ164: 167.9478408 | BA164: 167.9478408 | BB164: 843.8188293 | BC164: 50 | BD164: 1061.76667 | BE164: -747.5798738 | BF164: -71501.94202 | BG164: 1061.76667 | BH164: -1061.76667 | BI164: -759.1340319 | BJ164: -74313.77761 | BK164: -735.6293943 | BL164: -68792.48583 | BM164: -759.2040299 | BN164: -74323.14516 | BO164: -735.7000159 | BP164: -68801.47339 | BQ164: -1011.76667 | BS164: -1111.76667 | BU164: -1011.76667 | BW164: -1111.76667
A165: 142 | B165: 20 | C165: 138 | D165: 2031-01-25 | E165: =$C$170 -> 143 | F165: =$D$170 -> 2031-06-25 | G165: 2030-06-25 | H165: 365 | I165: 31 | J165: 133 | K165: 1111.76667 | L165: 50 | M165: 50 | N165: 1011.76667 | P165: 166.5414761 | Q165: 0 | R165: 0 | S165: 0 | T165: 845.225194 | V165: 99079.66045 | W165: 100920.3396 | Y165: 0.02 | Z165: 166.5414761 | AA165: 0 | AB165: 166.5414761 | AC165: 166.5414761 | AD165: 0 | AE165: 1061.76667 | AF165: -745.659948 | AG165: -70745.25707 | AH165: -1061.76667 | AI165: 2031-06-25 | AK165: 143 | AL165: 2031-06-25 | AM165: 365 | AN165: 31 | AO165: 133 | AP165: 1111.76667 | AQ165: 50 | AR165: 50 | AS165: 1011.76667 | AT165: 166.5971181 | AU165: 845.169552 | AV165: 99076.49502 | AW165: 0.020007327 | AY165: 99079.66045 | AZ165: 166.5414761 | BA165: 166.5414761 | BB165: 845.225194 | BC165: 50 | BD165: 1061.76667 | BE165: -745.7306068 | BF165: -70754.36214 | BG165: 1061.76667 | BH165: -1061.76667 | BI165: -757.5961033 | BJ165: -73554.64358 | BK165: -733.4879112 | BL165: -68056.85644 | BM165: -757.6664526 | BN165: -73563.94113 | BO165: -733.5588244 | BP165: -68065.77338 | BQ165: -1011.76667 | BS165: -1111.76667 | BU165: -1011.76667 | BW165: -1111.76667
A166: 143 | B166: 20 | C166: 139 | D166: 2031-02-25 | E166: =$C$171 -> 144 | F166: =$D$171 -> 2031-07-25 | G166: 2030-07-25 | H166: 365 | I166: 30 | J166: 134 | K166: 1111.76667 | L166: 50 | M166: 50 | N166: 1011.76667 | P166: 165.1327674 | Q166: 0 | R166: 0 | S166: 0 | T166: 846.6339027 | V166: 98233.02654 | W166: 101766.9735 | Y166: 0.02 | Z166: 165.1327674 | AA166: 0 | AB166: 165.1327674 | AC166: 165.1327674 | AD166: 0 | AE166: 1061.76667 | AF166: -743.8149363 | AG166: -69999.59712 | AH166: -1061.76667 | AI166: 2031-07-25 | AK166: 144 | AL166: 2031-07-25 | AM166: 365 | AN166: 30 | AO166: 134 | AP166: 1111.76667 | AQ166: 50 | AR166: 50 | AS166: 1011.76667 | AT166: 165.1879861 | AU166: 846.5786839 | AV166: 98229.91633 | AW166: 0.020007327 | AY166: 98233.02654 | AZ166: 165.1327674 | BA166: 165.1327674 | BB166: 846.6339027 | BC166: 50 | BD166: 1061.76667 | BE166: -743.8859143 | BF166: -70008.63154 | BG166: 1061.76667 | BH166: -1061.76667 | BI166: -756.0612903 | BJ166: -72797.04748 | BK166: -731.3526622 | BL166: -67323.36853 | BM166: -756.1319893 | BN166: -72806.27467 | BO166: -731.4238646 | BP166: -67332.21455 | BQ166: -1011.76667 | BS166: -1111.76667 | BU166: -1011.76667 | BW166: -1111.76667
A167: 144 | B167: 20 | C167: 140 | D167: 2031-03-25 | E167: =$C$172 -> 145 | F167: =$D$172 -> 2031-08-25 | G167: 2030-08-25 | H167: 365 | I167: 31 | J167: 135 | K167: 1111.76667 | L167: 50 | M167: 50 | N167: 1011.76667 | P167: 163.7217109 | Q167: 0 | R167: 0 | S167: 0 | T167: 848.0449592 | V167: 97384.98159 | W167: 102615.0184 | Y167: 0.02 | Z167: 163.7217109 | AA167: 0 | AB167: 163.7217109 | AC167: 163.7217109 | AD167: 0 | AE167: 1061.76667 | AF167: -741.9744897 | AG167: -69255.78218 | AH167: -1061.76667 | AI167: 2031-08-25 | AK167: 145 | AL167: 2031-08-25 | AM167: 365 | AN167: 31 | AO167: 135 | AP167: 1111.76667 | AQ167: 50 | AR167: 50 | AS167: 1011.76667 | AT167: 163.7765048 | AU167: 847.9901653 | AV167: 97381.92617 | AW167: 0.020007327 | AY167: 97384.98159 | AZ167: 163.7217109 | BA167: 163.7217109 | BB167: 848.0449592 | BC167: 50 | BD167: 1061.76667 | BE167: -742.045785 | BF167: -69264.74562 | BG167: 1061.76667 | BH167: -1061.76667 | BI167: -754.5295867 | BJ167: -72040.98619 | BK167: -729.2236291 | BL167: -66592.01586 | BM167: -754.6006336 | BN167: -72050.14268 | BO167: -729.2951184 | BP167: -66600.79069 | BQ167: -1011.76667 | BS167: -1111.76667 | BU167: -1011.76667 | BW167: -1111.76667
A168: 145 | B168: 20 | C168: 141 | D168: 2031-04-25 | E168: =$C$173 -> 146 | F168: =$D$173 -> 2031-09-25 | G168: 2030-09-25 | H168: 365 | I168: 31 | J168: 136 | K168: 1111.76667 | L168: 50 | M168: 50 | N168: 1011.76667 | P168: 162.3083026 | Q168: 0 | R168: 0 | S168: 0 | T168: 849.4583674 | V168: 96535.52322 | W168: 103464.4768 | Y168: 0.02 | Z168: 162.3083026 | AA168: 0 | AB168: 162.3083026 | AC168: 162.3083026 | AD168: 0 | AE168: 1061.76667 | AF168: -740.138597 | AG168: -68513.80769 | AH168: -1061.76667 | AI168: 2031-09-25 | AK168: 146 | AL168: 2031-09-25 | AM168: 365 | AN168: 31 | AO168: 136 | AP168: 1111.76667 | AQ168: 50 | AR168: 50 | AS168: 1011.76667 | AT168: 162.3626701 | AU168: 849.404 | AV168: 96532.52217 | AW168: 0.020007327 | AY168: 96535.52322 | AZ168: 162.3083026 | BA168: 162.3083026 | BB168: 849.4583674 | BC168: 50 | BD168: 1061.76667 | BE168: -740.2102075 | BF168: -68522.69984 | BG168: 1061.76667 | BH168: -1061.76667 | BI168: -753.0009862 | BJ168: -71286.4566 | BK168: -727.1007938 | BL168: -65862.79224 | BM168: -753.0723793 | BN168: -71295.54205 | BO168: -727.1725678 | BP168: -65871.49557 | BQ168: -1011.76667 | BS168: -1111.76667 | BU168: -1011.76667 | BW168: -1111.76667
A169: 146 | B169: 20 | C169: 142 | D169: 2031-05-25 | E169: =$C$174 -> 147 | F169: =$D$174 -> 2031-10-25 | G169: 2030-10-25 | H169: 365 | I169: 30 | J169: 137 | K169: 1111.76667 | L169: 50 | M169: 50 | N169: 1011.76667 | P169: 160.8925387 | Q169: 0 | R169: 0 | S169: 0 | T169: 850.8741314 | V169: 95684.64909 | W169: 104315.3509 | Y169: 0.02 | Z169: 160.8925387 | AA169: 0 | AB169: 160.8925387 | AC169: 160.8925387 | AD169: 0 | AE169: 1061.76667 | AF169: -738.3072469 | AG169: -67773.6691 | AH169: -1061.76667 | AI169: 2031-10-25 | AK169: 147 | AL169: 2031-10-25 | AM169: 365 | AN169: 30 | AO169: 137 | AP169: 1111.76667 | AQ169: 50 | AR169: 50 | AS169: 1011.76667 | AT169: 160.9464781 | AU169: 850.820192 | AV169: 95681.70197 | AW169: 0.020007327 | AY169: 95684.64909 | AZ169: 160.8925387 | BA169: 160.8925387 | BB169: 850.8741314 | BC169: 50 | BD169: 1061.76667 | BE169: -738.3791707 | BF169: -67782.48963 | BG169: 1061.76667 | BH169: -1061.76667 | BI169: -751.4754825 | BJ169: -70533.45562 | BK169: -724.9841383 | BL169: -65135.69144 | BM169: -751.5472201 | BN169: -70542.46967 | BO169: -725.0561947 | BP169: -65144.323 | BQ169: -1011.76667 | BS169: -1111.76667 | BU169: -1011.76667 | BW169: -1111.76667
A170: 147 | B170: 20 | C170: 143 | D170: 2031-06-25 | E170: =$C$175 -> 148 | F170: =$D$175 -> 2031-11-25 | G170: 2030-11-25 | H170: 365 | I170: 31 | J170: 138 | K170: 1111.76667 | L170: 50 | M170: 50 | N170: 1011.76667 | P170: 159.4744151 | Q170: 0 | R170: 0 | S170: 0 | T170: 852.2922549 | V170: 94832.35683 | W170: 105167.6432 | Y170: 0.02 | Z170: 159.4744151 | AA170: 0 | AB170: 159.4744151 | AC170: 159.4744151 | AD170: 0 | AE170: 1061.76667 | AF170: -736.4804282 | AG170: -67035.36185 | AH170: -1061.76667 | AI170: 2031-11-25 | AK170: 148 | AL170: 2031-11-25 | AM170: 365 | AN170: 31 | AO170: 138 | AP170: 1111.76667 | AQ170: 50 | AR170: 50 | AS170: 1011.76667 | AT170: 159.5279249 | AU170: 852.2387451 | AV170: 94829.46323 | AW170: 0.020007327 | AY170: 94832.35683 | AZ170: 159.4744151 | BA170: 159.4744151 | BB170: 852.2922549 | BC170: 50 | BD170: 1061.76667 | BE170: -736.5526632 | BF170: -67044.11046 | BG170: 1061.76667 | BH170: -1061.76667 | BI170: -749.9530693 | BJ170: -69781.98013 | BK170: -722.8736445 | BL170: -64410.7073 | BM170: -750.0251498 | BN170: -69790.92245 | BO170: -722.9459811 | BP170: -64419.26681 | BQ170: -1011.76667 | BS170: -1111.76667 | BU170: -1011.76667 | BW170: -1111.76667
A171: 148 | B171: 20 | C171: 144 | D171: 2031-07-25 | E171: =$C$176 -> 149 | F171: =$D$176 -> 2031-12-25 | G171: 2030-12-25 | H171: 365 | I171: 30 | J171: 139 | K171: 1111.76667 | L171: 50 | M171: 50 | N171: 1011.76667 | P171: 158.0539281 | Q171: 0 | R171: 0 | S171: 0 | T171: 853.712742 | V171: 93978.64409 | W171: 106021.3559 | Y171: 0.02 | Z171: 158.0539281 | AA171: 0 | AB171: 158.0539281 | AC171: 158.0539281 | AD171: 0 | AE171: 1061.76667 | AF171: -734.6581296 | AG171: -66298.88142 | AH171: -1061.76667 | AI171: 2031-12-25 | AK171: 149 | AL171: 2031-12-25 | AM171: 365 | AN171: 30 | AO171: 139 | AP171: 1111.76667 | AQ171: 50 | AR171: 50 | AS171: 1011.76667 | AT171: 158.1070067 | AU171: 853.6596634 | AV171: 93975.80357 | AW171: 0.020007327 | AY171: 93978.64409 | AZ171: 158.0539281 | BA171: 158.0539281 | BB171: 853.712742 | BC171: 50 | BD171: 1061.76667 | BE171: -734.730674 | BF171: -66307.5578 | BG171: 1061.76667 | BH171: -1061.76667 | BI171: -748.4337403 | BJ171: -69032.02706 | BK171: -720.7692946 | BL171: -63687.83366 | BM171: -748.506162 | BN171: -69040.8973 | BO171: -720.8419091 | BP171: -63696.32083 | BQ171: -1011.76667 | BS171: -1111.76667 | BU171: -1011.76667 | BW171: -1111.76667
A172: 149 | B172: 20 | C172: 145 | D172: 2031-08-25 | E172: =$C$177 -> 150 | F172: =$D$177 -> 2032-01-25 | G172: 2031-01-25 | H172: 365 | I172: 31 | J172: 140 | K172: 1111.76667 | L172: 50 | M172: 50 | N172: 1011.76667 | P172: 156.6310735 | Q172: 0 | R172: 0 | S172: 0 | T172: 855.1355966 | V172: 93123.50849 | W172: 106876.4915 | Y172: 0.02 | Z172: 156.6310735 | AA172: 0 | AB172: 156.6310735 | AC172: 156.6310735 | AD172: 0 | AE172: 1061.76667 | AF172: -732.84034 | AG172: -65564.22329 | AH172: -1061.76667 | AI172: 2032-01-25 | AK172: 150 | AL172: 2032-01-25 | AM172: 365 | AN172: 31 | AO172: 140 | AP172: 1111.76667 | AQ172: 50 | AR172: 50 | AS172: 1011.76667 | AT172: 156.6837193 | AU172: 855.0829508 | AV172: 93120.72062 | AW172: 0.020007327 | AY172: 93123.50849 | AZ172: 156.6310735 | BA172: 156.6310735 | BB172: 855.1355966 | BC172: 50 | BD172: 1061.76667 | BE172: -732.9131917 | BF172: -65572.82712 | BG172: 1061.76667 | BH172: -1061.76667 | BI172: -746.9174894 | BJ172: -68283.59332 | BK172: -718.6710706 | BL172: -62967.06436 | BM172: -746.9902505 | BN172: -68292.39114 | BO172: -718.7439608 | BP172: -62975.47892 | BQ172: -1011.76667 | BS172: -1111.76667 | BU172: -1011.76667 | BW172: -1111.76667
A173: 150 | B173: 20 | C173: 146 | D173: 2031-09-25 | E173: =$C$178 -> 151 | F173: =$D$178 -> 2032-02-25 | G173: 2031-02-25 | H173: 365 | I173: 31 | J173: 141 | K173: 1111.76667 | L173: 50 | M173: 50 | N173: 1011.76667 | P173: 155.2058475 | Q173: 0 | R173: 0 | S173: 0 | T173: 856.5608226 | V173: 92266.94767 | W173: 107733.0523 | Y173: 0.02 | Z173: 155.2058475 | AA173: 0 | AB173: 155.2058475 | AC173: 155.2058475 | AD173: 0 | AE173: 1061.76667 | AF173: -731.0270482 | AG173: -64831.38295 | AH173: -1061.76667 | AI173: 2032-02-25 | AK173: 151 | AL173: 2032-02-25 | AM173: 365 | AN173: 31 | AO173: 141 | AP173: 1111.76667 | AQ173: 50 | AR173: 50 | AS173: 1011.76667 | AT173: 155.258059 | AU173: 856.5086111 | AV173: 92264.212 | AW173: 0.020007327 | AY173: 92266.94767 | AZ173: 155.2058475 | BA173: 155.2058475 | BB173: 856.5608226 | BC173: 50 | BD173: 1061.76667 | BE173: -731.1002053 | BF173: -64839.91393 | BG173: 1061.76667 | BH173: -1061.76667 | BI173: -745.4043102 | BJ173: -67536.67583 | BK173: -716.5789547 | BL173: -62248.39329 | BM173: -745.4774092 | BN173: -67545.40089 | BO173: -716.6521184 | BP173: -62256.73496 | BQ173: -1011.76667 | BS173: -1111.76667 | BU173: -1011.76667 | BW173: -1111.76667
A174: 151 | B174: 20 | C174: 147 | D174: 2031-10-25 | E174: =$C$179 -> 152 | F174: =$D$179 -> 2032-03-25 | G174: 2031-03-25 | H174: 366 | I174: 29 | J174: 142 | K174: 1111.76667 | L174: 50 | M174: 50 | N174: 1011.76667 | P174: 153.7782461 | Q174: 0 | R174: 0 | S174: 0 | T174: 857.988424 | V174: 91408.95925 | W174: 108591.0408 | Y174: 0.02 | Z174: 153.7782461 | AA174: 0 | AB174: 153.7782461 | AC174: 153.7782461 | AD174: 0 | AE174: 1061.76667 | AF174: -729.2182432 | AG174: -64100.3559 | AH174: -1061.76667 | AI174: 2032-03-25 | AK174: 152 | AL174: 2032-03-25 | AM174: 366 | AN174: 29 | AO174: 142 | AP174: 1111.76667 | AQ174: 50 | AR174: 50 | AS174: 1011.76667 | AT174: 153.8300217 | AU174: 857.9366484 | AV174: 91406.27536 | AW174: 0.020007327 | AY174: 91408.95925 | AZ174: 153.7782461 | BA174: 153.7782461 | BB174: 857.988424 | BC174: 50 | BD174: 1061.76667 | BE174: -729.2917036 | BF174: -64108.81373 | BG174: 1061.76667 | BH174: -1061.76667 | BI174: -743.8941966 | BJ174: -66791.27152 | BK174: -714.4929292 | BL174: -61531.81434 | BM174: -743.9676317 | BN174: -66799.92348 | BO174: -714.5663641 | BP174: -61540.08284 | BQ174: -1011.76667 | BS174: -1111.76667 | BU174: -1011.76667 | BW174: -1111.76667
A175: 152 | B175: 20 | C175: 148 | D175: 2031-11-25 | E175: =$C$180 -> 153 | F175: =$D$180 -> 2032-04-25 | G175: 2031-04-25 | H175: 366 | I175: 31 | J175: 143 | K175: 1111.76667 | L175: 50 | M175: 50 | N175: 1011.76667 | P175: 152.3482654 | Q175: 0 | R175: 0 | S175: 0 | T175: 859.4184047 | V175: 90549.54084 | W175: 109450.4592 | Y175: 0.02 | Z175: 152.3482654 | AA175: 0 | AB175: 152.3482654 | AC175: 152.3482654 | AD175: 0 | AE175: 1061.76667 | AF175: -727.4139137 | AG175: -63371.13766 | AH175: -1061.76667 | AI175: 2032-04-25 | AK175: 153 | AL175: 2032-04-25 | AM175: 366 | AN175: 31 | AO175: 143 | AP175: 1111.76667 | AQ175: 50 | AR175: 50 | AS175: 1011.76667 | AT175: 152.3996034 | AU175: 859.3670667 | AV175: 90546.90829 | AW175: 0.020007327 | AY175: 90549.54084 | AZ175: 152.3482654 | BA175: 152.3482654 | BB175: 859.4184047 | BC175: 50 | BD175: 1061.76667 | BE175: -727.4876755 | BF175: -63379.52202 | BG175: 1061.76667 | BH175: -1061.76667 | BI175: -742.3871423 | BJ175: -66047.37733 | BK175: -712.4129763 | BL175: -60817.32141 | BM175: -742.4609119 | BN175: -66055.95585 | BO175: -712.4866803 | BP175: -60825.51647 | BQ175: -1011.76667 | BS175: -1111.76667 | BU175: -1011.76667 | BW175: -1111.76667
A176: 153 | B176: 20 | C176: 149 | D176: 2031-12-25 | E176: =$C$181 -> 154 | F176: =$D$181 -> 2032-05-25 | G176: 2031-05-25 | H176: 366 | I176: 30 | J176: 144 | K176: 1111.76667 | L176: 50 | M176: 50 | N176: 1011.76667 | P176: 150.9159014 | Q176: 0 | R176: 0 | S176: 0 | T176: 860.8507687 | V176: 89688.69007 | W176: 110311.3099 | Y176: 0.02 | Z176: 150.9159014 | AA176: 0 | AB176: 150.9159014 | AC176: 150.9159014 | AD176: 0 | AE176: 1061.76667 | AF176: -725.6140487 | AG176: -62643.72375 | AH176: -1061.76667 | AI176: 2032-05-25 | AK176: 154 | AL176: 2032-05-25 | AM176: 366 | AN176: 30 | AO176: 144 | AP176: 1111.76667 | AQ176: 50 | AR176: 50 | AS176: 1011.76667 | AT176: 150.9668002 | AU176: 860.7998698 | AV176: 89686.10842 | AW176: 0.020007327 | AY176: 89688.69007 | AZ176: 150.9159014 | BA176: 150.9159014 | BB176: 860.8507687 | BC176: 50 | BD176: 1061.76667 | BE176: -725.6881101 | BF176: -62652.03435 | BG176: 1061.76667 | BH176: -1061.76667 | BI176: -740.8831411 | BJ176: -65304.99019 | BK176: -710.3390783 | BL176: -60104.90843 | BM176: -740.9572436 | BN176: -65313.49494 | BO176: -710.4130491 | BP176: -60113.02979 | BQ176: -1011.76667 | BS176: -1111.76667 | BU176: -1011.76667 | BW176: -1111.76667
A177: 154 | B177: 20 | C177: 150 | D177: 2032-01-25 | E177: =$C$182 -> 155 | F177: =$D$182 -> 2032-06-25 | G177: 2031-06-25 | H177: 366 | I177: 31 | J177: 145 | K177: 1111.76667 | L177: 50 | M177: 50 | N177: 1011.76667 | P177: 149.4811501 | Q177: 0 | R177: 0 | S177: 0 | T177: 862.28552 | V177: 88826.40455 | W177: 111173.5954 | Y177: 0.02 | Z177: 149.4811501 | AA177: 0 | AB177: 149.4811501 | AC177: 149.4811501 | AD177: 0 | AE177: 1061.76667 | AF177: -723.8186372 | AG177: -61918.1097 | AH177: -1061.76667 | AI177: 2032-06-25 | AK177: 155 | AL177: 2032-06-25 | AM177: 366 | AN177: 31 | AO177: 145 | AP177: 1111.76667 | AQ177: 50 | AR177: 50 | AS177: 1011.76667 | AT177: 149.5316082 | AU177: 862.2350619 | AV177: 88823.87336 | AW177: 0.020007327 | AY177: 88826.40455 | AZ177: 149.4811501 | BA177: 149.4811501 | BB177: 862.28552 | BC177: 50 | BD177: 1061.76667 | BE177: -723.8929961 | BF177: -61926.34624 | BG177: 1061.76667 | BH177: -1061.76667 | BI177: -739.3821869 | BJ177: -64564.10704 | BK177: -708.2712176 | BL177: -59394.56935 | BM177: -739.4566206 | BN177: -64572.53769 | BO177: -708.3454531 | BP177: -59402.61674 | BQ177: -1011.76667 | BS177: -1111.76667 | BU177: -1011.76667 | BW177: -1111.76667
A178: 155 | B178: 20 | C178: 151 | D178: 2032-02-25 | E178: =$C$183 -> 156 | F178: =$D$183 -> 2032-07-25 | G178: 2031-07-25 | H178: 366 | I178: 30 | J178: 146 | K178: 1111.76667 | L178: 50 | M178: 50 | N178: 1011.76667 | P178: 148.0440076 | Q178: 0 | R178: 0 | S178: 0 | T178: 863.7226625 | V178: 87962.68189 | W178: 112037.3181 | Y178: 0.02 | Z178: 148.0440076 | AA178: 0 | AB178: 148.0440076 | AC178: 148.0440076 | AD178: 0 | AE178: 1061.76667 | AF178: -722.0276681 | AG178: -61194.29106 | AH178: -1061.76667 | AI178: 2032-07-25 | AK178: 156 | AL178: 2032-07-25 | AM178: 366 | AN178: 30 | AO178: 146 | AP178: 1111.76667 | AQ178: 50 | AR178: 50 | AS178: 1011.76667 | AT178: 148.0940233 | AU178: 863.6726468 | AV178: 87960.20071 | AW178: 0.020007327 | AY178: 87962.68189 | AZ178: 148.0440076 | BA178: 148.0440076 | BB178: 863.7226625 | BC178: 50 | BD178: 1061.76667 | BE178: -722.1023227 | BF178: -61202.45324 | BG178: 1061.76667 | BH178: -1061.76667 | BI178: -737.8842735 | BJ178: -63824.72486 | BK178: -706.2093767 | BL178: -58686.29814 | BM178: -737.9590367 | BN178: -63833.08107 | BO178: -706.2838747 | BP178: -58694.27129 | BQ178: -1011.76667 | BS178: -1111.76667 | BU178: -1011.76667 | BW178: -1111.76667
A179: 156 | B179: 20 | C179: 152 | D179: 2032-03-25 | E179: =$C$184 -> 157 | F179: =$D$184 -> 2032-08-25 | G179: 2031-08-25 | H179: 366 | I179: 31 | J179: 147 | K179: 1111.76667 | L179: 50 | M179: 50 | N179: 1011.76667 | P179: 146.6044698 | Q179: 0 | R179: 0 | S179: 0 | T179: 865.1622003 | V179: 87097.51969 | W179: 112902.4803 | Y179: 0.02 | Z179: 146.6044698 | AA179: 0 | AB179: 146.6044698 | AC179: 146.6044698 | AD179: 0 | AE179: 1061.76667 | AF179: -720.2411305 | AG179: -60472.26339 | AH179: -1061.76667 | AI179: 2032-08-25 | AK179: 157 | AL179: 2032-08-25 | AM179: 366 | AN179: 31 | AO179: 147 | AP179: 1111.76667 | AQ179: 50 | AR179: 50 | AS179: 1011.76667 | AT179: 146.6540416 | AU179: 865.1126285 | AV179: 87095.08808 | AW179: 0.020007327 | AY179: 87097.51969 | AZ179: 146.6044698 | BA179: 146.6044698 | BB179: 865.1622003 | BC179: 50 | BD179: 1061.76667 | BE179: -720.3160788 | BF179: -60480.35092 | BG179: 1061.76667 | BH179: -1061.76667 | BI179: -736.3893947 | BJ179: -63086.84058 | BK179: -704.1535379 | BL179: -57980.08876 | BM179: -736.4644858 | BN179: -63095.12203 | BO179: -704.2282963 | BP179: -57987.98742 | BQ179: -1011.76667 | BS179: -1111.76667 | BU179: -1011.76667 | BW179: -1111.76667
A180: 157 | B180: 20 | C180: 153 | D180: 2032-04-25 | E180: =$C$185 -> 158 | F180: =$D$185 -> 2032-09-25 | G180: 2031-09-25 | H180: 366 | I180: 31 | J180: 148 | K180: 1111.76667 | L180: 50 | M180: 50 | N180: 1011.76667 | P180: 145.1625328 | Q180: 0 | R180: 0 | S180: 0 | T180: 866.6041373 | V180: 86230.91555 | W180: 113769.0844 | Y180: 0.02 | Z180: 145.1625328 | AA180: 0 | AB180: 145.1625328 | AC180: 145.1625328 | AD180: 0 | AE180: 1061.76667 | AF180: -718.4590134 | AG180: -59752.02226 | AH180: -1061.76667 | AI180: 2032-09-25 | AK180: 158 | AL180: 2032-09-25 | AM180: 366 | AN180: 31 | AO180: 148 | AP180: 1111.76667 | AQ180: 50 | AR180: 50 | AS180: 1011.76667 | AT180: 145.2116589 | AU180: 866.5550111 | AV180: 86228.53307 | AW180: 0.020007327 | AY180: 86230.91555 | AZ180: 145.1625328 | BA180: 145.1625328 | BB180: 866.6041373 | BC180: 50 | BD180: 1061.76667 | BE180: -718.5342535 | BF180: -59760.03484 | BG180: 1061.76667 | BH180: -1061.76667 | BI180: -734.8975444 | BJ180: -62350.45119 | BK180: -702.1036839 | BL180: -57275.93522 | BM180: -734.9729617 | BN180: -62358.65755 | BO180: -702.1787005 | BP180: -57283.75912 | BQ180: -1011.76667 | BS180: -1111.76667 | BU180: -1011.76667 | BW180: -1111.76667
A181: 158 | B181: 20 | C181: 154 | D181: 2032-05-25 | E181: =$C$186 -> 159 | F181: =$D$186 -> 2032-10-25 | G181: 2031-10-25 | H181: 366 | I181: 30 | J181: 149 | K181: 1111.76667 | L181: 50 | M181: 50 | N181: 1011.76667 | P181: 143.7181926 | Q181: 0 | R181: 0 | S181: 0 | T181: 868.0484775 | V181: 85362.86708 | W181: 114637.1329 | Y181: 0.02 | Z181: 143.7181926 | AA181: 0 | AB181: 143.7181926 | AC181: 143.7181926 | AD181: 0 | AE181: 1061.76667 | AF181: -716.6813058 | AG181: -59033.56325 | AH181: -1061.76667 | AI181: 2032-10-25 | AK181: 159 | AL181: 2032-10-25 | AM181: 366 | AN181: 30 | AO181: 149 | AP181: 1111.76667 | AQ181: 50 | AR181: 50 | AS181: 1011.76667 | AT181: 143.7668715 | AU181: 867.9997986 | AV181: 85360.53327 | AW181: 0.020007327 | AY181: 85362.86708 | AZ181: 143.7181926 | BA181: 143.7181926 | BB181: 868.0484775 | BC181: 50 | BD181: 1061.76667 | BE181: -716.7568359 | BF181: -59041.50058 | BG181: 1061.76667 | BH181: -1061.76667 | BI181: -733.4087164 | BJ181: -61615.55364 | BK181: -700.0597972 | BL181: -56573.83154 | BM181: -733.4844584 | BN181: -61623.68459 | BO181: -700.1350699 | BP181: -56581.58042 | BQ181: -1011.76667 | BS181: -1111.76667 | BU181: -1011.76667 | BW181: -1111.76667
A182: 159 | B182: 20 | C182: 155 | D182: 2032-06-25 | E182: =$C$187 -> 160 | F182: =$D$187 -> 2032-11-25 | G182: 2031-11-25 | H182: 366 | I182: 31 | J182: 150 | K182: 1111.76667 | L182: 50 | M182: 50 | N182: 1011.76667 | P182: 142.2714451 | Q182: 0 | R182: 0 | S182: 0 | T182: 869.495225 | V182: 84493.37185 | W182: 115506.6281 | Y182: 0.02 | Z182: 142.2714451 | AA182: 0 | AB182: 142.2714451 | AC182: 142.2714451 | AD182: 0 | AE182: 1061.76667 | AF182: -714.9079969 | AG182: -58316.88194 | AH182: -1061.76667 | AI182: 2032-11-25 | AK182: 160 | AL182: 2032-11-25 | AM182: 366 | AN182: 31 | AO182: 150 | AP182: 1111.76667 | AQ182: 50 | AR182: 50 | AS182: 1011.76667 | AT182: 142.3196752 | AU182: 869.4469949 | AV182: 84491.08628 | AW182: 0.020007327 | AY182: 84493.37185 | AZ182: 142.2714451 | BA182: 142.2714451 | BB182: 869.495225 | BC182: 50 | BD182: 1061.76667 | BE182: -714.983815 | BF182: -58324.74375 | BG182: 1061.76667 | BH182: -1061.76667 | BI182: -731.9229047 | BJ182: -60882.14493 | BK182: -698.0218604 | BL182: -55873.77174 | BM182: -731.9989696 | BN182: -60890.20013 | BO182: -698.0973871 | BP182: -55881.44535 | BQ182: -1011.76667 | BS182: -1111.76667 | BU182: -1011.76667 | BW182: -1111.76667
A183: 160 | B183: 20 | C183: 156 | D183: 2032-07-25 | E183: =$C$188 -> 161 | F183: =$D$188 -> 2032-12-25 | G183: 2031-12-25 | H183: 366 | I183: 30 | J183: 151 | K183: 1111.76667 | L183: 50 | M183: 50 | N183: 1011.76667 | P183: 140.8222864 | Q183: 0 | R183: 0 | S183: 0 | T183: 870.9443837 | V183: 83622.42747 | W183: 116377.5725 | Y183: 0.02 | Z183: 140.8222864 | AA183: 0 | AB183: 140.8222864 | AC183: 140.8222864 | AD183: 0 | AE183: 1061.76667 | AF183: -713.1390757 | AG183: -57601.97395 | AH183: -1061.76667 | AI183: 2032-12-25 | AK183: 161 | AL183: 2032-12-25 | AM183: 366 | AN183: 30 | AO183: 151 | AP183: 1111.76667 | AQ183: 50 | AR183: 50 | AS183: 1011.76667 | AT183: 140.870066 | AU183: 870.8966041 | AV183: 83620.18967 | AW183: 0.020007327 | AY183: 83622.42747 | AZ183: 140.8222864 | BA183: 140.8222864 | BB183: 870.9443837 | BC183: 50 | BD183: 1061.76667 | BE183: -713.2151799 | BF183: -57609.75993 | BG183: 1061.76667 | BH183: -1061.76667 | BI183: -730.440103 | BJ183: -60150.22202 | BK183: -695.9898563 | BL183: -55175.74988 | BM183: -730.5164894 | BN183: -60158.20116 | BO183: -696.0656347 | BP183: -55183.34796 | BQ183: -1011.76667 | BS183: -1111.76667 | BU183: -1011.76667 | BW183: -1111.76667
A184: 161 | B184: 20 | C184: 157 | D184: 2032-08-25 | E184: =$C$189 -> 162 | F184: =$D$189 -> 2033-01-25 | G184: 2032-01-25 | H184: 366 | I184: 31 | J184: 152 | K184: 1111.76667 | L184: 50 | M184: 50 | N184: 1011.76667 | P184: 139.3707124 | Q184: 0 | R184: 0 | S184: 0 | T184: 872.3959576 | V184: 82750.03151 | W184: 117249.9685 | Y184: 0.02 | Z184: 139.3707124 | AA184: 0 | AB184: 139.3707124 | AC184: 139.3707124 | AD184: 0 | AE184: 1061.76667 | AF184: -711.3745315 | AG184: -56888.83487 | AH184: -1061.76667 | AI184: 2033-01-25 | AK184: 162 | AL184: 2033-01-25 | AM184: 366 | AN184: 31 | AO184: 152 | AP184: 1111.76667 | AQ184: 50 | AR184: 50 | AS184: 1011.76667 | AT184: 139.4180399 | AU184: 872.3486302 | AV184: 82747.84104 | AW184: 0.020007327 | AY184: 82750.03151 | AZ184: 139.3707124 | BA184: 139.3707124 | BB184: 872.3959576 | BC184: 50 | BD184: 1061.76667 | BE184: -711.4509199 | BF184: -56896.54475 | BG184: 1061.76667 | BH184: -1061.76667 | BI184: -728.9603053 | BJ184: -59419.78192 | BK184: -693.9637674 | BL184: -54479.76002 | BM184: -729.0370115 | BN184: -59427.68467 | BO184: -694.0397957 | BP184: -54487.28233 | BQ184: -1011.76667 | BS184: -1111.76667 | BU184: -1011.76667 | BW184: -1111.76667
A185: 162 | B185: 20 | C185: 158 | D185: 2032-09-25 | E185: =$C$190 -> 163 | F185: =$D$190 -> 2033-02-25 | G185: 2032-02-25 | H185: 366 | I185: 31 | J185: 153 | K185: 1111.76667 | L185: 50 | M185: 50 | N185: 1011.76667 | P185: 137.9167192 | Q185: 0 | R185: 0 | S185: 0 | T185: 873.8499509 | V185: 81876.18156 | W185: 118123.8184 | Y185: 0.02 | Z185: 137.9167192 | AA185: 0 | AB185: 137.9167192 | AC185: 137.9167192 | AD185: 0 | AE185: 1061.76667 | AF185: -709.6143533 | AG185: -56177.46034 | AH185: -1061.76667 | AI185: 2033-02-25 | AK185: 163 | AL185: 2033-02-25 | AM185: 366 | AN185: 31 | AO185: 153 | AP185: 1111.76667 | AQ185: 50 | AR185: 50 | AS185: 1011.76667 | AT185: 137.9635929 | AU185: 873.8030772 | AV185: 81874.03797 | AW185: 0.020007327 | AY185: 81876.18156 | AZ185: 137.9167192 | BA185: 137.9167192 | BB185: 873.8499509 | BC185: 50 | BD185: 1061.76667 | BE185: -709.6910241 | BF185: -56185.09383 | BG185: 1061.76667 | BH185: -1061.76667 | BI185: -727.4835056 | BJ185: -58690.82162 | BK185: -691.9435768 | BL185: -53785.79626 | BM185: -727.5605299 | BN185: -58698.64766 | BO185: -692.0198526 | BP185: -53793.24253 | BQ185: -1011.76667 | BS185: -1111.76667 | BU185: -1011.76667 | BW185: -1111.76667
A186: 163 | B186: 20 | C186: 159 | D186: 2032-10-25 | E186: =$C$191 -> 164 | F186: =$D$191 -> 2033-03-25 | G186: 2032-03-25 | H186: 365 | I186: 28 | J186: 154 | K186: 1111.76667 | L186: 50 | M186: 50 | N186: 1011.76667 | P186: 136.4603026 | Q186: 0 | R186: 0 | S186: 0 | T186: 875.3063675 | V186: 81000.87519 | W186: 118999.1248 | Y186: 0.02 | Z186: 136.4603026 | AA186: 0 | AB186: 136.4603026 | AC186: 136.4603026 | AD186: 0 | AE186: 1061.76667 | AF186: -707.8585304 | AG186: -55467.84599 | AH186: -1061.76667 | AI186: 2033-03-25 | AK186: 164 | AL186: 2033-03-25 | AM186: 365 | AN186: 28 | AO186: 154 | AP186: 1111.76667 | AQ186: 50 | AR186: 50 | AS186: 1011.76667 | AT186: 136.5067209 | AU186: 875.2599492 | AV186: 80998.77802 | AW186: 0.020007327 | AY186: 81000.87519 | AZ186: 136.4603026 | BA186: 136.4603026 | BB186: 875.3063675 | BC186: 50 | BD186: 1061.76667 | BE186: -707.9354817 | BF186: -55475.40281 | BG186: 1061.76667 | BH186: -1061.76667 | BI186: -726.0096977 | BJ186: -57963.33811 | BK186: -689.929267 | BL186: -53093.85268 | BM186: -726.0870386 | BN186: -57971.08713 | BO186: -690.0057884 | BP186: -53101.22268 | BQ186: -1011.76667 | BS186: -1111.76667 | BU186: -1011.76667 | BW186: -1111.76667
A187: 164 | B187: 20 | C187: 160 | D187: 2032-11-25 | E187: =$C$192 -> 165 | F187: =$D$192 -> 2033-04-25 | G187: 2032-04-25 | H187: 365 | I187: 31 | J187: 155 | K187: 1111.76667 | L187: 50 | M187: 50 | N187: 1011.76667 | P187: 135.0014587 | Q187: 0 | R187: 0 | S187: 0 | T187: 876.7652114 | V187: 80124.10998 | W187: 119875.89 | Y187: 0.02 | Z187: 135.0014587 | AA187: 0 | AB187: 135.0014587 | AC187: 135.0014587 | AD187: 0 | AE187: 1061.76667 | AF187: -706.1070519 | AG187: -54759.98746 | AH187: -1061.76667 | AI187: 2033-04-25 | AK187: 165 | AL187: 2033-04-25 | AM187: 365 | AN187: 31 | AO187: 155 | AP187: 1111.76667 | AQ187: 50 | AR187: 50 | AS187: 1011.76667 | AT187: 135.0474199 | AU187: 876.7192502 | AV187: 80122.05877 | AW187: 0.020007327 | AY187: 80124.10998 | AZ187: 135.0014587 | BA187: 135.0014587 | BB187: 876.7652114 | BC187: 50 | BD187: 1061.76667 | BE187: -706.1842819 | BF187: -54767.46733 | BG187: 1061.76667 | BH187: -1061.76667 | BI187: -724.5388756 | BJ187: -57237.32841 | BK187: -687.9208211 | BL187: -52403.92341 | BM187: -724.6165314 | BN187: -57245.00009 | BO187: -687.997586 | BP187: -52411.21689 | BQ187: -1011.76667 | BS187: -1111.76667 | BU187: -1011.76667 | BW187: -1111.76667
A188: 165 | B188: 20 | C188: 161 | D188: 2032-12-25 | E188: =$C$193 -> 166 | F188: =$D$193 -> 2033-05-25 | G188: 2032-05-25 | H188: 365 | I188: 30 | J188: 156 | K188: 1111.76667 | L188: 50 | M188: 50 | N188: 1011.76667 | P188: 133.5401833 | Q188: 0 | R188: 0 | S188: 0 | T188: 878.2264868 | V188: 79245.88349 | W188: 120754.1165 | Y188: 0.02 | Z188: 133.5401833 | AA188: 0 | AB188: 133.5401833 | AC188: 133.5401833 | AD188: 0 | AE188: 1061.76667 | AF188: -704.3599073 | AG188: -54053.8804 | AH188: -1061.76667 | AI188: 2033-05-25 | AK188: 166 | AL188: 2033-05-25 | AM188: 365 | AN188: 30 | AO188: 156 | AP188: 1111.76667 | AQ188: 50 | AR188: 50 | AS188: 1011.76667 | AT188: 133.5856858 | AU188: 878.1809843 | AV188: 79243.87778 | AW188: 0.020007327 | AY188: 79245.88349 | AZ188: 133.5401833 | BA188: 133.5401833 | BB188: 878.2264868 | BC188: 50 | BD188: 1061.76667 | BE188: -704.4374141 | BF188: -54061.28305 | BG188: 1061.76667 | BH188: -1061.76667 | BI188: -723.0710332 | BJ188: -56512.78954 | BK188: -685.918222 | BL188: -51716.00259 | BM188: -723.1490024 | BN188: -56520.38356 | BO188: -685.9952283 | BP188: -51723.2193 | BQ188: -1011.76667 | BS188: -1111.76667 | BU188: -1011.76667 | BW188: -1111.76667
A189: 166 | B189: 20 | C189: 162 | D189: 2033-01-25 | E189: =$C$194 -> 167 | F189: =$D$194 -> 2033-06-25 | G189: 2032-06-25 | H189: 365 | I189: 31 | J189: 157 | K189: 1111.76667 | L189: 50 | M189: 50 | N189: 1011.76667 | P189: 132.0764725 | Q189: 0 | R189: 0 | S189: 0 | T189: 879.6901976 | V189: 78366.19329 | W189: 121633.8067 | Y189: 0.02 | Z189: 132.0764725 | AA189: 0 | AB189: 132.0764725 | AC189: 132.0764725 | AD189: 0 | AE189: 1061.76667 | AF189: -702.6170856 | AG189: -53349.5205 | AH189: -1061.76667 | AI189: 2033-06-25 | AK189: 167 | AL189: 2033-06-25 | AM189: 365 | AN189: 31 | AO189: 157 | AP189: 1111.76667 | AQ189: 50 | AR189: 50 | AS189: 1011.76667 | AT189: 132.1215146 | AU189: 879.6451555 | AV189: 78364.23263 | AW189: 0.020007327 | AY189: 78366.19329 | AZ189: 132.0764725 | BA189: 132.0764725 | BB189: 879.6901976 | BC189: 50 | BD189: 1061.76667 | BE189: -702.6948674 | BF189: -53356.84563 | BG189: 1061.76667 | BH189: -1061.76667 | BI189: -721.6061646 | BJ189: -55789.7185 | BK189: -683.9214526 | BL189: -51030.08437 | BM189: -721.6844455 | BN189: -55797.23456 | BO189: -683.9986983 | BP189: -51037.22408 | BQ189: -1011.76667 | BS189: -1111.76667 | BU189: -1011.76667 | BW189: -1111.76667
A190: 167 | B190: 20 | C190: 163 | D190: 2033-02-25 | E190: =$C$195 -> 168 | F190: =$D$195 -> 2033-07-25 | G190: 2032-07-25 | H190: 365 | I190: 30 | J190: 158 | K190: 1111.76667 | L190: 50 | M190: 50 | N190: 1011.76667 | P190: 130.6103222 | Q190: 0 | R190: 0 | S190: 0 | T190: 881.1563479 | V190: 77485.03695 | W190: 122514.9631 | Y190: 0.02 | Z190: 130.6103222 | AA190: 0 | AB190: 130.6103222 | AC190: 130.6103222 | AD190: 0 | AE190: 1061.76667 | AF190: -700.8785762 | AG190: -52646.90341 | AH190: -1061.76667 | AI190: 2033-07-25 | AK190: 168 | AL190: 2033-07-25 | AM190: 365 | AN190: 30 | AO190: 158 | AP190: 1111.76667 | AQ190: 50 | AR190: 50 | AS190: 1011.76667 | AT190: 130.6549023 | AU190: 881.1117678 | AV190: 77483.12086 | AW190: 0.020007327 | AY190: 77485.03695 | AZ190: 130.6103222 | BA190: 130.6103222 | BB190: 881.1563479 | BC190: 50 | BD190: 1061.76667 | BE190: -700.9566311 | BF190: -52654.15077 | BG190: 1061.76667 | BH190: -1061.76667 | BI190: -720.1442636 | BJ190: -55068.11234 | BK190: -681.930496 | BL190: -50346.16292 | BM190: -720.2228547 | BN190: -55075.55011 | BO190: -682.007979 | BP190: -50353.22538 | BQ190: -1011.76667 | BS190: -1111.76667 | BU190: -1011.76667 | BW190: -1111.76667
A191: 168 | B191: 20 | C191: 164 | D191: 2033-03-25 | E191: =$C$196 -> 169 | F191: =$D$196 -> 2033-08-25 | G191: 2032-08-25 | H191: 365 | I191: 31 | J191: 159 | K191: 1111.76667 | L191: 50 | M191: 50 | N191: 1011.76667 | P191: 129.1417282 | Q191: 0 | R191: 0 | S191: 0 | T191: 882.6249418 | V191: 76602.412 | W191: 123397.588 | Y191: 0.02 | Z191: 129.1417282 | AA191: 0 | AB191: 129.1417282 | AC191: 129.1417282 | AD191: 0 | AE191: 1061.76667 | AF191: -699.1443686 | AG191: -51946.02484 | AH191: -1061.76667 | AI191: 2033-08-25 | AK191: 169 | AL191: 2033-08-25 | AM191: 365 | AN191: 31 | AO191: 159 | AP191: 1111.76667 | AQ191: 50 | AR191: 50 | AS191: 1011.76667 | AT191: 129.1858447 | AU191: 882.5808254 | AV191: 76600.54003 | AW191: 0.020007327 | AY191: 76602.412 | AZ191: 129.1417282 | BA191: 129.1417282 | BB191: 882.6249418 | BC191: 50 | BD191: 1061.76667 | BE191: -699.2226947 | BF191: -51953.19413 | BG191: 1061.76667 | BH191: -1061.76667 | BI191: -718.6853243 | BJ191: -54347.96807 | BK191: -679.9453353 | BL191: -49664.23242 | BM191: -718.764224 | BN191: -54355.32726 | BO191: -680.0230535 | BP191: -49671.2174 | BQ191: -1011.76667 | BS191: -1111.76667 | BU191: -1011.76667 | BW191: -1111.76667
A192: 169 | B192: 20 | C192: 165 | D192: 2033-04-25 | E192: =$C$197 -> 170 | F192: =$D$197 -> 2033-09-25 | G192: 2032-09-25 | H192: 365 | I192: 31 | J192: 160 | K192: 1111.76667 | L192: 50 | M192: 50 | N192: 1011.76667 | P192: 127.6706867 | Q192: 0 | R192: 0 | S192: 0 | T192: 884.0959834 | V192: 75718.31602 | W192: 124281.684 | Y192: 0.02 | Z192: 127.6706867 | AA192: 0 | AB192: 127.6706867 | AC192: 127.6706867 | AD192: 0 | AE192: 1061.76667 | AF192: -697.4144519 | AG192: -51246.88047 | AH192: -1061.76667 | AI192: 2033-09-25 | AK192: 170 | AL192: 2033-09-25 | AM192: 365 | AN192: 31 | AO192: 160 | AP192: 1111.76667 | AQ192: 50 | AR192: 50 | AS192: 1011.76667 | AT192: 127.7143377 | AU192: 884.0523324 | AV192: 75716.4877 | AW192: 0.020007327 | AY192: 75718.31602 | AZ192: 127.6706867 | BA192: 127.6706867 | BB192: 884.0959834 | BC192: 50 | BD192: 1061.76667 | BE192: -697.4930475 | BF192: -51253.97144 | BG192: 1061.76667 | BH192: -1061.76667 | BI192: -717.2293406 | BJ192: -53629.28275 | BK192: -677.9659535 | BL192: -48984.28709 | BM192: -717.3085474 | BN192: -53636.56303 | BO192: -678.043905 | BP192: -48991.19435 | BQ192: -1011.76667 | BS192: -1111.76667 | BU192: -1011.76667 | BW192: -1111.76667
A193: 170 | B193: 20 | C193: 166 | D193: 2033-05-25 | E193: =$C$198 -> 171 | F193: =$D$198 -> 2033-10-25 | G193: 2032-10-25 | H193: 365 | I193: 30 | J193: 161 | K193: 1111.76667 | L193: 50 | M193: 50 | N193: 1011.76667 | P193: 126.1971934 | Q193: 0 | R193: 0 | S193: 0 | T193: 885.5694767 | V193: 74832.74654 | W193: 125167.2535 | Y193: 0.02 | Z193: 126.1971934 | AA193: 0 | AB193: 126.1971934 | AC193: 126.1971934 | AD193: 0 | AE193: 1061.76667 | AF193: -695.6888156 | AG193: -50549.46601 | AH193: -1061.76667 | AI193: 2033-10-25 | AK193: 171 | AL193: 2033-10-25 | AM193: 365 | AN193: 30 | AO193: 161 | AP193: 1111.76667 | AQ193: 50 | AR193: 50 | AS193: 1011.76667 | AT193: 126.2403774 | AU193: 885.5262927 | AV193: 74830.96141 | AW193: 0.020007327 | AY193: 74832.74654 | AZ193: 126.1971934 | BA193: 126.1971934 | BB193: 885.5694767 | BC193: 50 | BD193: 1061.76667 | BE193: -695.7676789 | BF193: -50556.47839 | BG193: 1061.76667 | BH193: -1061.76667 | BI193: -715.7763066 | BJ193: -52912.05341 | BK193: -675.9923339 | BL193: -48306.32113 | BM193: -715.8558189 | BN193: -52919.25448 | BO193: -676.0705166 | BP193: -48313.15044 | BQ193: -1011.76667 | BS193: -1111.76667 | BU193: -1011.76667 | BW193: -1111.76667
A194: 171 | B194: 20 | C194: 167 | D194: 2033-06-25 | E194: =$C$199 -> 172 | F194: =$D$199 -> 2033-11-25 | G194: 2032-11-25 | H194: 365 | I194: 31 | J194: 162 | K194: 1111.76667 | L194: 50 | M194: 50 | N194: 1011.76667 | P194: 124.7212442 | Q194: 0 | R194: 0 | S194: 0 | T194: 887.0454258 | V194: 73945.70112 | W194: 126054.2989 | Y194: 0.02 | Z194: 124.7212442 | AA194: 0 | AB194: 124.7212442 | AC194: 124.7212442 | AD194: 0 | AE194: 1061.76667 | AF194: -693.9674491 | AG194: -49853.7772 | AH194: -1061.76667 | AI194: 2033-11-25 | AK194: 172 | AL194: 2033-11-25 | AM194: 365 | AN194: 31 | AO194: 162 | AP194: 1111.76667 | AQ194: 50 | AR194: 50 | AS194: 1011.76667 | AT194: 124.7639596 | AU194: 887.0027105 | AV194: 73943.9587 | AW194: 0.020007327 | AY194: 73945.70112 | AZ194: 124.7212442 | BA194: 124.7212442 | BB194: 887.0454258 | BC194: 50 | BD194: 1061.76667 | BE194: -694.0465783 | BF194: -49860.71071 | BG194: 1061.76667 | BH194: -1061.76667 | BI194: -714.3262163 | BJ194: -52196.2771 | BK194: -674.0244596 | BL194: -47630.3288 | BM194: -714.4060325 | BN194: -52203.39867 | BO194: -674.1028716 | BP194: -47637.07992 | BQ194: -1011.76667 | BS194: -1111.76667 | BU194: -1011.76667 | BW194: -1111.76667
A195: 172 | B195: 20 | C195: 168 | D195: 2033-07-25 | E195: =$C$200 -> 173 | F195: =$D$200 -> 2033-12-25 | G195: 2032-12-25 | H195: 365 | I195: 30 | J195: 163 | K195: 1111.76667 | L195: 50 | M195: 50 | N195: 1011.76667 | P195: 123.2428352 | Q195: 0 | R195: 0 | S195: 0 | T195: 888.5238349 | V195: 73057.17728 | W195: 126942.8227 | Y195: 0.02 | Z195: 123.2428352 | AA195: 0 | AB195: 123.2428352 | AC195: 123.2428352 | AD195: 0 | AE195: 1061.76667 | AF195: -692.2503418 | AG195: -49159.80975 | AH195: -1061.76667 | AI195: 2033-12-25 | AK195: 173 | AL195: 2033-12-25 | AM195: 365 | AN195: 30 | AO195: 163 | AP195: 1111.76667 | AQ195: 50 | AR195: 50 | AS195: 1011.76667 | AT195: 123.2850801 | AU195: 888.48159 | AV195: 73055.47711 | AW195: 0.020007327 | AY195: 73057.17728 | AZ195: 123.2428352 | BA195: 123.2428352 | BB195: 888.5238349 | BC195: 50 | BD195: 1061.76667 | BE195: -692.3297351 | BF195: -49166.66413 | BG195: 1061.76667 | BH195: -1061.76667 | BI195: -712.8790638 | BJ195: -51481.95089 | BK195: -672.0623141 | BL195: -46956.30434 | BM195: -712.9591823 | BN195: -51488.99263 | BO195: -672.1409532 | BP195: -46962.97705 | BQ195: -1011.76667 | BS195: -1111.76667 | BU195: -1011.76667 | BW195: -1111.76667
A196: 173 | B196: 20 | C196: 169 | D196: 2033-08-25 | E196: =$C$201 -> 174 | F196: =$D$201 -> 2034-01-25 | G196: 2033-01-25 | H196: 365 | I196: 31 | J196: 164 | K196: 1111.76667 | L196: 50 | M196: 50 | N196: 1011.76667 | P196: 121.7619621 | Q196: 0 | R196: 0 | S196: 0 | T196: 890.004708 | V196: 72167.17258 | W196: 127832.8274 | Y196: 0.02 | Z196: 121.7619621 | AA196: 0 | AB196: 121.7619621 | AC196: 121.7619621 | AD196: 0 | AE196: 1061.76667 | AF196: -690.5374833 | AG196: -48467.55941 | AH196: -1061.76667 | AI196: 2034-01-25 | AK196: 174 | AL196: 2034-01-25 | AM196: 365 | AN196: 31 | AO196: 164 | AP196: 1111.76667 | AQ196: 50 | AR196: 50 | AS196: 1011.76667 | AT196: 121.803735 | AU196: 889.9629351 | AV196: 72165.51417 | AW196: 0.020007327 | AY196: 72167.17258 | AZ196: 121.7619621 | BA196: 121.7619621 | BB196: 890.004708 | BC196: 50 | BD196: 1061.76667 | BE196: -690.6171388 | BF196: -48474.3344 | BG196: 1061.76667 | BH196: -1061.76667 | BI196: -711.434843 | BJ196: -50769.07182 | BK196: -670.1058805 | BL196: -46284.24203 | BM196: -711.5152623 | BN196: -50776.03345 | BO196: -670.1847449 | BP196: -46290.8361 | BQ196: -1011.76667 | BS196: -1111.76667 | BU196: -1011.76667 | BW196: -1111.76667
A197: 174 | B197: 20 | C197: 170 | D197: 2033-09-25 | E197: =$C$202 -> 175 | F197: =$D$202 -> 2034-02-25 | G197: 2033-02-25 | H197: 365 | I197: 31 | J197: 165 | K197: 1111.76667 | L197: 50 | M197: 50 | N197: 1011.76667 | P197: 120.278621 | Q197: 0 | R197: 0 | S197: 0 | T197: 891.4880491 | V197: 71275.68453 | W197: 128724.3155 | Y197: 0.02 | Z197: 120.278621 | AA197: 0 | AB197: 120.278621 | AC197: 120.278621 | AD197: 0 | AE197: 1061.76667 | AF197: -688.8288629 | AG197: -47777.02193 | AH197: -1061.76667 | AI197: 2034-02-25 | AK197: 175 | AL197: 2034-02-25 | AM197: 365 | AN197: 31 | AO197: 165 | AP197: 1111.76667 | AQ197: 50 | AR197: 50 | AS197: 1011.76667 | AT197: 120.31992 | AU197: 891.4467501 | AV197: 71274.06742 | AW197: 0.020007327 | AY197: 71275.68453 | AZ197: 120.278621 | BA197: 120.278621 | BB197: 891.4880491 | BC197: 50 | BD197: 1061.76667 | BE197: -688.9087789 | BF197: -47783.71726 | BG197: 1061.76667 | BH197: -1061.76667 | BI197: -709.9935481 | BJ197: -50057.63698 | BK197: -668.1551422 | BL197: -45614.13614 | BM197: -710.0742667 | BN197: -50064.51819 | BO197: -668.2342299 | BP197: -45620.65135 | BQ197: -1011.76667 | BS197: -1111.76667 | BU197: -1011.76667 | BW197: -1111.76667
A198: 175 | B198: 20 | C198: 171 | D198: 2033-10-25 | E198: =$C$203 -> 176 | F198: =$D$203 -> 2034-03-25 | G198: 2033-03-25 | H198: 365 | I198: 28 | J198: 166 | K198: 1111.76667 | L198: 50 | M198: 50 | N198: 1011.76667 | P198: 118.7928075 | Q198: 0 | R198: 0 | S198: 0 | T198: 892.9738625 | V198: 70382.71066 | W198: 129617.2893 | Y198: 0.02 | Z198: 118.7928075 | AA198: 0 | AB198: 118.7928075 | AC198: 118.7928075 | AD198: 0 | AE198: 1061.76667 | AF198: -687.1244702 | AG198: -47088.19306 | AH198: -1061.76667 | AI198: 2034-03-25 | AK198: 176 | AL198: 2034-03-25 | AM198: 365 | AN198: 28 | AO198: 166 | AP198: 1111.76667 | AQ198: 50 | AR198: 50 | AS198: 1011.76667 | AT198: 118.8336311 | AU198: 892.933039 | AV198: 70381.13438 | AW198: 0.020007327 | AY198: 70382.71066 | AZ198: 118.7928075 | BA198: 118.7928075 | BB198: 892.9738625 | BC198: 50 | BD198: 1061.76667 | BE198: -687.204645 | BF198: -47094.80848 | BG198: 1061.76667 | BH198: -1061.76667 | BI198: -708.555173 | BJ198: -49347.64343 | BK198: -666.2100828 | BL198: -44945.981 | BM198: -708.6361894 | BN198: -49354.44392 | BO198: -666.2893917 | BP198: -44952.41712 | BQ198: -1011.76667 | BS198: -1111.76667 | BU198: -1011.76667 | BW198: -1111.76667
A199: 176 | B199: 20 | C199: 172 | D199: 2033-11-25 | E199: =$C$204 -> 177 | F199: =$D$204 -> 2034-04-25 | G199: 2033-04-25 | H199: 365 | I199: 31 | J199: 167 | K199: 1111.76667 | L199: 50 | M199: 50 | N199: 1011.76667 | P199: 117.3045178 | Q199: 0 | R199: 0 | S199: 0 | T199: 894.4621523 | V199: 69488.24851 | W199: 130511.7515 | Y199: 0.02 | Z199: 117.3045178 | AA199: 0 | AB199: 117.3045178 | AC199: 117.3045178 | AD199: 0 | AE199: 1061.76667 | AF199: -685.4242948 | AG199: -46401.06859 | AH199: -1061.76667 | AI199: 2034-04-25 | AK199: 177 | AL199: 2034-04-25 | AM199: 365 | AN199: 31 | AO199: 167 | AP199: 1111.76667 | AQ199: 50 | AR199: 50 | AS199: 1011.76667 | AT199: 117.3448642 | AU199: 894.4218059 | AV199: 69486.71258 | AW199: 0.020007327 | AY199: 69488.24851 | AZ199: 117.3045178 | BA199: 117.3045178 | BB199: 894.4621523 | BC199: 50 | BD199: 1061.76667 | BE199: -685.5047265 | BF199: -46407.60384 | BG199: 1061.76667 | BH199: -1061.76667 | BI199: -707.119712 | BJ199: -48639.08826 | BK199: -664.2706855 | BL199: -44279.77092 | BM199: -707.2010246 | BN199: -48645.80773 | BO199: -664.3502138 | BP199: -44286.12773 | BQ199: -1011.76667 | BS199: -1111.76667 | BU199: -1011.76667 | BW199: -1111.76667
A200: 177 | B200: 20 | C200: 173 | D200: 2033-12-25 | E200: =$C$205 -> 178 | F200: =$D$205 -> 2034-05-25 | G200: 2033-05-25 | H200: 365 | I200: 30 | J200: 168 | K200: 1111.76667 | L200: 50 | M200: 50 | N200: 1011.76667 | P200: 115.8137475 | Q200: 0 | R200: 0 | S200: 0 | T200: 895.9529226 | V200: 68592.29559 | W200: 131407.7044 | Y200: 0.02 | Z200: 115.8137475 | AA200: 0 | AB200: 115.8137475 | AC200: 115.8137475 | AD200: 0 | AE200: 1061.76667 | AF200: -683.7283262 | AG200: -45715.6443 | AH200: -1061.76667 | AI200: 2034-05-25 | AK200: 178 | AL200: 2034-05-25 | AM200: 365 | AN200: 30 | AO200: 168 | AP200: 1111.76667 | AQ200: 50 | AR200: 50 | AS200: 1011.76667 | AT200: 115.8536151 | AU200: 895.913055 | AV200: 68590.79952 | AW200: 0.020007327 | AY200: 68592.29559 | AZ200: 115.8137475 | BA200: 115.8137475 | BB200: 895.9529226 | BC200: 50 | BD200: 1061.76667 | BE200: -683.809013 | BF200: -45722.09911 | BG200: 1061.76667 | BH200: -1061.76667 | BI200: -705.6871591 | BJ200: -47931.96855 | BK200: -662.3369341 | BL200: -43615.50023 | BM200: -705.7687663 | BN200: -47938.60671 | BO200: -662.4166797 | BP200: -43621.77752 | BQ200: -1011.76667 | BS200: -1111.76667 | BU200: -1011.76667 | BW200: -1111.76667
A201: 178 | B201: 20 | C201: 174 | D201: 2034-01-25 | E201: =$C$206 -> 179 | F201: =$D$206 -> 2034-06-25 | G201: 2033-06-25 | H201: 365 | I201: 31 | J201: 169 | K201: 1111.76667 | L201: 50 | M201: 50 | N201: 1011.76667 | P201: 114.3204926 | Q201: 0 | R201: 0 | S201: 0 | T201: 897.4461774 | V201: 67694.84941 | W201: 132305.1506 | Y201: 0.02 | Z201: 114.3204926 | AA201: 0 | AB201: 114.3204926 | AC201: 114.3204926 | AD201: 0 | AE201: 1061.76667 | AF201: -682.0365539 | AG201: -45031.91597 | AH201: -1061.76667 | AI201: 2034-06-25 | AK201: 179 | AL201: 2034-06-25 | AM201: 365 | AN201: 31 | AO201: 169 | AP201: 1111.76667 | AQ201: 50 | AR201: 50 | AS201: 1011.76667 | AT201: 114.3598796 | AU201: 897.4067905 | AV201: 67693.39273 | AW201: 0.020007327 | AY201: 67694.84941 | AZ201: 114.3204926 | BA201: 114.3204926 | BB201: 897.4461774 | BC201: 50 | BD201: 1061.76667 | BE201: -682.1174942 | BF201: -45038.2901 | BG201: 1061.76667 | BH201: -1061.76667 | BI201: -704.2575084 | BJ201: -47226.28139 | BK201: -660.4088119 | BL201: -42953.1633 | BM201: -704.3394087 | BN201: -47232.83794 | BO201: -660.488773 | BP201: -42959.36084 | BQ201: -1011.76667 | BS201: -1111.76667 | BU201: -1011.76667 | BW201: -1111.76667
A202: 179 | B202: 20 | C202: 175 | D202: 2034-02-25 | E202: =$C$207 -> 180 | F202: =$D$207 -> 2034-07-25 | G202: 2033-07-25 | H202: 365 | I202: 30 | J202: 170 | K202: 1111.76667 | L202: 50 | M202: 50 | N202: 1011.76667 | P202: 112.824749 | Q202: 0 | R202: 0 | S202: 0 | T202: 898.9419211 | V202: 66795.90749 | W202: 133204.0925 | Y202: 0.02 | Z202: 112.824749 | AA202: 0 | AB202: 112.824749 | AC202: 112.824749 | AD202: 0 | AE202: 1061.76667 | AF202: -680.3489677 | AG202: -44349.87942 | AH202: -1061.76667 | AI202: 2034-07-25 | AK202: 180 | AL202: 2034-07-25 | AM202: 365 | AN202: 30 | AO202: 170 | AP202: 1111.76667 | AQ202: 50 | AR202: 50 | AS202: 1011.76667 | AT202: 112.8636537 | AU202: 898.9030164 | AV202: 66794.48972 | AW202: 0.020007327 | AY202: 66795.90749 | AZ202: 112.824749 | BA202: 112.824749 | BB202: 898.9419211 | BC202: 50 | BD202: 1061.76667 | BE202: -680.4301597 | BF202: -44356.1726 | BG202: 1061.76667 | BH202: -1061.76667 | BI202: -702.8307541 | BJ202: -46522.02388 | BK202: -658.4863027 | BL202: -42292.75449 | BM202: -702.9129459 | BN202: -46528.49853 | BO202: -658.5664774 | BP202: -42298.87207 | BQ202: -1011.76667 | BS202: -1111.76667 | BU202: -1011.76667 | BW202: -1111.76667
... 223 more rows

Sheet Feuil2

Sheet Feuil3
